Ref No,Fund Type,Dept,Cost Centre Description    ,Description    ,Creditor Name    ,GL Code Net Amount,Payment date        
2,Revenue,CCHD,Bed Purchasing - South,Permanent Residential,1 St Georges House,1571.88, 01-Sep-2015
3,Revenue,CCHD,Bed Purchasing - South,Permanent Residential,1 St Georges House,1571.88, 29-Sep-2015
4,Revenue,CCHD,Bed Purchasing - South,Permanent Nursing,1 St Georges House,861.32, 01-Sep-2015
5,Revenue,CCHD,Bed Purchasing - South,Permanent Nursing,1 St Georges House,861.32, 29-Sep-2015
6,Revenue,CCHD,Bed Purchasing - Southmead Hospital,Permanent Residential,1 St Georges House,3720.70, 29-Sep-2015
7,Revenue,CCHD,18-25 Year Olds,Permanent Residential,1 St Georges House,13350.08, 01-Sep-2015
8,Revenue,CCHD,18-25 Year Olds,Permanent Residential,1 St Georges House,13350.08, 29-Sep-2015
9,Revenue,CCHD,Breakthrough and Inclusion Work,Other Supplies & Services,121Turnaround Limited,2690.81, 10-Sep-2015
10,Revenue,CCHD,Breakthrough and Inclusion Work,Other Supplies & Services,121Turnaround Limited,733.10, 10-Sep-2015
11,Revenue,CCHD,Supporting People Programme,Grants to Voluntary Bodies,1625 Independent People,16872.78, 01-Sep-2015
12,Revenue,CCHD,Bed Purchasing - Southmead Hospital,Permanent Nursing,2 Woodbrook Crescent,4053.58, 01-Sep-2015
13,Revenue,CCHD,Bed Purchasing - Southmead Hospital,Permanent Nursing,2 Woodbrook Crescent,1554.80, 29-Sep-2015
14,Revenue,CCHD,Home Care - Elderly - South,Day Care / Social Activities,3 Trees Community Support Ltd,203.40, 02-Sep-2015
15,Revenue,CCHD,Home Care - Elderly - North,Day Care / Social Activities,3 Trees Community Support Ltd,2662.28, 02-Sep-2015
16,Revenue,CCHD,Home Care - Elderly - North,Other Small Contracts,3 Trees Community Support Ltd,18.08, 02-Sep-2015
17,Revenue,CCHD,Home Care - Elderly - North,Supported Living,3 Trees Community Support Ltd,7033.41, 02-Sep-2015
18,Revenue,CCHD,Home Care - Elderly - South,Day Care / Social Activities,3 Trees Community Support Ltd,198.88, 02-Sep-2015
19,Revenue,CCHD,Home Care - Elderly - North,Day Care / Social Activities,3 Trees Community Support Ltd,2657.76, 02-Sep-2015
20,Revenue,CCHD,Home Care - Elderly - North,Other Small Contracts,3 Trees Community Support Ltd,108.48, 02-Sep-2015
21,Revenue,CCHD,Home Care - Elderly - North,Supported Living,3 Trees Community Support Ltd,7756.08, 02-Sep-2015
22,Revenue,CCHD,Home Care - Elderly - South,Day Care / Social Activities,3 Trees Community Support Ltd,198.88, 18-Sep-2015
23,Revenue,CCHD,Home Care - Elderly - North,Day Care / Social Activities,3 Trees Community Support Ltd,2517.64, 18-Sep-2015
24,Revenue,CCHD,Home Care - Elderly - North,Other Small Contracts,3 Trees Community Support Ltd,54.24, 18-Sep-2015
25,Revenue,CCHD,Home Care - Elderly - North,Supported Living,3 Trees Community Support Ltd,7706.24, 18-Sep-2015
26,Revenue,CCHD,Home Care - Elderly - South,Day Care / Social Activities,3 Trees Community Support Ltd,90.40, 18-Sep-2015
27,Revenue,CCHD,Home Care - Elderly - North,Day Care / Social Activities,3 Trees Community Support Ltd,2653.24, 18-Sep-2015
28,Revenue,CCHD,Home Care - Elderly - North,Other Small Contracts,3 Trees Community Support Ltd,54.24, 18-Sep-2015
29,Revenue,CCHD,Home Care - Elderly - North,Supported Living,3 Trees Community Support Ltd,7342.44, 18-Sep-2015
30,Revenue,CCHD,Home Care - Elderly - South,Day Care / Social Activities,3 Trees Community Support Ltd,198.88, 18-Sep-2015
31,Revenue,CCHD,Home Care - Elderly - North,Day Care / Social Activities,3 Trees Community Support Ltd,2666.80, 18-Sep-2015
32,Revenue,CCHD,Home Care - Elderly - North,Other Small Contracts,3 Trees Community Support Ltd,108.48, 18-Sep-2015
33,Revenue,CCHD,Home Care - Elderly - North,Supported Living,3 Trees Community Support Ltd,6112.03, 18-Sep-2015
34,Revenue,CCHD,Bed Purchasing - South,Permanent Residential,5Th Floor Harlech Court,16236.56, 01-Sep-2015
35,Revenue,CCHD,Bed Purchasing - South,Permanent Residential,5Th Floor Harlech Court,16236.56, 29-Sep-2015
36,Revenue,CCHD,18-25 Year Olds,Permanent Residential,5Th Floor Harlech Court,13837.80, 01-Sep-2015
37,Revenue,CCHD,18-25 Year Olds,Permanent Residential,5Th Floor Harlech Court,13837.80, 29-Sep-2015
38,Revenue,CCHD,18-25 Year Olds,Permanent Residential,5Th Floor Harlech Court,14114.08, 01-Sep-2015
39,Revenue,CCHD,18-25 Year Olds,Permanent Residential,5Th Floor Harlech Court,14114.08, 29-Sep-2015
40,Revenue,CCHD,18-25 Year Olds,Permanent Residential,5Th Floor Harlech Court,12656.32, 01-Sep-2015
41,Revenue,CCHD,18-25 Year Olds,Permanent Residential,5Th Floor Harlech Court,12656.32, 29-Sep-2015
42,Revenue,CCHD,Bed Purchasing - North,Permanent Residential,5Th Floor Harlech Court,16769.20, 01-Sep-2015
43,Revenue,CCHD,Bed Purchasing - North,Permanent Residential,5Th Floor Harlech Court,16769.20, 29-Sep-2015
44,Revenue,CCHD,18-25 Year Olds,Permanent Residential,5Th Floor Harlech Court,15925.08, 01-Sep-2015
45,Revenue,CCHD,18-25 Year Olds,Permanent Residential,5Th Floor Harlech Court,15925.08, 29-Sep-2015
46,Revenue,CCHD,Bed Purchasing - South,Permanent Residential,5Th Floor Harlech Court,9403.36, 01-Sep-2015
47,Revenue,CCHD,Bed Purchasing - South,Permanent Residential,5Th Floor Harlech Court,9403.36, 29-Sep-2015
48,Revenue,CCHD,Bed purchasing - S28A Under 65 - South,Permanent Residential,5Th Floor Harlech Court,9854.40, 01-Sep-2015
49,Revenue,CCHD,Bed purchasing - S28A Under 65 - South,Permanent Residential,5Th Floor Harlech Court,9854.40, 29-Sep-2015
50,Revenue,CCHD,Bed purchasing - S28A Under 65 - South,Permanent Residential,5Th Floor Harlech Court,10834.28, 01-Sep-2015
51,Revenue,CCHD,Bed purchasing - S28A Under 65 - South,Permanent Residential,5Th Floor Harlech Court,10834.28, 29-Sep-2015
52,Revenue,CCHD,Bed Purchasing - South,Permanent Residential,5Th Floor Harlech Court,10352.52, 01-Sep-2015
53,Revenue,CCHD,Bed Purchasing - South,Permanent Residential,5Th Floor Harlech Court,20705.04, 29-Sep-2015
54,Revenue,CCHD,Woodleaze,Prop.Serv. General Repairs,A G Gribble Limited,1585.00, 01-Sep-2015
55,Revenue,CCHD,Bed Purchasing - North,Permanent Nursing,ABI Development Limited,7046.44, 01-Sep-2015
56,Revenue,CCHD,Bed Purchasing - North,Permanent Nursing,ABI Development Limited,7046.44, 29-Sep-2015
57,Revenue,CCHD,Day Care - South,Day Care / Social Activities,About Me Care and Support Limited,1381.99, 17-Sep-2015
58,Revenue,CCHD,Day Care - North,Day Care / Social Activities,About Me Care and Support Limited,719.60, 04-Sep-2015
59,Revenue,CCHD,Day Care - South,Day Care / Social Activities,About Me Care and Support Limited,857.20, 17-Sep-2015
60,Revenue,CCHD,Day Care - North,Day Care / Social Activities,About Me Care and Support Limited,822.40, 23-Sep-2015
61,Revenue,CCHD,Home Care - Elderly - North,Day Care / Social Activities,Age Concern,652.50, 29-Sep-2015
62,Revenue,CCHD,Home Care - Elderly - South,Other Small Contracts,Agincare Chippenham,1863.40, 02-Sep-2015
63,Revenue,CCHD,Home Care - Elderly - South,Other Small Contracts,Agincare Chippenham,1817.20, 09-Sep-2015
64,Revenue,CCHD,Home Care - Elderly - South,Other Small Contracts,Agincare Chippenham,1832.60, 09-Sep-2015
65,Revenue,CCHD,Home Care - Elderly - South,Other Small Contracts,Agincare Chippenham,1813.35, 15-Sep-2015
66,Revenue,CCHD,Home Care - Elderly - South,Other Small Contracts,Agincare Chippenham,1855.70, 25-Sep-2015
67,Revenue,CCHD,Home Care - Elderly - South,Other Small Contracts,Agincare UK Limited,281.05, 15-Sep-2015
68,Revenue,CCHD,Home Care - Elderly - North,Other Small Contracts,Agincare UK Limited,173.25, 15-Sep-2015
69,Revenue,CCHD,Elderly MH Day Care North,Day Care / Social Activities,Agincare UK Limited,53.90, 15-Sep-2015
70,Revenue,CCHD,Home Care - Elderly - South,Other Small Contracts,Agincare UK Nutfield,53.90, 16-Sep-2015
71,Revenue,CCHD,Home Care - Elderly - North,Other Small Contracts,Agincare UK Nutfield,1224.30, 16-Sep-2015
72,Revenue,CCHD,Home Care - Elderly - South,Other Small Contracts,Agincare UK Nutfield,46.20, 02-Sep-2015
73,Revenue,CCHD,Home Care - Elderly - North,Other Small Contracts,Agincare UK Nutfield,1185.80, 02-Sep-2015
74,Revenue,CCHD,Home Care - Elderly - South,Other Small Contracts,Agincare UK Nutfield,23.10, 15-Sep-2015
75,Revenue,CCHD,Home Care - Elderly - North,Other Small Contracts,Agincare UK Nutfield,1197.35, 15-Sep-2015
76,Revenue,CCHD,Home Care - Elderly - South,Other Small Contracts,Agincare UK Nutfield,53.90, 25-Sep-2015
77,Revenue,CCHD,Home Care - Elderly - North,Other Small Contracts,Agincare UK Nutfield,1243.55, 25-Sep-2015
78,Revenue,CCHD,Supported Living - South,Private & Voluntary Home Care,Alexandra Homes (Bristol) Limited,2530.00, 14-Sep-2015
79,Revenue,CCHD,Home Care - Elderly - South,Other Small Contracts,AliMo Care Ltd,1325.06, 04-Sep-2015
80,Revenue,CCHD,Home Care - Elderly - South,Other Small Contracts,AliMo Care Ltd,1274.90, 09-Sep-2015
81,Revenue,CCHD,Home Care - Elderly - South,Other Small Contracts,AliMo Care Ltd,1258.18, 16-Sep-2015
82,Revenue,CCHD,Home Care - Elderly - South,Other Small Contracts,AliMo Care Ltd,1174.58, 23-Sep-2015
83,Revenue,CCHD,Woodleaze,Prop.Serv. General Repairs,Ambience Landscapes Limited,480.00, 30-Sep-2015
84,Revenue,CCHD,Bed Purchasing - South,Permanent Nursing,Ambleside Nusing Ho!,1526.08, 01-Sep-2015
85,Revenue,CCHD,Bed Purchasing - South,Permanent Nursing,Ambleside Nusing Ho!,1526.08, 29-Sep-2015
86,Revenue,CCHD,Supporting People Programme,Grants to Voluntary Bodies,Anchor Housing,905.17, 01-Sep-2015
87,Revenue,CCHD,Direct Payments - Phys Dis - North,Grants to Voluntary Bodies,Aquarium Card Management Solutions Ltd,2018.25, 30-Sep-2015
88,Revenue,CCHD,Bed Purchasing - North,Permanent Residential,Ark Care Homes Ltd,10348.28, 01-Sep-2015
89,Revenue,CCHD,Bed Purchasing - North,Permanent Residential,Ark Care Homes Ltd,10348.28, 29-Sep-2015
90,Revenue,CCHD,Health Inequalities,Other Small Contracts,Armadillo Youth Venue & Cafe,700.00, 10-Sep-2015
91,Revenue,CCHD,Mental Capacity Act - Advocacy,Other Supplies & Services,Armadillo Youth Venue & Cafe,800.00, 22-Sep-2015
92,Revenue,CCHD,S117 Placements PCT,Permanent Residential,Ash View House,7052.76, 01-Sep-2015
93,Revenue,CCHD,S117 Placements PCT,Permanent Residential,Ash View House,7052.76, 29-Sep-2015
94,Revenue,CCHD,18-25 Year Olds,Permanent Residential,Ash View House,6225.80, 01-Sep-2015
95,Revenue,CCHD,18-25 Year Olds,Permanent Residential,Ash View House,6225.80, 29-Sep-2015
96,Revenue,CCHD,Section 117 Placements MH Younger,Permanent Residential,Ash View House,6565.76, 01-Sep-2015
97,Revenue,CCHD,Section 117 Placements MH Younger,Permanent Residential,Ash View House,6565.76, 29-Sep-2015
98,Revenue,CCHD,Bed purchasing - Elderly S117 - South,Permanent Residential,Ash View House,6246.76, 01-Sep-2015
99,Revenue,CCHD,Bed purchasing - Elderly S117 - South,Permanent Residential,Ash View House,6246.76, 29-Sep-2015
100,Revenue,CCHD,DAT Treatment,Rent,Ashville Asset Management Limited,2421.00, 29-Sep-2015
101,Revenue,CCHD,DAT Treatment,Rent,Ashville Asset Management Limited,6159.00, 29-Sep-2015
102,Revenue,CCHD,Bed Purchasing - North,Permanent Residential,Aspects 2 Limited,6428.16, 01-Sep-2015
103,Revenue,CCHD,Supporting People Programme,Grants to Voluntary Bodies,Aspects and Milestones Trust,3254.35, 01-Sep-2015
104,Revenue,CCHD,Supporting People Programme,Grants to Voluntary Bodies,Aspects and Milestones Trust,1631.60, 01-Sep-2015
105,Revenue,CCHD,Supporting People Programme,Grants to Voluntary Bodies,Aspects and Milestones Trust,2476.54, 01-Sep-2015
106,Revenue,CCHD,Purchase of Non-Res Care - North,Day Care / Social Activities,Aspects and Milestones Trust,746.46, 07-Sep-2015
107,Revenue,CCHD,Home Care - Elderly - South,Day Care / Social Activities,Aspirations Support Bristol Limited,4566.54, 09-Sep-2015
108,Revenue,CCHD,Home Care - Elderly - South,Other Small Contracts,Aspirations Support Bristol Limited,3708.54, 09-Sep-2015
109,Revenue,CCHD,Home Care - Elderly - South,Supported Living,Aspirations Support Bristol Limited,5230.02, 09-Sep-2015
110,Revenue,CCHD,Home Care - Elderly - North,Day Care / Social Activities,Aspirations Support Bristol Limited,40.70, 09-Sep-2015
111,Revenue,CCHD,Home Care - Elderly - North,Supported Living,Aspirations Support Bristol Limited,1823.36, 09-Sep-2015
112,Revenue,CCHD,Younger MH non-res purchasing,Other Small Contracts,Aspirations Support Bristol Limited,10673.12, 09-Sep-2015
113,Revenue,CCHD,Younger MH non-res purchasing,Supported Living,Aspirations Support Bristol Limited,105.20, 09-Sep-2015
114,Revenue,CCHD,Home Care - Elderly - South,Day Care / Social Activities,Aspirations Support Bristol Limited,4582.82, 18-Sep-2015
115,Revenue,CCHD,Home Care - Elderly - South,Other Small Contracts,Aspirations Support Bristol Limited,3844.39, 18-Sep-2015
116,Revenue,CCHD,Home Care - Elderly - South,Supported Living,Aspirations Support Bristol Limited,5351.57, 18-Sep-2015
117,Revenue,CCHD,Home Care - Elderly - North,Day Care / Social Activities,Aspirations Support Bristol Limited,48.84, 18-Sep-2015
118,Revenue,CCHD,Home Care - Elderly - North,Supported Living,Aspirations Support Bristol Limited,1347.17, 18-Sep-2015
119,Revenue,CCHD,Younger MH non-res purchasing,Other Small Contracts,Aspirations Support Bristol Limited,10652.08, 18-Sep-2015
120,Revenue,CCHD,Younger MH non-res purchasing,Supported Living,Aspirations Support Bristol Limited,105.20, 18-Sep-2015
121,Revenue,CCHD,Home Care - Elderly - South,Day Care / Social Activities,Aspirations Support Bristol Limited,4452.58, 29-Sep-2015
122,Revenue,CCHD,Home Care - Elderly - South,Other Small Contracts,Aspirations Support Bristol Limited,3778.94, 29-Sep-2015
123,Revenue,CCHD,Home Care - Elderly - South,Supported Living,Aspirations Support Bristol Limited,7214.45, 29-Sep-2015
124,Revenue,CCHD,Home Care - Elderly - North,Day Care / Social Activities,Aspirations Support Bristol Limited,48.84, 29-Sep-2015
125,Revenue,CCHD,Home Care - Elderly - North,Supported Living,Aspirations Support Bristol Limited,1672.77, 29-Sep-2015
126,Revenue,CCHD,Younger MH non-res purchasing,Other Small Contracts,Aspirations Support Bristol Limited,10653.98, 29-Sep-2015
127,Revenue,CCHD,Younger MH non-res purchasing,Supported Living,Aspirations Support Bristol Limited,105.20, 29-Sep-2015
128,Revenue,CCHD,Bed Purchasing - South,Permanent Residential,Autism Specialised Care Homes,5672.64, 01-Sep-2015
129,Revenue,CCHD,Bed Purchasing - South,Permanent Residential,Autism Specialised Care Homes,5672.64, 29-Sep-2015
130,Revenue,CCHD,Younger Adult Mental Health,Health Services (Third Party Payments),Avon & Wiltshire Mental Health,5000.00, 04-Sep-2015
131,Revenue,CCHD,Younger Adult Mental Health,Health Services (Third Party Payments),Avon & Wiltshire Mental Health,1667.00, 04-Sep-2015
132,Revenue,CCHD,Purchase of RAC places,Other L.A.'s - General,Bath & North East Somerset Dist Council,5282.92, 03-Sep-2015
133,Revenue,CCHD,Bed Purchasing - Southmead Hospital,Permanent Nursing,Bayview Nursing & Residential Home,1494.36, 01-Sep-2015
134,Revenue,CCHD,Bed Purchasing - Southmead Hospital,Permanent Nursing,Bayview Nursing & Residential Home,1494.36, 29-Sep-2015
135,Revenue,CCHD,Bed Purchasing - Southmead Hospital,Permanent Nursing,Bayview Nursing & Residential Home,2072.64, 01-Sep-2015
136,Revenue,CCHD,Bed Purchasing - Southmead Hospital,Permanent Nursing,Bayview Nursing & Residential Home,1173.77, 29-Sep-2015
137,Revenue,CCHD,Bed Purchasing - Elderly S117- North,Permanent Nursing,Beaufort Grange Care Home,4552.00, 01-Sep-2015
138,Revenue,CCHD,Bed Purchasing - Elderly S117- North,Permanent Nursing,Beaufort Grange Care Home,4552.00, 29-Sep-2015
139,Revenue,CCHD,Bed Purchasing - Elderly S117- North,Permanent Nursing,Beaufort Grange Care Home,2988.36, 01-Sep-2015
140,Revenue,CCHD,Section 117 Placements MH Younger,Permanent Nursing,Beaufort Grange Care Home,19250.00, 01-Sep-2015
141,Revenue,CCHD,Section 117 Placements MH Younger,Permanent Nursing,Beaufort Grange Care Home,7000.00, 29-Sep-2015
142,Revenue,CCHD,Bed Purchasing - North,Permanent Residential,Beaufort House,1686.44, 01-Sep-2015
143,Revenue,CCHD,Bed Purchasing - North,Permanent Residential,Beaufort House,1686.44, 29-Sep-2015
144,Revenue,CCHD,Bed Purchasing - North,Permanent Residential,Beaufort House,1839.84, 01-Sep-2015
145,Revenue,CCHD,Bed Purchasing - North,Permanent Residential,Beaufort House,1839.84, 29-Sep-2015
146,Revenue,CCHD,Bed Purchasing - North,Permanent Residential,Beaufort House,2425.92, 01-Sep-2015
147,Revenue,CCHD,Bed Purchasing - North,Permanent Residential,Beaufort House,2425.92, 29-Sep-2015
148,Revenue,CCHD,Bed Purchasing - North,Permanent Residential,Beaufort House,1395.68, 01-Sep-2015
149,Revenue,CCHD,Bed Purchasing - North,Permanent Residential,Beaufort House,1395.68, 29-Sep-2015
150,Revenue,CCHD,Bed Purchasing - South,Permanent Residential,Beaufort House,1447.40, 01-Sep-2015
151,Revenue,CCHD,Bed Purchasing - South,Permanent Residential,Beaufort House,1447.40, 29-Sep-2015
152,Revenue,CCHD,Bed Purchasing - North,Permanent Residential,Beaufort House,1822.84, 01-Sep-2015
153,Revenue,CCHD,Bed Purchasing - North,Permanent Residential,Beaufort House,1822.84, 29-Sep-2015
154,Revenue,CCHD,Bed Purchasing - Southmead Hospital,Permanent Residential,Beaufort House,1270.48, 01-Sep-2015
155,Revenue,CCHD,Bed Purchasing - Southmead Hospital,Permanent Residential,Beaufort House,1270.48, 29-Sep-2015
156,Revenue,CCHD,Bed Purchasing - South,Respite Emergency - Residential,Beaufort House,600.00, 29-Sep-2015
157,Revenue,CCHD,Bed Purchasing - South,Respite Planned - Residential,Beaufort House,600.00, 29-Sep-2015
158,Revenue,CCHD,Bed Purchasing - North,Permanent Residential,Beaufort House,1365.16, 01-Sep-2015
159,Revenue,CCHD,Bed Purchasing - North,Permanent Residential,Beaufort House,1365.16, 29-Sep-2015
160,Revenue,CCHD,Bed Purchasing - Southmead Hospital,Permanent Residential,Beaufort House,1543.28, 01-Sep-2015
161,Revenue,CCHD,Bed Purchasing - Southmead Hospital,Permanent Residential,Beaufort House,1543.28, 29-Sep-2015
162,Revenue,CCHD,Bed Purchasing - North,Respite Planned - Residential,Beaufort House,1714.29, 29-Sep-2015
163,Revenue,CCHD,Bed Purchasing - North,Respite Planned - Residential,Beaufort House,685.71, 29-Sep-2015
164,Revenue,CCHD,Bed Purchasing - North,Permanent Residential,Beaufort House,1876.68, 01-Sep-2015
165,Revenue,CCHD,Bed Purchasing - North,Permanent Residential,Beaufort House,1876.68, 29-Sep-2015
166,Revenue,CCHD,Bed Purchasing - North,Respite Planned - Residential,Beaufort House,771.43, 01-Sep-2015
167,Revenue,CCHD,Bed Purchasing - North,Permanent Residential,Beaufort House,1720.80, 01-Sep-2015
168,Revenue,CCHD,Bed Purchasing - South,Permanent Residential,Bedrock Lodge,3186.88, 01-Sep-2015
169,Revenue,CCHD,Bed Purchasing - South,Permanent Residential,Bedrock Lodge,3186.88, 29-Sep-2015
170,Revenue,CCHD,Bed Purchasing - South,Permanent Residential,Bedrock Lodge,2976.96, 01-Sep-2015
171,Revenue,CCHD,Bed Purchasing - South,Permanent Residential,Bedrock Lodge,2976.96, 29-Sep-2015
172,Revenue,CCHD,Section 117 Placements MH Younger,Permanent Residential,Bedrock Lodge,1885.04, 01-Sep-2015
173,Revenue,CCHD,Section 117 Placements MH Younger,Permanent Residential,Bedrock Lodge,1885.04, 29-Sep-2015
174,Revenue,CCHD,South Glos Users in South Glos Homes,Permanent Nursing,Beech House,1376.00, 01-Sep-2015
175,Revenue,CCHD,Bed Purchasing - South,Permanent Residential,Beech House,1270.80, 01-Sep-2015
176,Revenue,CCHD,Bed Purchasing - South,Permanent Residential,Beech House,1270.80, 29-Sep-2015
177,Revenue,CCHD,Bed Purchasing - North,Permanent Nursing,Beech House,1330.80, 01-Sep-2015
178,Revenue,CCHD,Bed Purchasing - North,Permanent Nursing,Beech House,1663.92, 01-Sep-2015
179,Revenue,CCHD,Bed Purchasing - North,Permanent Nursing,Beech House,1663.92, 29-Sep-2015
180,Revenue,CCHD,South Glos Users in South Glos Homes,Permanent Nursing,Beech House,2080.00, 01-Sep-2015
181,Revenue,CCHD,Bed Purchasing - North,Permanent Nursing,Beech House,2115.56, 01-Sep-2015
182,Revenue,CCHD,Bed Purchasing - North,Permanent Nursing,Beech House,2115.56, 29-Sep-2015
183,Revenue,CCHD,Bed Purchasing - North,Permanent Residential,Beech House,1442.80, 01-Sep-2015
184,Revenue,CCHD,Bed Purchasing - North,Permanent Residential,Beech House,1442.80, 29-Sep-2015
185,Revenue,CCHD,Bed Purchasing - Southmead Hospital,Permanent Nursing,Beech House,1190.10, 01-Sep-2015
186,Revenue,CCHD,Bed Purchasing - North,Permanent Residential,Beech House,1413.56, 01-Sep-2015
187,Revenue,CCHD,Bed Purchasing - North,Permanent Residential,Beech House,1413.56, 29-Sep-2015
188,Revenue,CCHD,Home Care - Elderly - North,Day Care / Social Activities,Bibby Factors Bristol Limited,134.40, 09-Sep-2015
189,Revenue,CCHD,Home Care - Elderly - North,Other Small Contracts,Bibby Factors Bristol Limited,7165.20, 09-Sep-2015
190,Revenue,CCHD,Home Care - Elderly - North,Day Care / Social Activities,Bibby Factors Bristol Limited,134.40, 01-Sep-2015
191,Revenue,CCHD,Home Care - Elderly - North,Other Small Contracts,Bibby Factors Bristol Limited,8139.60, 01-Sep-2015
192,Revenue,CCHD,Home Care - Elderly - North,Day Care / Social Activities,Bibby Factors Bristol Limited,130.20, 15-Sep-2015
193,Revenue,CCHD,Home Care - Elderly - North,Other Small Contracts,Bibby Factors Bristol Limited,8198.40, 15-Sep-2015
194,Revenue,CCHD,Home Care - Elderly - North,Day Care / Social Activities,Bibby Factors Bristol Limited,134.40, 17-Sep-2015
195,Revenue,CCHD,Home Care - Elderly - North,Other Small Contracts,Bibby Factors Bristol Limited,7014.00, 17-Sep-2015
196,Revenue,CCHD,Bed Purchasing - North,Permanent Nursing,Blossom Field,2747.96, 01-Sep-2015
197,Revenue,CCHD,Bed Purchasing - North,Permanent Nursing,Blossom Field,2747.96, 29-Sep-2015
198,Revenue,CCHD,South Glos Users in South Glos Homes,Permanent Nursing,Blossom Field,2208.00, 01-Sep-2015
199,Revenue,CCHD,Bed Purchasing - North,Permanent Nursing,Blossom Field,1835.00, 01-Sep-2015
200,Revenue,CCHD,South Glos Users in South Glos Homes,Permanent Nursing,Blossom Field,1441.57, 01-Sep-2015
201,Revenue,CCHD,Bed Purchasing - North,Permanent Nursing,Blossom Field,1835.00, 29-Sep-2015
202,Revenue,CCHD,Bed Purchasing - Elderly S117- North,Permanent Nursing,Blossom Field,2012.00, 01-Sep-2015
203,Revenue,CCHD,Bed Purchasing - Elderly S117- North,Permanent Nursing,Blossom Field,2012.00, 29-Sep-2015
204,Revenue,CCHD,Bed Purchasing - North,Permanent Nursing,Blossom Field,1393.52, 01-Sep-2015
205,Revenue,CCHD,Bed Purchasing - North,Permanent Nursing,Blossom Field,1393.52, 29-Sep-2015
206,Revenue,CCHD,South Glos Users in South Glos Homes,Permanent Nursing,Blossom Field,528.00, 01-Sep-2015
207,Revenue,CCHD,Bed Purchasing - North,Permanent Nursing,Blossom Field,13522.30, 01-Sep-2015
208,Revenue,CCHD,Bed Purchasing - North,Permanent Nursing,Blossom Field,2846.80, 01-Sep-2015
209,Revenue,CCHD,Swift Dump Code,Permanent Residential,Blossom Field,3841.92, 29-Sep-2015
210,Revenue,CCHD,Bed purchasing - Elderly S117 - South,Permanent Nursing,Blossom Field,4352.00, 01-Sep-2015
211,Revenue,CCHD,South Glos Users in South Glos Homes,Permanent Nursing,Blossom Field,1568.00, 01-Sep-2015
212,Revenue,CCHD,Bed purchasing - Elderly S117 - South,Permanent Nursing,Blossom Field,4352.00, 29-Sep-2015
213,Revenue,CCHD,Bed Purchasing - North,Permanent Nursing,Blossom Field,2457.40, 01-Sep-2015
214,Revenue,CCHD,Bed Purchasing - North,Permanent Nursing,Blossom Field,2457.40, 29-Sep-2015
215,Revenue,CCHD,Bed Purchasing - North,Permanent Nursing,Blossom Field,2850.96, 01-Sep-2015
216,Revenue,CCHD,Bed Purchasing - North,Permanent Nursing,Blossom Field,2850.96, 29-Sep-2015
217,Revenue,CCHD,Bed Purchasing - North,Permanent Nursing,Blossom Field,2729.24, 01-Sep-2015
218,Revenue,CCHD,Bed Purchasing - North,Permanent Nursing,Blossom Field,2729.24, 29-Sep-2015
219,Revenue,CCHD,Bed Purchasing - South,Permanent Nursing,Blossom Field,1926.44, 01-Sep-2015
220,Revenue,CCHD,Bed Purchasing - Southmead Hospital,Permanent Nursing,Blossom Field,2586.92, 01-Sep-2015
221,Revenue,CCHD,Bed Purchasing - Southmead Hospital,Permanent Nursing,Blossom Field,2586.92, 29-Sep-2015
222,Revenue,CCHD,Home Care - Elderly - North,Other Small Contracts,Bluebird Care (South Gloucestershire),1896.34, 02-Sep-2015
223,Revenue,CCHD,Home Care - Elderly - North,Other Small Contracts,Bluebird Care (South Gloucestershire),2015.14, 09-Sep-2015
224,Revenue,CCHD,Training - Adult Services,Training Expenses,Individual,975.00, 14-Sep-2015
225,Revenue,CCHD,18-25 Year Olds,Permanent Residential,Bradbury House,8855.64, 01-Sep-2015
226,Revenue,CCHD,18-25 Year Olds,Permanent Residential,Bradbury House,8855.64, 29-Sep-2015
227,Revenue,CCHD,Bed Purchasing - North,Permanent Residential,Bradley House,1546.32, 01-Sep-2015
228,Revenue,CCHD,Bed Purchasing - North,Permanent Residential,Bradley House,1546.32, 29-Sep-2015
229,Revenue,CCHD,Home Care - Elderly - North,Other Small Contracts,Bradley House Home Care Services,756.00, 03-Sep-2015
230,Revenue,CCHD,Home Care - Elderly - North,Other Small Contracts,Bradley House Home Care Services,816.48, 09-Sep-2015
231,Revenue,CCHD,Home Care - Elderly - North,Other Small Contracts,Bradley House Home Care Services,825.12, 18-Sep-2015
232,Revenue,CCHD,Home Care - Elderly - North,Other Small Contracts,Bradley House Home Care Services,799.20, 18-Sep-2015
233,Revenue,CCHD,Home Care - Elderly - North,Other Small Contracts,Bradley House Home Care Services,803.52, 28-Sep-2015
234,Revenue,CCHD,Woodleaze,"Provisions (Food, etc)",Brake Bros,496.97, 30-Sep-2015
235,Revenue,CCHD,Bed Purchasing - S28A - Over 65- North,Permanent Residential,Brandon Trust,3126.48, 01-Sep-2015
236,Revenue,CCHD,Bed Purchasing - S28A - Over 65- North,Permanent Residential,Brandon Trust,3126.48, 29-Sep-2015
237,Revenue,CCHD,Bed Purchasing - South,Permanent Residential,Brandon Trust,10380.40, 01-Sep-2015
238,Revenue,CCHD,Bed Purchasing - South,Permanent Residential,Brandon Trust,10380.40, 29-Sep-2015
239,Revenue,CCHD,Bed Purchasing - South,Permanent Residential,Brandon Trust,4080.76, 01-Sep-2015
240,Revenue,CCHD,Bed Purchasing - South,Permanent Residential,Brandon Trust,4080.76, 29-Sep-2015
241,Revenue,CCHD,Bed Purchasing - South,Permanent Residential,Brandon Trust,3493.24, 01-Sep-2015
242,Revenue,CCHD,Bed Purchasing - South,Permanent Residential,Brandon Trust,3493.24, 29-Sep-2015
243,Revenue,CCHD,Bed Purchasing - Southmead Hospital,Permanent Nursing,Brandon Trust,4603.08, 01-Sep-2015
244,Revenue,CCHD,Bed Purchasing - Southmead Hospital,Permanent Nursing,Brandon Trust,4603.08, 29-Sep-2015
245,Revenue,CCHD,Bed Purchasing - South,Permanent Nursing,Brandon Trust,5092.48, 01-Sep-2015
246,Revenue,CCHD,Bed Purchasing - South,Permanent Nursing,Brandon Trust,5092.48, 29-Sep-2015
247,Revenue,CCHD,Bed purchasing - S28A Under 65 - South,Permanent Nursing,Brandon Trust,5474.04, 01-Sep-2015
248,Revenue,CCHD,Bed purchasing - S28A Under 65 - South,Permanent Nursing,Brandon Trust,5474.04, 29-Sep-2015
249,Revenue,CCHD,Bed purchasing - S28A Under 65 - South,Permanent Residential,Brandon Trust,4956.60, 01-Sep-2015
250,Revenue,CCHD,Bed purchasing - S28A Under 65 - South,Permanent Residential,Brandon Trust,4956.60, 29-Sep-2015
251,Revenue,CCHD,Bed Purchasing - LD S28A- Over 65- South,Permanent Nursing,Brandon Trust,5190.64, 01-Sep-2015
252,Revenue,CCHD,Bed Purchasing - LD S28A- Over 65- South,Permanent Nursing,Brandon Trust,5190.64, 29-Sep-2015
253,Revenue,CCHD,Bed Purchasing - LD S28A- Over 65- South,Permanent Nursing,Brandon Trust,4904.80, 01-Sep-2015
254,Revenue,CCHD,Bed Purchasing - LD S28A- Over 65- South,Permanent Nursing,Brandon Trust,4904.80, 29-Sep-2015
255,Revenue,CCHD,Bed Purchasing - South,Permanent Residential,Brandon Trust,3309.88, 01-Sep-2015
256,Revenue,CCHD,Bed Purchasing - South,Permanent Residential,Brandon Trust,3309.88, 29-Sep-2015
257,Revenue,CCHD,Bed purchasing - S28A Under 65 - South,Permanent Residential,Brandon Trust,5260.00, 01-Sep-2015
258,Revenue,CCHD,Bed purchasing - S28A Under 65 - South,Permanent Residential,Brandon Trust,5260.00, 29-Sep-2015
259,Revenue,CCHD,Bed purchasing - S28A Under 65 - South,Permanent Residential,Brandon Trust,5316.28, 01-Sep-2015
260,Revenue,CCHD,Bed purchasing - S28A Under 65 - South,Permanent Residential,Brandon Trust,5316.28, 29-Sep-2015
261,Revenue,CCHD,Bed purchasing - S28A Under 65 - South,Permanent Nursing,Brandon Trust,5418.04, 01-Sep-2015
262,Revenue,CCHD,Bed purchasing - S28A Under 65 - South,Permanent Nursing,Brandon Trust,5418.04, 29-Sep-2015
263,Revenue,CCHD,Bed purchasing -S28A  Under 65 - North,Permanent Nursing,Brandon Trust,4835.88, 01-Sep-2015
264,Revenue,CCHD,Bed purchasing -S28A  Under 65 - North,Permanent Nursing,Brandon Trust,4835.88, 29-Sep-2015
265,Revenue,CCHD,Bed purchasing - S28A Under 65 - South,Permanent Residential,Brandon Trust,5316.28, 01-Sep-2015
266,Revenue,CCHD,Bed purchasing - S28A Under 65 - South,Permanent Residential,Brandon Trust,5316.28, 29-Sep-2015
267,Revenue,CCHD,Bed Purchasing - LD S28A- Over 65- South,Permanent Residential,Brandon Trust,4795.44, 01-Sep-2015
268,Revenue,CCHD,Bed Purchasing - LD S28A- Over 65- South,Permanent Residential,Brandon Trust,4795.44, 29-Sep-2015
269,Revenue,CCHD,Bed Purchasing - North,Permanent Residential,Bridge House Care Home,1533.60, 01-Sep-2015
270,Revenue,CCHD,Bed Purchasing - North,Permanent Residential,Bridge House Care Home,1533.60, 29-Sep-2015
271,Revenue,CCHD,Bed Purchasing - North,Permanent Residential,Bridge House Care Home,1079.20, 01-Sep-2015
272,Revenue,CCHD,Bed Purchasing - North,Permanent Residential,Bridge House Care Home,1079.20, 29-Sep-2015
273,Revenue,CCHD,Bed Purchasing - North,Permanent Residential,Bridge House Care Home,1531.48, 01-Sep-2015
274,Revenue,CCHD,Bed Purchasing - North,Permanent Residential,Bridge House Care Home,1531.48, 29-Sep-2015
275,Revenue,CCHD,Bed Purchasing - North,Permanent Residential,Bridge House Care Home,1544.60, 01-Sep-2015
276,Revenue,CCHD,Bed Purchasing - North,Permanent Residential,Bridge House Care Home,1544.60, 29-Sep-2015
277,Revenue,CCHD,Bed Purchasing - North,Permanent Residential,Bridgwater Court,10055.68, 25-Sep-2015
278,Revenue,CCHD,Bed Purchasing - South,Permanent Residential,Brightbow,2113.88, 01-Sep-2015
279,Revenue,CCHD,Bed Purchasing - South,Permanent Residential,Brightbow,2113.88, 29-Sep-2015
280,Revenue,CCHD,MH Purchasing - Younger,Permanent Residential,Brightbow,1503.92, 01-Sep-2015
281,Revenue,CCHD,MH Purchasing - Younger,Permanent Residential,Brightbow,1503.92, 29-Sep-2015
282,Revenue,CCHD,Purchase of RAC places,Other L.A.'s - General,Bristol City Council,4805.76, 03-Sep-2015
283,Revenue,CCHD,ICES / NRS Contract,Daily Living Equipment,Bristol City Council,7000.00, 22-Sep-2015
284,Revenue,CCHD,Supported Living - North,Private & Voluntary Home Care,Bristol Houses UK Limited,620.80, 24-Sep-2015
285,Revenue,CCHD,Home Care - Elderly - South,Other Small Contracts,Bristol Houses UK Limited,853.60, 24-Sep-2015
286,Revenue,CCHD,Bed and Breakfast,Bed & Breakfast,Bristol Housing & Support Limited,490.00, 10-Sep-2015
287,Revenue,CCHD,Supporting People Programme,Grants to Voluntary Bodies,Bristol Missing Link,2012.42, 01-Sep-2015
288,Revenue,CCHD,Supporting People Programme,Grants to Voluntary Bodies,Bristol Missing Link,1464.82, 01-Sep-2015
289,Revenue,CCHD,Home Care - Elderly - North,SU Employment Support,Britannia House,693.60, 01-Sep-2015
290,Revenue,CCHD,Home Care - Elderly - North,SU Employment Support,Britannia House,693.60, 29-Sep-2015
291,Revenue,CCHD,Home Care - Elderly - North,Day Care / Social Activities,Britannia House,924.80, 01-Sep-2015
292,Revenue,CCHD,Home Care - Elderly - North,Day Care / Social Activities,Britannia House,924.80, 29-Sep-2015
293,Revenue,CCHD,Home Care - Elderly - South,Day Care / Social Activities,Britannia House,924.80, 01-Sep-2015
294,Revenue,CCHD,Home Care - Elderly - South,Day Care / Social Activities,Britannia House,924.80, 29-Sep-2015
295,Revenue,CCHD,Home Care - Elderly - North,Day Care / Social Activities,Britannia House,693.60, 01-Sep-2015
296,Revenue,CCHD,Home Care - Elderly - North,Day Care / Social Activities,Britannia House,693.60, 29-Sep-2015
297,Revenue,CCHD,Home Care - Elderly - North,Day Care / Social Activities,Britannia House,693.60, 01-Sep-2015
298,Revenue,CCHD,Home Care - Elderly - North,Day Care / Social Activities,Britannia House,693.60, 29-Sep-2015
299,Revenue,CCHD,Home Care - Elderly - South,Day Care / Social Activities,Britannia House,693.60, 01-Sep-2015
300,Revenue,CCHD,Home Care - Elderly - South,Day Care / Social Activities,Britannia House,693.60, 29-Sep-2015
301,Revenue,CCHD,Home Care - Elderly - South,SU Employment Support,Britannia House,1040.40, 01-Sep-2015
302,Revenue,CCHD,Home Care - Elderly - North,Day Care / Social Activities,Britannia House,924.80, 01-Sep-2015
303,Revenue,CCHD,Home Care - Elderly - North,Day Care / Social Activities,Britannia House,924.80, 29-Sep-2015
304,Revenue,CCHD,Home Care - Elderly - South,Day Care / Social Activities,Britannia House,1156.00, 01-Sep-2015
305,Revenue,CCHD,Home Care - Elderly - South,Day Care / Social Activities,Britannia House,1156.00, 29-Sep-2015
306,Revenue,CCHD,Home Care - Elderly - South,Day Care / Social Activities,Britannia House,693.60, 01-Sep-2015
307,Revenue,CCHD,Home Care - Elderly - South,Day Care / Social Activities,Britannia House,693.60, 29-Sep-2015
308,Revenue,CCHD,Home Care - Elderly - South,Day Care / Social Activities,Britannia House,693.60, 01-Sep-2015
309,Revenue,CCHD,Home Care - Elderly - South,Day Care / Social Activities,Britannia House,693.60, 29-Sep-2015
310,Revenue,CCHD,Home Care - Elderly - South,Day Care / Social Activities,Britannia House,693.60, 01-Sep-2015
311,Revenue,CCHD,Home Care - Elderly - South,Day Care / Social Activities,Britannia House,693.60, 29-Sep-2015
312,Revenue,CCHD,Supporting People Programme,Grants to Voluntary Bodies,Bromford Housing Group,14201.99, 01-Sep-2015
313,Revenue,CCHD,Bed Purchasing - South,Permanent Nursing,Brunel Care  Saffron Gardens,2874.22, 29-Sep-2015
314,Revenue,CCHD,Bed Purchasing - South,Permanent Nursing,Brunel Care  Saffron Gardens,2011.96, 29-Sep-2015
315,Revenue,CCHD,Bed Purchasing - Southmead Hospital,Permanent Nursing,Brunel Care  Saffron Gardens,1653.80, 01-Sep-2015
316,Revenue,CCHD,Bed Purchasing - Southmead Hospital,Permanent Nursing,Brunel Care  Saffron Gardens,1653.80, 29-Sep-2015
317,Revenue,CCHD,South Glos Users in South Glos Homes,Permanent Nursing,Brunel Care  Saffron Gardens,896.00, 01-Sep-2015
318,Revenue,CCHD,South Glos Users in South Glos Homes,Permanent Nursing,Brunel Care  Saffron Gardens,1152.00, 01-Sep-2015
319,Revenue,CCHD,Bed Purchasing - Southmead Hospital,Permanent Nursing,Brunel Care  Saffron Gardens,1166.80, 01-Sep-2015
320,Revenue,CCHD,Bed Purchasing - Southmead Hospital,Permanent Nursing,Brunel Care  Saffron Gardens,1166.80, 29-Sep-2015
321,Revenue,CCHD,Bed Purchasing - South,Respite Planned - Nursing,Brunel Care  Saffron Gardens,1618.29, 01-Sep-2015
322,Revenue,CCHD,Bed Purchasing - South,Permanent Nursing,Brunel Care  Saffron Gardens,2090.64, 01-Sep-2015
323,Revenue,CCHD,Bed Purchasing - South,Permanent Nursing,Brunel Care  Saffron Gardens,2090.64, 29-Sep-2015
324,Revenue,CCHD,Bed Purchasing - Southmead Hospital,Permanent Nursing,Brunel Care  Saffron Gardens,1409.28, 01-Sep-2015
325,Revenue,CCHD,Bed Purchasing - Southmead Hospital,Permanent Nursing,Brunel Care  Saffron Gardens,1409.28, 29-Sep-2015
326,Revenue,CCHD,Bed Purchasing - South,Permanent Nursing,Brunel Care  Saffron Gardens,6796.57, 29-Sep-2015
327,Revenue,CCHD,Bed Purchasing - South,Permanent Nursing,Brunel Care  Saffron Gardens,2378.80, 29-Sep-2015
328,Revenue,CCHD,Bed Purchasing - South,Permanent Nursing,Brunel Care  Saffron Gardens,1889.32, 01-Sep-2015
329,Revenue,CCHD,Bed Purchasing - South,Permanent Nursing,Brunel Care  Saffron Gardens,1889.32, 29-Sep-2015
330,Revenue,CCHD,Bed Purchasing - South,Permanent Residential,Brunel Care  Saffron Gardens,1308.56, 01-Sep-2015
331,Revenue,CCHD,Bed Purchasing - South,Permanent Residential,Brunel Care  Saffron Gardens,1308.56, 29-Sep-2015
332,Revenue,CCHD,Home Care - Elderly - North,Private & Voluntary Home Care,Brunelcare,23503.00, 07-Sep-2015
333,Revenue,CCHD,Home Care - Elderly - North,Private & Voluntary Home Care,Brunelcare,23503.00, 14-Sep-2015
334,Revenue,CCHD,Home Care - Elderly - North,Private & Voluntary Home Care,Brunelcare,23503.00, 21-Sep-2015
335,Revenue,CCHD,Home Care - Elderly - North,Private & Voluntary Home Care,Brunelcare,23503.00, 28-Sep-2015
336,Revenue,CCHD,S75 CCG Interim Beds,Permanent Nursing,Brunelcare,54600.00, 14-Sep-2015
337,Revenue,CCHD,Bed Purchasing - South,Permanent Nursing,Brunelcare,1448.98, 14-Sep-2015
338,Revenue,CCHD,Bed Purchasing - North,Permanent Nursing,Brunelcare,2083.17, 14-Sep-2015
339,Revenue,CCHD,Bed Purchasing - South,Permanent Nursing,Brunelcare,1448.98, 14-Sep-2015
340,Revenue,CCHD,Bed Purchasing - South,Permanent Nursing,Brunelcare,1448.98, 14-Sep-2015
341,Revenue,CCHD,Bed Purchasing - Southmead Hospital,Permanent Nursing,Brunelcare,1962.05, 14-Sep-2015
342,Revenue,CCHD,Bed Purchasing - North,Permanent Nursing,Brunelcare,1448.98, 14-Sep-2015
343,Revenue,CCHD,Bed Purchasing - North,Permanent Nursing,Brunelcare,1448.98, 14-Sep-2015
344,Revenue,CCHD,Bed Purchasing - South,Permanent Nursing,Brunelcare,1448.98, 14-Sep-2015
345,Revenue,CCHD,Bed Purchasing - South,Permanent Nursing,Brunelcare,657.09, 14-Sep-2015
346,Revenue,CCHD,Bed Purchasing - Elderly S117- North,Permanent Nursing,Brunelcare,1448.98, 14-Sep-2015
347,Revenue,CCHD,Bed Purchasing - Elderly S117- North,Permanent Nursing,Brunelcare,1448.98, 14-Sep-2015
348,Revenue,CCHD,Bed Purchasing - North,Permanent Nursing,Brunelcare,1448.98, 14-Sep-2015
349,Revenue,CCHD,Bed Purchasing - Southmead Hospital,Permanent Nursing,Brunelcare,2349.62, 14-Sep-2015
350,Revenue,CCHD,Bed Purchasing - South,Permanent Nursing,Brunelcare,2083.17, 14-Sep-2015
351,Revenue,CCHD,Bed Purchasing - Southmead Hospital,Permanent Nursing,Brunelcare,2083.17, 14-Sep-2015
352,Revenue,CCHD,Bed Purchasing - Southmead Hospital,Permanent Nursing,Brunelcare,2083.17, 14-Sep-2015
353,Revenue,CCHD,Bed purchasing - Elderly S117 - South,Permanent Nursing,Brunelcare,1448.98, 14-Sep-2015
354,Revenue,CCHD,Bed Purchasing - Southmead Hospital,Permanent Nursing,Brunelcare,2083.17, 14-Sep-2015
355,Revenue,CCHD,Bed Purchasing - South,Permanent Nursing,Brunelcare,724.49, 14-Sep-2015
356,Revenue,CCHD,Bed Purchasing - South,Permanent Nursing,Brunelcare,2083.17, 14-Sep-2015
357,Revenue,CCHD,Bed Purchasing - Southmead Hospital,Permanent Nursing,Brunelcare,2083.17, 14-Sep-2015
358,Revenue,CCHD,Bed Purchasing - Southmead Hospital,Permanent Nursing,Brunelcare,1448.98, 14-Sep-2015
359,Revenue,CCHD,Bed Purchasing - Elderly S117- North,Permanent Nursing,Brunelcare,1448.98, 14-Sep-2015
360,Revenue,CCHD,Bed Purchasing - South,Permanent Nursing,Brunelcare,1448.98, 14-Sep-2015
361,Revenue,CCHD,Bed Purchasing - Southmead Hospital,Permanent Nursing,Brunelcare,2083.17, 14-Sep-2015
362,Revenue,CCHD,Bed Purchasing - South,Permanent Nursing,Brunelcare,2483.01, 07-Sep-2015
363,Revenue,CCHD,Bed Purchasing - Southmead Hospital,Permanent Nursing,Brunelcare,2253.74, 07-Sep-2015
364,Revenue,CCHD,Bed Purchasing - South,Permanent Nursing,Brunelcare,2147.59, 07-Sep-2015
365,Revenue,CCHD,Bed Purchasing - South,Permanent Nursing,Brunelcare,2530.57, 07-Sep-2015
366,Revenue,CCHD,Bed Purchasing - North,Permanent Nursing,Brunelcare,2183.15, 07-Sep-2015
367,Revenue,CCHD,Bed Purchasing - Elderly S117- North,Permanent Nursing,Brunelcare,3135.43, 07-Sep-2015
368,Revenue,CCHD,Bed Purchasing - Elderly S117- North,Permanent Nursing,Brunelcare,3135.43, 07-Sep-2015
369,Revenue,CCHD,Bed Purchasing - South,Permanent Nursing,Brunelcare,2320.39, 07-Sep-2015
370,Revenue,CCHD,Bed Purchasing - Southmead Hospital,Permanent Nursing,Brunelcare,1435.39, 07-Sep-2015
371,Revenue,CCHD,Bed Purchasing - Southmead Hospital,Permanent Nursing,Brunelcare,2461.13, 07-Sep-2015
372,Revenue,CCHD,Bed Purchasing - South,Permanent Nursing,Brunelcare,2576.10, 07-Sep-2015
373,Revenue,CCHD,Bed Purchasing - South,Permanent Nursing,Brunelcare,2285.50, 07-Sep-2015
374,Revenue,CCHD,Bed purchasing - Elderly S117 - South,Permanent Nursing,Brunelcare,3135.43, 07-Sep-2015
375,Revenue,CCHD,Bed Purchasing - North,Permanent Nursing,Brunelcare,2501.61, 07-Sep-2015
376,Revenue,CCHD,Bed Purchasing - Southmead Hospital,Permanent Nursing,Brunelcare,2400.42, 07-Sep-2015
377,Revenue,CCHD,Bed Purchasing - North,Permanent Nursing,Brunelcare,2516.31, 07-Sep-2015
378,Revenue,CCHD,Bed Purchasing - North,Permanent Nursing,Brunelcare,2576.10, 07-Sep-2015
379,Revenue,CCHD,Bed Purchasing - Southmead Hospital,Permanent Nursing,Brunelcare,2576.10, 07-Sep-2015
380,Revenue,CCHD,Bed Purchasing - Southmead Hospital,Permanent Nursing,Brunelcare,2478.23, 07-Sep-2015
381,Revenue,CCHD,Bed Purchasing - Elderly S117- North,Permanent Nursing,Brunelcare,3135.43, 07-Sep-2015
382,Revenue,CCHD,Bed Purchasing - Southmead Hospital,Permanent Nursing,Brunelcare,2498.20, 07-Sep-2015
383,Revenue,CCHD,S75 CCG Interim Beds,Permanent Nursing,Brunelcare,15200.00, 07-Sep-2015
384,Revenue,CCHD,Home Care - Elderly - South,Other Small Contracts,Brunelcare,2804.27, 02-Sep-2015
385,Revenue,CCHD,Home Care - Elderly - North,Other Small Contracts,Brunelcare,2564.73, 02-Sep-2015
386,Revenue,CCHD,Day Care - South,Day Care / Social Activities,Brunelcare,24.78, 02-Sep-2015
387,Revenue,CCHD,Home Care - Elderly - South,Other Small Contracts,Brunelcare,2841.44, 02-Sep-2015
388,Revenue,CCHD,Home Care - Elderly - North,Other Small Contracts,Brunelcare,2705.15, 02-Sep-2015
389,Revenue,CCHD,Day Care - South,Day Care / Social Activities,Brunelcare,24.78, 02-Sep-2015
390,Revenue,CCHD,Home Care - Elderly - South,Other Small Contracts,Brunelcare,2899.26, 02-Sep-2015
391,Revenue,CCHD,Home Care - Elderly - North,Other Small Contracts,Brunelcare,2657.95, 02-Sep-2015
392,Revenue,CCHD,Day Care - South,Day Care / Social Activities,Brunelcare,28.91, 02-Sep-2015
393,Revenue,CCHD,Home Care - Elderly - South,Other Small Contracts,Brunelcare,2944.69, 09-Sep-2015
394,Revenue,CCHD,Home Care - Elderly - North,Other Small Contracts,Brunelcare,2776.52, 09-Sep-2015
395,Revenue,CCHD,Day Care - South,Day Care / Social Activities,Brunelcare,28.91, 09-Sep-2015
396,Revenue,CCHD,Home Care - Elderly - South,Other Small Contracts,Brunelcare,2709.28, 09-Sep-2015
397,Revenue,CCHD,Home Care - Elderly - North,Other Small Contracts,Brunelcare,2676.24, 09-Sep-2015
398,Revenue,CCHD,Day Care - South,Day Care / Social Activities,Brunelcare,28.91, 09-Sep-2015
399,Revenue,CCHD,Home Care - Elderly - South,Other Small Contracts,Brunelcare,2961.21, 23-Sep-2015
400,Revenue,CCHD,Home Care - Elderly - North,Other Small Contracts,Brunelcare,2754.71, 23-Sep-2015
401,Revenue,CCHD,Day Care - South,Day Care / Social Activities,Brunelcare,28.91, 23-Sep-2015
402,Revenue,CCHD,Home Care - Elderly - South,Other Small Contracts,Brunelcare,2866.22, 23-Sep-2015
403,Revenue,CCHD,Home Care - Elderly - North,Other Small Contracts,Brunelcare,2601.90, 23-Sep-2015
404,Revenue,CCHD,Information Systems - Software,Computer Equipment - Purchase,BT Global Services Solutions,985.98, 28-Sep-2015
405,Revenue,CCHD,Bed Purchasing - Southmead Hospital,Permanent Nursing,Bupa Care Services  Bridge House,1924.68, 01-Sep-2015
406,Revenue,CCHD,Bed Purchasing - Southmead Hospital,Permanent Nursing,Bupa Care Services  Bridge House,1924.68, 29-Sep-2015
407,Revenue,CCHD,Bed Purchasing - Southmead Hospital,Permanent Nursing,Bupa Care Services  Bridge House,1696.32, 01-Sep-2015
408,Revenue,CCHD,Bed Purchasing - Southmead Hospital,Permanent Nursing,Bupa Care Services  Bridge House,1696.32, 29-Sep-2015
409,Revenue,CCHD,Bed Purchasing - North,Permanent Nursing,Bupa Care Services  Bridge House,6002.40, 01-Sep-2015
410,Revenue,CCHD,South Glos Users in all other LA Homes,Permanent Nursing,Bupa Care Services  Bridge House,616.56, 01-Sep-2015
411,Revenue,CCHD,Bed Purchasing - North,Permanent Nursing,Bupa Care Services  Bridge House,6002.40, 29-Sep-2015
412,Revenue,CCHD,South Glos Users in all other LA Homes,Permanent Nursing,Bupa Care Services  Bridge House,616.56, 29-Sep-2015
413,Revenue,CCHD,Bed Purchasing - North,Permanent Residential,Bupa Care Services  Bridge House,2008.72, 01-Sep-2015
414,Revenue,CCHD,Bed Purchasing - North,Permanent Residential,Bupa Care Services  Bridge House,2008.72, 29-Sep-2015
415,Revenue,CCHD,Bed Purchasing - Southmead Hospital,Permanent Nursing,Bupa Care Services  Bridge House,4655.87, 29-Sep-2015
416,Revenue,CCHD,Sexual Health,Other Small Contracts,Cadbury Heath Healthcare,1176.92, 18-Sep-2015
417,Revenue,CCHD,Home Care - Elderly - North,Day Care / Social Activities,Camphill Communities Thornbury Limited,1000.76, 02-Sep-2015
418,Revenue,CCHD,Home Care - Elderly - North,Supported Living,Camphill Communities Thornbury Limited,1264.74, 02-Sep-2015
419,Revenue,CCHD,Home Care - Elderly - North,Day Care / Social Activities,Camphill Communities Thornbury Limited,933.78, 09-Sep-2015
420,Revenue,CCHD,Home Care - Elderly - North,Supported Living,Camphill Communities Thornbury Limited,717.08, 09-Sep-2015
421,Revenue,CCHD,Home Care - Elderly - North,Day Care / Social Activities,Camphill Communities Thornbury Limited,847.10, 16-Sep-2015
422,Revenue,CCHD,Home Care - Elderly - North,Supported Living,Camphill Communities Thornbury Limited,524.02, 16-Sep-2015
423,Revenue,CCHD,Home Care - Elderly - North,Day Care / Social Activities,Camphill Communities Thornbury Limited,1095.32, 24-Sep-2015
424,Revenue,CCHD,Home Care - Elderly - North,Supported Living,Camphill Communities Thornbury Limited,918.02, 24-Sep-2015
425,Revenue,CCHD,Bed Purchasing - Elderly S117- North,Permanent Residential,Canjayor,2359.24, 01-Sep-2015
426,Revenue,CCHD,Bed Purchasing - Elderly S117- North,Permanent Residential,Canjayor,2359.24, 29-Sep-2015
427,Revenue,CCHD,Home Care - Elderly - South,Other Small Contracts,Care 1st Homecare,4959.75, 09-Sep-2015
428,Revenue,CCHD,Home Care - Elderly - North,One-off Planned Direct Payment,Care 1st Homecare,42.50, 09-Sep-2015
429,Revenue,CCHD,Home Care - Elderly - North,Other Small Contracts,Care 1st Homecare,4300.10, 09-Sep-2015
430,Revenue,CCHD,Home Care - Elderly - South,Other Small Contracts,Care 1st Homecare,4658.00, 09-Sep-2015
431,Revenue,CCHD,Home Care - Elderly - South,Supported Living,Care 1st Homecare,25.50, 09-Sep-2015
432,Revenue,CCHD,Home Care - Elderly - North,One-off Planned Direct Payment,Care 1st Homecare,21.25, 09-Sep-2015
433,Revenue,CCHD,Home Care - Elderly - North,Other Small Contracts,Care 1st Homecare,3608.25, 09-Sep-2015
434,Revenue,CCHD,Purchase of Non-Res Care - North,Day Care / Social Activities,Care Futures,528.80, 14-Sep-2015
435,Revenue,CCHD,Purchase of Non-Res Care - South,Day Care / Social Activities,Care Futures,2096.32, 14-Sep-2015
436,Revenue,CCHD,Home Care - Elderly - South,Other Small Contracts,Care Horizons Limited,432.00, 18-Sep-2015
437,Revenue,CCHD,Home Care - Elderly - North,Day Care / Social Activities,Care Horizons Limited,162.00, 18-Sep-2015
438,Revenue,CCHD,Home Care - Elderly - North,Other Small Contracts,Care Horizons Limited,274.50, 18-Sep-2015
439,Revenue,CCHD,Home Care - Elderly - South,Other Small Contracts,Care Horizons Limited,423.00, 14-Sep-2015
440,Revenue,CCHD,Home Care - Elderly - North,Day Care / Social Activities,Care Horizons Limited,162.00, 14-Sep-2015
441,Revenue,CCHD,Home Care - Elderly - North,Other Small Contracts,Care Horizons Limited,378.00, 14-Sep-2015
442,Revenue,CCHD,Home Care - Elderly - South,Other Small Contracts,Care Horizons Limited,432.00, 28-Sep-2015
443,Revenue,CCHD,Home Care - Elderly - North,Day Care / Social Activities,Care Horizons Limited,162.00, 28-Sep-2015
444,Revenue,CCHD,Home Care - Elderly - North,Other Small Contracts,Care Horizons Limited,382.50, 28-Sep-2015
445,Revenue,CCHD,Supported Living - North,Private & Voluntary Home Care,Care Horizons Limited,4670.22, 10-Sep-2015
446,Revenue,CCHD,Supported Living - North,Day Care / Social Activities,Care Horizons Limited,5232.62, 25-Sep-2015
447,Revenue,CCHD,Purchase of Non-Res Care - North,Day Care / Social Activities,Care Horizons Limited,1596.70, 25-Sep-2015
448,Revenue,CCHD,Purchase of Non-Res Care - North,Day Care / Social Activities,Care Horizons Limited,1533.83, 28-Sep-2015
449,Revenue,CCHD,Home Care - Elderly - South,Other Small Contracts,Care UK,3719.89, 01-Sep-2015
450,Revenue,CCHD,Home Care - Elderly - North,Other Small Contracts,Care UK,1977.06, 01-Sep-2015
451,Revenue,CCHD,Home Care - Elderly - South,Other Small Contracts,Care UK,3700.04, 10-Sep-2015
452,Revenue,CCHD,Home Care - Elderly - North,Other Small Contracts,Care UK,1992.94, 10-Sep-2015
453,Revenue,CCHD,Home Care - Elderly - South,Other Small Contracts,Care UK,3731.80, 15-Sep-2015
454,Revenue,CCHD,Home Care - Elderly - North,Other Small Contracts,Care UK,1774.59, 15-Sep-2015
455,Revenue,CCHD,Home Care - Elderly - South,Other Small Contracts,Care UK,3648.43, 16-Sep-2015
456,Revenue,CCHD,Home Care - Elderly - North,Other Small Contracts,Care UK,1635.64, 16-Sep-2015
457,Revenue,CCHD,Home Care - Elderly - South,Other Small Contracts,Care UK,3493.60, 23-Sep-2015
458,Revenue,CCHD,Home Care - Elderly - North,Other Small Contracts,Care UK,1341.86, 23-Sep-2015
459,Revenue,CCHD,Home Care - Elderly - South,Other Small Contracts,Carers R Us (Bristol) Limited,1005.96, 02-Sep-2015
460,Revenue,CCHD,Home Care - Elderly - North,Other Small Contracts,Carers R Us (Bristol) Limited,218.16, 02-Sep-2015
461,Revenue,CCHD,Home Care - Elderly - South,Other Small Contracts,Carers R Us (Bristol) Limited,997.88, 21-Sep-2015
462,Revenue,CCHD,Home Care - Elderly - North,Other Small Contracts,Carers R Us (Bristol) Limited,202.00, 21-Sep-2015
463,Revenue,CCHD,Home Care - Elderly - South,Other Small Contracts,Carers R Us (Bristol) Limited,1010.00, 21-Sep-2015
464,Revenue,CCHD,Home Care - Elderly - North,Other Small Contracts,Carers R Us (Bristol) Limited,145.44, 21-Sep-2015
465,Revenue,CCHD,Home Care - Elderly - South,Other Small Contracts,Carers R Us (Bristol) Limited,814.63, 21-Sep-2015
466,Revenue,CCHD,Home Care - Elderly - North,Other Small Contracts,Carers R Us (Bristol) Limited,177.76, 21-Sep-2015
467,Revenue,CCHD,Social Lettings Agency,Fees - General,Individual,10.53, 01-Sep-2015
468,Revenue,CCHD,Social Lettings Agency,Fees & Charges Income - General,Individual,595.11, 01-Sep-2015
469,Revenue,CCHD,"Physical Activity, Nutrition & Obesity",Training Expenses,Central YMCA,549.00, 30-Sep-2015
470,Revenue,CCHD,Bed Purchasing - North,Permanent Residential,Charlton House,919.52, 01-Sep-2015
471,Revenue,CCHD,Bed Purchasing - North,Permanent Residential,Charlton House,919.52, 29-Sep-2015
472,Revenue,CCHD,Training - Adult Services,Training Expenses,Chartered Institute of Environmental Health,609.75, 17-Sep-2015
473,Revenue,CCHD,Home Care - Elderly - South,Other Small Contracts,Cherish Able Care Limited,4440.00, 04-Sep-2015
474,Revenue,CCHD,Home Care - Elderly - North,Other Small Contracts,Cherish Able Care Limited,1913.54, 04-Sep-2015
475,Revenue,CCHD,Home Care - Elderly - South,Other Small Contracts,Cherish Able Care Limited,4456.32, 11-Sep-2015
476,Revenue,CCHD,Home Care - Elderly - North,Other Small Contracts,Cherish Able Care Limited,2367.98, 11-Sep-2015
477,Revenue,CCHD,Home Care - Elderly - South,Other Small Contracts,Cherish Able Care Limited,4287.52, 18-Sep-2015
478,Revenue,CCHD,Home Care - Elderly - North,Other Small Contracts,Cherish Able Care Limited,2380.64, 18-Sep-2015
479,Revenue,CCHD,Home Care - Elderly - South,Other Small Contracts,Cherish Able Care Limited,4444.87, 24-Sep-2015
480,Revenue,CCHD,Home Care - Elderly - North,Other Small Contracts,Cherish Able Care Limited,2347.13, 24-Sep-2015
481,Revenue,CCHD,Bed purchasing -S28A  Under 65 - North,Permanent Residential,Chescombe Lodge,8791.96, 01-Sep-2015
482,Revenue,CCHD,Bed purchasing -S28A  Under 65 - North,Permanent Residential,Chescombe Lodge,8791.96, 29-Sep-2015
483,Revenue,CCHD,Bed Purchasing - Southmead Hospital,Permanent Nursing,Cholwell House Nursing Home Ltd,1989.76, 01-Sep-2015
484,Revenue,CCHD,Bed Purchasing - Southmead Hospital,Permanent Nursing,Cholwell House Nursing Home Ltd,1989.76, 29-Sep-2015
485,Revenue,CCHD,Training - Adult Services,Training Expenses,Individual,600.00, 25-Sep-2015
486,Revenue,CCHD,Bed Purchasing - North,Permanent Residential,Church House,10621.16, 01-Sep-2015
487,Revenue,CCHD,Bed Purchasing - North,Permanent Residential,Church House,10621.16, 29-Sep-2015
488,Revenue,CCHD,Bed Purchasing - North,Permanent Residential,Church House,5984.56, 01-Sep-2015
489,Revenue,CCHD,Bed Purchasing - North,Permanent Residential,Church House,5984.56, 29-Sep-2015
490,Revenue,CCHD,Section 117 Placements MH Younger,Permanent Residential,Church House,7649.04, 01-Sep-2015
491,Revenue,CCHD,Section 117 Placements MH Younger,Permanent Residential,Church House,7649.04, 29-Sep-2015
492,Revenue,CCHD,Bed Purchasing - Southmead Hospital,Permanent Nursing,Churchill Property Services,1698.04, 01-Sep-2015
493,Revenue,CCHD,Bed Purchasing - Southmead Hospital,Permanent Nursing,Churchill Property Services,1698.04, 29-Sep-2015
494,Revenue,CCHD,Learning Difficulties,Premises Hire,Circadian Trust,793.00, 03-Sep-2015
495,Revenue,CCHD,Learning Difficulties,Premises Hire,Circadian Trust,617.00, 24-Sep-2015
496,Revenue,CCHD,18-25 Year Olds,Permanent Residential,Citibase Watford,7088.60, 01-Sep-2015
497,Revenue,CCHD,18-25 Year Olds,Permanent Residential,Citibase Watford,7088.60, 29-Sep-2015
498,Revenue,CCHD,Bed Purchasing - Elderly S117- North,Permanent Residential,Citibase Watford,9028.60, 01-Sep-2015
499,Revenue,CCHD,Bed Purchasing - Elderly S117- North,Permanent Residential,Citibase Watford,9028.60, 29-Sep-2015
500,Revenue,CCHD,18-25 Year Olds,Permanent Residential,Citibase Watford,5514.44, 01-Sep-2015
501,Revenue,CCHD,18-25 Year Olds,Permanent Residential,Citibase Watford,5514.44, 29-Sep-2015
502,Revenue,CCHD,Bed Purchasing - South,Permanent Residential,Cleeve Lodge,568.08, 01-Sep-2015
503,Revenue,CCHD,Bed Purchasing - South,Permanent Residential,Cleeve Lodge,568.08, 29-Sep-2015
504,Revenue,CCHD,Bed Purchasing - Southmead Hospital,Permanent Residential,Cleeve Lodge,1475.80, 01-Sep-2015
505,Revenue,CCHD,Bed Purchasing - Southmead Hospital,Permanent Residential,Cleeve Lodge,1475.80, 29-Sep-2015
506,Revenue,CCHD,Bed Purchasing - South,Respite Planned - Residential,Cleeve Lodge,8873.57, 29-Sep-2015
507,Revenue,CCHD,Bed Purchasing - South,Respite Planned - Residential,Cleeve Lodge,2460.00, 29-Sep-2015
508,Revenue,CCHD,Bed Purchasing - South,Respite Planned - Residential,Cleeve Lodge,8873.57, 29-Sep-2015
509,Revenue,CCHD,Bed Purchasing - South,Respite Planned - Residential,Cleeve Lodge,2460.00, 29-Sep-2015
510,Revenue,CCHD,Bed Purchasing - South,Permanent Residential,Cleeve Lodge,1827.76, 01-Sep-2015
511,Revenue,CCHD,Bed Purchasing - South,Permanent Residential,Cleeve Lodge,1827.76, 29-Sep-2015
512,Revenue,CCHD,Bed Purchasing - South,Permanent Residential,Collingwood Residential Home,3002.17, 29-Sep-2015
513,Revenue,CCHD,Swift Dump Code,Permanent Residential,Collingwood Residential Home,764.22, 29-Sep-2015
514,Revenue,CCHD,Bed Purchasing - South,Permanent Residential,Collingwood Residential Home,1456.80, 01-Sep-2015
515,Revenue,CCHD,Bed Purchasing - South,Permanent Residential,Collingwood Residential Home,1456.80, 29-Sep-2015
516,Revenue,CCHD,Bed Purchasing - South,Permanent Residential,Collingwood Residential Home,1466.04, 01-Sep-2015
517,Revenue,CCHD,Bed Purchasing - South,Permanent Residential,Collingwood Residential Home,1466.04, 29-Sep-2015
518,Revenue,CCHD,Bed Purchasing - South,Permanent Residential,Collingwood Residential Home,1079.12, 01-Sep-2015
519,Revenue,CCHD,Bed Purchasing - South,Permanent Residential,Collingwood Residential Home,1079.12, 29-Sep-2015
520,Revenue,CCHD,Bed Purchasing - South,Permanent Residential,Collingwood Residential Home,1333.28, 01-Sep-2015
521,Revenue,CCHD,Bed Purchasing - South,Permanent Residential,Collingwood Residential Home,1333.28, 29-Sep-2015
522,Revenue,CCHD,Bed Purchasing - South,Permanent Residential,Collingwood Residential Home,1327.16, 01-Sep-2015
523,Revenue,CCHD,Bed Purchasing - South,Permanent Residential,Collingwood Residential Home,1327.16, 29-Sep-2015
524,Revenue,CCHD,Health Inequalities,Other Small Contracts,Community Ignite,750.00, 10-Sep-2015
525,Revenue,CCHD,Bed Purchasing - South,Permanent Nursing,Community Integrated Care,664.84, 01-Sep-2015
526,Revenue,CCHD,Bed Purchasing - South,Permanent Nursing,Community Integrated Care,664.84, 29-Sep-2015
527,Revenue,CCHD,Bed and Breakfast,Bed & Breakfast,Connolly & Callaghan Limited,476.00, 08-Sep-2015
528,Revenue,CCHD,Bed and Breakfast,Bed & Breakfast,Connolly & Callaghan Limited,476.00, 08-Sep-2015
529,Revenue,CCHD,Bed and Breakfast,Bed & Breakfast,Connolly & Callaghan Limited,686.00, 10-Sep-2015
530,Revenue,CCHD,Homeless - Private Sector Leasing,Bed & Breakfast,Connolly & Callaghan Limited,686.00, 24-Sep-2015
531,Revenue,CCHD,Bed and Breakfast,Bed & Breakfast,Connolly & Callaghan Limited,441.00, 23-Sep-2015
532,Revenue,CCHD,Homeless - Private Sector Leasing,Bed & Breakfast,Connolly & Callaghan Limited,441.00, 24-Sep-2015
533,Revenue,CCHD,Bed and Breakfast,Bed & Breakfast,Connolly & Callaghan Limited,700.00, 28-Sep-2015
534,Revenue,CCHD,Bed and Breakfast,Bed & Breakfast,Connolly & Callaghan Limited,616.00, 24-Sep-2015
535,Revenue,CCHD,Bed and Breakfast,Bed & Breakfast,Connolly & Callaghan Limited,476.00, 24-Sep-2015
536,Revenue,CCHD,Homeless - Private Sector Leasing,Bed & Breakfast,Connolly & Callaghan Limited,686.00, 30-Sep-2015
537,Revenue,CCHD,Bed and Breakfast,Bed & Breakfast,Connolly & Callaghan Limited,630.00, 23-Sep-2015
538,Revenue,CCHD,Homeless - Private Sector Leasing,Bed & Breakfast,Connolly & Callaghan Limited,511.00, 23-Sep-2015
539,Revenue,CCHD,Bed and Breakfast,Bed & Breakfast,Connolly & Callaghan Limited,686.00, 23-Sep-2015
540,Revenue,CCHD,Bed and Breakfast,Bed & Breakfast,Connolly & Callaghan Limited,441.00, 15-Sep-2015
541,Revenue,CCHD,Homeless - Private Sector Leasing,Bed & Breakfast,Connolly & Callaghan Limited,441.00, 11-Sep-2015
542,Revenue,CCHD,Bed and Breakfast,Bed & Breakfast,Connolly & Callaghan Limited,700.00, 11-Sep-2015
543,Revenue,CCHD,Bed and Breakfast,Bed & Breakfast,Connolly & Callaghan Limited,616.00, 11-Sep-2015
544,Revenue,CCHD,Bed and Breakfast,Bed & Breakfast,Connolly & Callaghan Limited,476.00, 11-Sep-2015
545,Revenue,CCHD,Bed and Breakfast,Bed & Breakfast,Connolly & Callaghan Limited,511.00, 11-Sep-2015
546,Revenue,CCHD,Homeless - Private Sector Leasing,Bed & Breakfast,Connolly & Callaghan Limited,686.00, 11-Sep-2015
547,Revenue,CCHD,Homeless - Private Sector Leasing,Bed & Breakfast,Connolly & Callaghan Limited,686.00, 11-Sep-2015
548,Revenue,CCHD,Bed and Breakfast,Bed & Breakfast,Connolly & Callaghan Limited,630.00, 11-Sep-2015
549,Revenue,CCHD,Homeless - Private Sector Leasing,Bed & Breakfast,Connolly & Callaghan Limited,511.00, 11-Sep-2015
550,Revenue,CCHD,Bed and Breakfast,Bed & Breakfast,Connolly & Callaghan Limited,686.00, 11-Sep-2015
551,Revenue,CCHD,Bed and Breakfast,Bed & Breakfast,Connolly & Callaghan Limited,441.00, 17-Sep-2015
552,Revenue,CCHD,Homeless - Private Sector Leasing,Bed & Breakfast,Connolly & Callaghan Limited,441.00, 17-Sep-2015
553,Revenue,CCHD,Bed and Breakfast,Bed & Breakfast,Connolly & Callaghan Limited,700.00, 17-Sep-2015
554,Revenue,CCHD,Bed and Breakfast,Bed & Breakfast,Connolly & Callaghan Limited,616.00, 30-Sep-2015
555,Revenue,CCHD,Bed and Breakfast,Bed & Breakfast,Connolly & Callaghan Limited,476.00, 17-Sep-2015
556,Revenue,CCHD,Bed and Breakfast,Bed & Breakfast,Connolly & Callaghan Limited,498.00, 17-Sep-2015
557,Revenue,CCHD,Bed and Breakfast,Bed & Breakfast,Connolly & Callaghan Limited,511.00, 17-Sep-2015
558,Revenue,CCHD,Homeless - Private Sector Leasing,Bed & Breakfast,Connolly & Callaghan Limited,686.00, 17-Sep-2015
559,Revenue,CCHD,Homeless - Private Sector Leasing,Bed & Breakfast,Connolly & Callaghan Limited,686.00, 17-Sep-2015
560,Revenue,CCHD,Bed and Breakfast,Bed & Breakfast,Connolly & Callaghan Limited,630.00, 17-Sep-2015
561,Revenue,CCHD,Homeless - Private Sector Leasing,Bed & Breakfast,Connolly & Callaghan Limited,511.00, 17-Sep-2015
562,Revenue,CCHD,Bed and Breakfast,Bed & Breakfast,Connolly & Callaghan Limited,440.00, 17-Sep-2015
563,Revenue,CCHD,Homeless - Private Sector Leasing,Bed & Breakfast,Connolly & Callaghan Limited,441.00, 28-Sep-2015
564,Revenue,CCHD,Bed and Breakfast,Bed & Breakfast,Connolly & Callaghan Limited,700.00, 30-Sep-2015
565,Revenue,CCHD,Bed and Breakfast,Bed & Breakfast,Connolly & Callaghan Limited,616.00, 28-Sep-2015
566,Revenue,CCHD,Bed and Breakfast,Bed & Breakfast,Connolly & Callaghan Limited,686.00, 28-Sep-2015
567,Revenue,CCHD,Bed and Breakfast,Bed & Breakfast,Connolly & Callaghan Limited,581.00, 28-Sep-2015
568,Revenue,CCHD,Bed and Breakfast,Bed & Breakfast,Connolly & Callaghan Limited,511.00, 30-Sep-2015
569,Revenue,CCHD,Homeless - Private Sector Leasing,Bed & Breakfast,Connolly & Callaghan Limited,686.00, 28-Sep-2015
570,Revenue,CCHD,Bed and Breakfast,Bed & Breakfast,Connolly & Callaghan Limited,630.00, 28-Sep-2015
571,Revenue,CCHD,Homeless - Private Sector Leasing,Bed & Breakfast,Connolly & Callaghan Limited,511.00, 28-Sep-2015
572,Revenue,CCHD,Bed and Breakfast,Bed & Breakfast,Connolly & Callaghan Limited,616.00, 28-Sep-2015
573,Revenue,CCHD,Bed and Breakfast,Bed & Breakfast,Connolly & Callaghan Limited,511.00, 24-Sep-2015
574,Revenue,CCHD,Bed Purchasing - Southmead Hospital,Permanent Residential,Coombs Wood House,968.80, 01-Sep-2015
575,Revenue,CCHD,Bed Purchasing - Southmead Hospital,Permanent Residential,Coombs Wood House,2144.80, 29-Sep-2015
576,Revenue,CCHD,Bed Purchasing - S28A - Over 65- North,Permanent Residential,Cream Ii Ltd  Longrun House,8102.76, 01-Sep-2015
577,Revenue,CCHD,Bed Purchasing - S28A - Over 65- North,Permanent Residential,Cream Ii Ltd  Longrun House,8102.76, 29-Sep-2015
578,Revenue,CCHD,Bed Purchasing - South,Permanent Residential,Cream Ii Ltd  Longrun House,5689.32, 01-Sep-2015
579,Revenue,CCHD,Bed Purchasing - South,Permanent Residential,Cream Ii Ltd  Longrun House,5689.32, 29-Sep-2015
580,Revenue,CCHD,Bed purchasing -S28A  Under 65 - North,Permanent Residential,Creedy Court,9392.72, 01-Sep-2015
581,Revenue,CCHD,Bed purchasing -S28A  Under 65 - North,Permanent Residential,Creedy Court,9392.72, 29-Sep-2015
582,Revenue,CCHD,Bed Purchasing - S28A - Over 65- North,Permanent Residential,Creedy Court,7806.28, 01-Sep-2015
583,Revenue,CCHD,Bed Purchasing - S28A - Over 65- North,Permanent Residential,Creedy Court,7806.28, 29-Sep-2015
584,Revenue,CCHD,Bed Purchasing - North,Permanent Residential,Creedy Court,12716.84, 01-Sep-2015
585,Revenue,CCHD,Bed Purchasing - North,Permanent Residential,Creedy Court,12716.84, 29-Sep-2015
586,Revenue,CCHD,Public Health Project Funding,Consultants Fees,D Harvey Consulting Limited,3081.65, 01-Sep-2015
587,Revenue,CCHD,Public Health Project Funding,Consultants Fees,D Harvey Consulting Limited,4797.95, 03-Sep-2015
588,Revenue,CCHD,Bed Purchasing - South,Permanent Residential,Daneswood,11113.64, 01-Sep-2015
589,Revenue,CCHD,Bed Purchasing - South,Permanent Residential,Daneswood,11113.64, 29-Sep-2015
590,Revenue,CCHD,Bed Purchasing - North,Permanent Residential,Daneswood,9213.64, 01-Sep-2015
591,Revenue,CCHD,Bed Purchasing - North,Permanent Residential,Daneswood,9213.64, 29-Sep-2015
592,Revenue,CCHD,Bed Purchasing - Elderly S117- North,Permanent Nursing,Danshell Healthcare Group,11653.52, 01-Sep-2015
593,Revenue,CCHD,Bed Purchasing - Elderly S117- North,Permanent Nursing,Danshell Healthcare Group,11653.52, 29-Sep-2015
594,Revenue,CCHD,Learning Difficulties PSL,Other Supplies & Services,Individual,2105.50, 22-Sep-2015
595,Revenue,CCHD,SLA Grants - Support Serv,Grants to Voluntary Bodies,Individual,500.00, 28-Sep-2015
596,Revenue,CCHD,Purchase of Non-Res Care - North,Day Care / Social Activities,Design 4 Life Ltd,1326.60, 14-Sep-2015
597,Revenue,CCHD,Purchase of Non-Res Care - North,Private & Voluntary Home Care,Design 4 Life Ltd,1469.88, 24-Sep-2015
598,Revenue,CCHD,Purchase of Non-Res Care - North,Day Care / Social Activities,Design 4 Life Ltd,530.64, 24-Sep-2015
599,Revenue,CCHD,Home Care - Elderly - South,Supported Living,Design House,5349.36, 01-Sep-2015
600,Revenue,CCHD,Home Care - Elderly - South,Supported Living,Design House,2674.68, 01-Sep-2015
601,Revenue,CCHD,Home Care - Elderly - South,Supported Living,Design House,2674.68, 29-Sep-2015
602,Revenue,CCHD,Home Care - Elderly - South,Supported Living,Design House,6355.52, 01-Sep-2015
603,Revenue,CCHD,Home Care - Elderly - South,Supported Living,Design House,3177.76, 01-Sep-2015
604,Revenue,CCHD,Home Care - Elderly - South,Supported Living,Design House,3177.76, 29-Sep-2015
605,Revenue,CCHD,Home Care - Elderly - North,Supported Living,Design House,6493.76, 01-Sep-2015
606,Revenue,CCHD,Home Care - Elderly - North,Supported Living,Design House,3246.88, 01-Sep-2015
607,Revenue,CCHD,Home Care - Elderly - North,Supported Living,Design House,3246.88, 29-Sep-2015
608,Revenue,CCHD,Home Care - Elderly - North,Supported Living,Design House,7683.72, 01-Sep-2015
609,Revenue,CCHD,Home Care - Elderly - North,Supported Living,Design House,2794.08, 01-Sep-2015
610,Revenue,CCHD,Home Care - Elderly - North,Supported Living,Design House,2794.08, 29-Sep-2015
611,Revenue,CCHD,Home Care - Elderly - South,Supported Living,Design House,2463.04, 01-Sep-2015
612,Revenue,CCHD,Home Care - Elderly - South,Supported Living,Design House,2463.04, 29-Sep-2015
613,Revenue,CCHD,Home Care - Elderly - South,Supported Living,Design House,2186.24, 01-Sep-2015
614,Revenue,CCHD,Home Care - Elderly - South,Supported Living,Design House,2186.24, 29-Sep-2015
615,Revenue,CCHD,Home Care - Elderly - South,Supported Living,Design House,2349.08, 01-Sep-2015
616,Revenue,CCHD,Home Care - Elderly - South,Supported Living,Design House,2349.08, 29-Sep-2015
617,Revenue,CCHD,Home Care - Elderly - South,Supported Living,Design House,3972.52, 01-Sep-2015
618,Revenue,CCHD,Home Care - Elderly - South,Supported Living,Design House,3972.52, 29-Sep-2015
619,Revenue,CCHD,Home Care - Elderly - South,Supported Living,Design House,5512.16, 01-Sep-2015
620,Revenue,CCHD,Home Care - Elderly - South,Supported Living,Design House,2707.24, 01-Sep-2015
621,Revenue,CCHD,Home Care - Elderly - South,Supported Living,Design House,2707.24, 29-Sep-2015
622,Revenue,CCHD,Home Care - Elderly - South,Supported Living,Design House,5512.16, 01-Sep-2015
623,Revenue,CCHD,Home Care - Elderly - South,Supported Living,Design House,2756.08, 01-Sep-2015
624,Revenue,CCHD,Home Care - Elderly - South,Supported Living,Design House,2756.08, 29-Sep-2015
625,Revenue,CCHD,Home Care - Elderly - South,Supported Living,Design House,2107.28, 01-Sep-2015
626,Revenue,CCHD,Home Care - Elderly - South,Supported Living,Design House,2107.28, 29-Sep-2015
627,Revenue,CCHD,Home Care - Elderly - South,Supported Living,Design House,2856.05, 01-Sep-2015
628,Revenue,CCHD,Home Care - Elderly - South,Supported Living,Design House,1900.80, 29-Sep-2015
629,Revenue,CCHD,Home Care - Elderly - South,Supported Living,Design House,2107.28, 01-Sep-2015
630,Revenue,CCHD,Home Care - Elderly - South,Supported Living,Design House,2107.28, 29-Sep-2015
631,Revenue,CCHD,Bed Purchasing - South,Permanent Residential,Devon & Cornwall Autistic Community Trus,8880.84, 01-Sep-2015
632,Revenue,CCHD,Bed Purchasing - South,Permanent Residential,Devon & Cornwall Autistic Community Trus,8880.84, 29-Sep-2015
633,Revenue,CCHD,Tenancy Start Up Scheme,Other Supplies & Services,DHB Property Rentals,2360.76, 30-Sep-2015
634,Revenue,CCHD,Home Care - Elderly - South,Day Care / Social Activities,Dhek Bhal,196.00, 28-Sep-2015
635,Revenue,CCHD,Home Care - Elderly - South,Other Small Contracts,Dhek Bhal,269.50, 28-Sep-2015
636,Revenue,CCHD,Home Care - Elderly - North,Other Small Contracts,Dhek Bhal,44.10, 28-Sep-2015
637,Revenue,CCHD,Bed Purchasing - South,Permanent Residential,Dimensions  Suite 2,4933.76, 01-Sep-2015
638,Revenue,CCHD,Bed Purchasing - South,Permanent Residential,Dimensions  Suite 2,4933.76, 29-Sep-2015
639,Revenue,CCHD,Supported Living - South,Private & Voluntary Home Care,Dimensions (UK) Ltd,7748.40, 29-Sep-2015
640,Revenue,CCHD,Home Care - Elderly - South,Day Care / Social Activities,DoCare Ltd,40.24, 03-Sep-2015
641,Revenue,CCHD,Home Care - Elderly - South,Other Small Contracts,DoCare Ltd,2127.70, 03-Sep-2015
642,Revenue,CCHD,Home Care - Elderly - North,Other Small Contracts,DoCare Ltd,5321.74, 03-Sep-2015
643,Revenue,CCHD,Home Care - Elderly - South,Day Care / Social Activities,DoCare Ltd,40.24, 03-Sep-2015
644,Revenue,CCHD,Home Care - Elderly - South,Other Small Contracts,DoCare Ltd,1966.73, 03-Sep-2015
645,Revenue,CCHD,Home Care - Elderly - North,Other Small Contracts,DoCare Ltd,4929.40, 03-Sep-2015
646,Revenue,CCHD,Home Care - Elderly - South,Day Care / Social Activities,DoCare Ltd,40.24, 23-Sep-2015
647,Revenue,CCHD,Home Care - Elderly - South,Other Small Contracts,DoCare Ltd,1951.65, 23-Sep-2015
648,Revenue,CCHD,Home Care - Elderly - North,Other Small Contracts,DoCare Ltd,6025.94, 23-Sep-2015
649,Revenue,CCHD,Home Care - Elderly - South,Day Care / Social Activities,DoCare Ltd,45.27, 23-Sep-2015
650,Revenue,CCHD,Home Care - Elderly - South,Other Small Contracts,DoCare Ltd,1775.59, 23-Sep-2015
651,Revenue,CCHD,Home Care - Elderly - North,Other Small Contracts,DoCare Ltd,6201.99, 23-Sep-2015
652,Revenue,CCHD,Social Lettings Agency,Other Supplies & Services,Individual,605.64, 24-Sep-2015
653,Revenue,CCHD,MH Purchasing - Younger,Permanent Residential,Dunraven House,1875.40, 01-Sep-2015
654,Revenue,CCHD,MH Purchasing - Younger,Permanent Residential,Dunraven House,1875.40, 29-Sep-2015
655,Revenue,CCHD,Sexual Health,Other Supplies & Services,Durbin Plc,443.52, 01-Sep-2015
656,Revenue,CCHD,Bed and Breakfast,Bed & Breakfast,E J Bartlett,504.00, 07-Sep-2015
657,Revenue,CCHD,Bed and Breakfast,Bed & Breakfast,E J Bartlett,574.00, 07-Sep-2015
658,Revenue,CCHD,Bed and Breakfast,Bed & Breakfast,E J Bartlett,504.00, 09-Sep-2015
659,Revenue,CCHD,Bed and Breakfast,Bed & Breakfast,E J Bartlett,574.00, 09-Sep-2015
660,Revenue,CCHD,Bed and Breakfast,Bed & Breakfast,E J Bartlett,600.00, 15-Sep-2015
661,Revenue,CCHD,Bed and Breakfast,Bed & Breakfast,E J Bartlett,504.00, 17-Sep-2015
662,Revenue,CCHD,Bed and Breakfast,Bed & Breakfast,E J Bartlett,420.00, 25-Sep-2015
663,Revenue,CCHD,Bed and Breakfast,Bed & Breakfast,E J Bartlett,504.00, 28-Sep-2015
664,Revenue,CCHD,Bed and Breakfast,Bed & Breakfast,E J Bartlett,504.00, 28-Sep-2015
665,Revenue,CCHD,Bed and Breakfast,Bed & Breakfast,E J Bartlett,420.00, 30-Sep-2015
666,Revenue,CCHD,Bed and Breakfast,Bed & Breakfast,E J Bartlett,504.00, 30-Sep-2015
667,Revenue,CCHD,Bed Purchasing - North,Permanent Residential,East Court,2238.40, 01-Sep-2015
668,Revenue,CCHD,Bed Purchasing - North,Permanent Residential,East Court,2238.40, 29-Sep-2015
669,Revenue,CCHD,Home Care - Elderly - South,Day Care / Social Activities,Easton Community Centre,526.08, 01-Sep-2015
670,Revenue,CCHD,Home Care - Elderly - South,Day Care / Social Activities,Easton Community Centre,526.08, 29-Sep-2015
671,Revenue,CCHD,Home Care - Elderly - South,Day Care / Social Activities,Easton Community Centre,526.08, 01-Sep-2015
672,Revenue,CCHD,Home Care - Elderly - South,Day Care / Social Activities,Easton Community Centre,526.08, 29-Sep-2015
673,Revenue,CCHD,Home Care - Elderly - North,Day Care / Social Activities,Easton Community Centre,526.08, 01-Sep-2015
674,Revenue,CCHD,Home Care - Elderly - North,Day Care / Social Activities,Easton Community Centre,526.08, 29-Sep-2015
675,Revenue,CCHD,Home Care - Elderly - North,Day Care / Social Activities,Easton Community Centre,526.08, 01-Sep-2015
676,Revenue,CCHD,Home Care - Elderly - North,Day Care / Social Activities,Easton Community Centre,526.08, 29-Sep-2015
677,Revenue,CCHD,Home Care - Elderly - South,Day Care / Social Activities,Eclipse Office Park,743.04, 01-Sep-2015
678,Revenue,CCHD,Home Care - Elderly - South,Day Care / Social Activities,Eclipse Office Park,743.04, 29-Sep-2015
679,Revenue,CCHD,Home Care - Elderly - North,Day Care / Social Activities,Eclipse Office Park,990.72, 01-Sep-2015
680,Revenue,CCHD,Home Care - Elderly - North,Day Care / Social Activities,Eclipse Office Park,990.72, 29-Sep-2015
681,Revenue,CCHD,Home Care - Elderly - South,Day Care / Social Activities,Eclipse Office Park,619.20, 01-Sep-2015
682,Revenue,CCHD,Home Care - Elderly - South,Day Care / Social Activities,Eclipse Office Park,619.20, 29-Sep-2015
683,Revenue,CCHD,Home Care - Elderly - South,Day Care / Social Activities,Eclipse Office Park,866.88, 01-Sep-2015
684,Revenue,CCHD,Home Care - Elderly - South,Day Care / Social Activities,Eclipse Office Park,866.88, 29-Sep-2015
685,Revenue,CCHD,Home Care - Elderly - South,Day Care / Social Activities,Eclipse Office Park,743.04, 01-Sep-2015
686,Revenue,CCHD,Home Care - Elderly - South,Day Care / Social Activities,Eclipse Office Park,743.04, 29-Sep-2015
687,Revenue,CCHD,Home Care - Elderly - South,Day Care / Social Activities,Eclipse Office Park,866.88, 01-Sep-2015
688,Revenue,CCHD,Home Care - Elderly - South,Day Care / Social Activities,Eclipse Office Park,866.88, 29-Sep-2015
689,Revenue,CCHD,Home Care - Elderly - South,Day Care / Social Activities,Eclipse Office Park,1238.40, 01-Sep-2015
690,Revenue,CCHD,Home Care - Elderly - South,Day Care / Social Activities,Eclipse Office Park,1238.40, 29-Sep-2015
691,Revenue,CCHD,Home Care - Elderly - South,Day Care / Social Activities,Eclipse Office Park,743.04, 01-Sep-2015
692,Revenue,CCHD,Home Care - Elderly - South,Day Care / Social Activities,Eclipse Office Park,743.04, 29-Sep-2015
693,Revenue,CCHD,Home Care - Elderly - South,Day Care / Social Activities,Eclipse Office Park,866.88, 01-Sep-2015
694,Revenue,CCHD,Home Care - Elderly - South,Day Care / Social Activities,Eclipse Office Park,866.88, 29-Sep-2015
695,Revenue,CCHD,Home Care - Elderly - South,Day Care / Social Activities,Eclipse Office Park,990.72, 01-Sep-2015
696,Revenue,CCHD,Home Care - Elderly - South,Day Care / Social Activities,Eclipse Office Park,990.72, 29-Sep-2015
697,Revenue,CCHD,Bed Purchasing - Southmead Hospital,Permanent Residential,Edgecumbe Lodge,7104.43, 01-Sep-2015
698,Revenue,CCHD,Bed Purchasing - Southmead Hospital,Permanent Residential,Edgecumbe Lodge,1270.80, 01-Sep-2015
699,Revenue,CCHD,Bed Purchasing - Southmead Hospital,Permanent Residential,Edgecumbe Lodge,1270.80, 29-Sep-2015
700,Revenue,CCHD,Bed Purchasing - South,Permanent Residential,Edgecumbe Lodge,1201.56, 01-Sep-2015
701,Revenue,CCHD,Bed Purchasing - South,Permanent Residential,Edgecumbe Lodge,1201.56, 29-Sep-2015
702,Revenue,CCHD,Bed Purchasing - South,Permanent Residential,Edgecumbe Lodge,1060.40, 01-Sep-2015
703,Revenue,CCHD,Bed Purchasing - South,Permanent Residential,Edgecumbe Lodge,1060.40, 29-Sep-2015
704,Revenue,CCHD,Bed Purchasing - Southmead Hospital,Permanent Residential,Edgecumbe Lodge,1617.48, 01-Sep-2015
705,Revenue,CCHD,Bed Purchasing - Southmead Hospital,Permanent Residential,Edgecumbe Lodge,1617.48, 29-Sep-2015
706,Revenue,CCHD,Bed Purchasing - Southmead Hospital,Permanent Residential,Edgecumbe Lodge,17502.94, 29-Sep-2015
707,Revenue,CCHD,Bed Purchasing - South,Permanent Residential,Edgecumbe Lodge,1444.84, 01-Sep-2015
708,Revenue,CCHD,Bed Purchasing - South,Permanent Residential,Edgecumbe Lodge,1444.84, 29-Sep-2015
709,Revenue,CCHD,Bed Purchasing - Southmead Hospital,Permanent Residential,Edgecumbe Lodge,1546.32, 01-Sep-2015
710,Revenue,CCHD,Bed Purchasing - Southmead Hospital,Permanent Residential,Edgecumbe Lodge,1546.32, 29-Sep-2015
711,Revenue,CCHD,Bed Purchasing - South,Permanent Residential,Edgecumbe Lodge,1145.92, 01-Sep-2015
712,Revenue,CCHD,Bed Purchasing - South,Permanent Residential,Edgecumbe Lodge,1145.92, 29-Sep-2015
713,Revenue,CCHD,Bed Purchasing - North,Respite Planned - Residential,Edgecumbe Lodge,1125.00, 01-Sep-2015
714,Revenue,CCHD,Bed Purchasing - North,Respite Planned - Residential,Edgecumbe Lodge,975.00, 01-Sep-2015
715,Revenue,CCHD,Bed Purchasing - North,Permanent Residential,Edgecumbe Lodge,1378.20, 01-Sep-2015
716,Revenue,CCHD,Bed Purchasing - North,Permanent Residential,Edgecumbe Lodge,1378.20, 29-Sep-2015
717,Revenue,CCHD,Bed Purchasing - North,Respite Planned - Residential,Edgemont House Ltd,900.71, 01-Sep-2015
718,Revenue,CCHD,Bed Purchasing - South,Permanent Residential,Edgemont House Ltd,1150.20, 01-Sep-2015
719,Revenue,CCHD,Bed Purchasing - South,Permanent Residential,Edgemont House Ltd,1150.20, 29-Sep-2015
720,Revenue,CCHD,Bed Purchasing - North,Permanent Residential,Edgemont House Ltd,1270.80, 01-Sep-2015
721,Revenue,CCHD,Bed Purchasing - North,Permanent Residential,Edgemont House Ltd,1270.80, 29-Sep-2015
722,Revenue,CCHD,Bed Purchasing - South,Permanent Residential,Edgemont House Ltd,1311.36, 01-Sep-2015
723,Revenue,CCHD,Bed Purchasing - South,Permanent Residential,Edgemont House Ltd,1311.36, 29-Sep-2015
724,Revenue,CCHD,Bed Purchasing - North,Permanent Nursing,Edgemont View Nursing Home,1232.16, 01-Sep-2015
725,Revenue,CCHD,Bed Purchasing - North,Permanent Nursing,Edgemont View Nursing Home,1232.16, 29-Sep-2015
726,Revenue,CCHD,Bed Purchasing - South,Permanent Nursing,Edgemont View Nursing Home,1763.04, 01-Sep-2015
727,Revenue,CCHD,Bed Purchasing - South,Permanent Nursing,Edgemont View Nursing Home,1763.04, 29-Sep-2015
728,Revenue,CCHD,Bed Purchasing - South,Permanent Nursing,Edgemont View Nursing Home,1457.44, 01-Sep-2015
729,Revenue,CCHD,Bed Purchasing - South,Permanent Nursing,Edgemont View Nursing Home,1457.44, 29-Sep-2015
730,Revenue,CCHD,Bed Purchasing - South,Permanent Nursing,Edgemont View Nursing Home,1648.40, 01-Sep-2015
731,Revenue,CCHD,Bed Purchasing - South,Permanent Nursing,Edgemont View Nursing Home,1648.40, 29-Sep-2015
732,Revenue,CCHD,Bed Purchasing - South,Permanent Nursing,Edgemont View Nursing Home,1209.88, 01-Sep-2015
733,Revenue,CCHD,Bed Purchasing - South,Permanent Nursing,Edgemont View Nursing Home,1209.88, 29-Sep-2015
734,Revenue,CCHD,Supporting People Programme,Grants to Voluntary Bodies,Elim Housing Association Limited,5072.70, 01-Sep-2015
735,Revenue,CCHD,Home Care - Elderly - South,Day Care / Social Activities,Elite Home Care Ltd,35.36, 15-Sep-2015
736,Revenue,CCHD,Home Care - Elderly - South,Other Small Contracts,Elite Home Care Ltd,6333.86, 15-Sep-2015
737,Revenue,CCHD,Home Care - Elderly - North,Other Small Contracts,Elite Home Care Ltd,344.76, 15-Sep-2015
738,Revenue,CCHD,Home Care - Elderly - South,Day Care / Social Activities,Elite Home Care Ltd,39.78, 15-Sep-2015
739,Revenue,CCHD,Home Care - Elderly - South,Other Small Contracts,Elite Home Care Ltd,6294.08, 15-Sep-2015
740,Revenue,CCHD,Home Care - Elderly - North,Other Small Contracts,Elite Home Care Ltd,344.76, 15-Sep-2015
741,Revenue,CCHD,Home Care - Elderly - South,Day Care / Social Activities,Elite Home Care Ltd,39.78, 15-Sep-2015
742,Revenue,CCHD,Home Care - Elderly - South,Other Small Contracts,Elite Home Care Ltd,6254.30, 15-Sep-2015
743,Revenue,CCHD,Home Care - Elderly - North,Other Small Contracts,Elite Home Care Ltd,335.92, 15-Sep-2015
744,Revenue,CCHD,Home Care - Elderly - South,Day Care / Social Activities,Elite Home Care Ltd,39.78, 29-Sep-2015
745,Revenue,CCHD,Home Care - Elderly - South,Other Small Contracts,Elite Home Care Ltd,6378.06, 29-Sep-2015
746,Revenue,CCHD,Home Care - Elderly - North,Other Small Contracts,Elite Home Care Ltd,340.34, 29-Sep-2015
747,Revenue,CCHD,Home Care - Elderly - South,Day Care / Social Activities,Elite Home Care Ltd,35.36, 29-Sep-2015
748,Revenue,CCHD,Home Care - Elderly - South,Other Small Contracts,Elite Home Care Ltd,6298.50, 29-Sep-2015
749,Revenue,CCHD,Home Care - Elderly - North,Other Small Contracts,Elite Home Care Ltd,344.76, 29-Sep-2015
750,Revenue,CCHD,Home Care - Elderly - South,Day Care / Social Activities,Elite Home Care Ltd,35.36, 29-Sep-2015
751,Revenue,CCHD,Home Care - Elderly - South,Other Small Contracts,Elite Home Care Ltd,6086.34, 29-Sep-2015
752,Revenue,CCHD,Home Care - Elderly - North,Other Small Contracts,Elite Home Care Ltd,340.34, 29-Sep-2015
753,Revenue,CCHD,Bed Purchasing - North,Permanent Residential,Epworth House,1053.36, 01-Sep-2015
754,Revenue,CCHD,Bed Purchasing - North,Permanent Residential,Epworth House,1053.36, 29-Sep-2015
755,Revenue,CCHD,Home Care - Elderly - South,Other Small Contracts,Everycare (Bristol) Ltd,3844.20, 01-Sep-2015
756,Revenue,CCHD,Home Care - Elderly - North,Day Care / Social Activities,Everycare (Bristol) Ltd,103.20, 01-Sep-2015
757,Revenue,CCHD,Home Care - Elderly - North,Other Small Contracts,Everycare (Bristol) Ltd,1870.50, 01-Sep-2015
758,Revenue,CCHD,Home Care - Elderly - South,Other Small Contracts,Everycare (Bristol) Ltd,3844.20, 01-Sep-2015
759,Revenue,CCHD,Home Care - Elderly - North,Day Care / Social Activities,Everycare (Bristol) Ltd,94.60, 01-Sep-2015
760,Revenue,CCHD,Home Care - Elderly - North,Other Small Contracts,Everycare (Bristol) Ltd,993.30, 01-Sep-2015
761,Revenue,CCHD,Home Care - Elderly - South,Other Small Contracts,Everycare (Bristol) Ltd,3874.30, 01-Sep-2015
762,Revenue,CCHD,Home Care - Elderly - North,Day Care / Social Activities,Everycare (Bristol) Ltd,34.40, 01-Sep-2015
763,Revenue,CCHD,Home Care - Elderly - North,Other Small Contracts,Everycare (Bristol) Ltd,614.90, 01-Sep-2015
764,Revenue,CCHD,Home Care - Elderly - South,Other Small Contracts,Everycare (Bristol) Ltd,4149.50, 02-Sep-2015
765,Revenue,CCHD,Home Care - Elderly - North,Day Care / Social Activities,Everycare (Bristol) Ltd,98.90, 02-Sep-2015
766,Revenue,CCHD,Home Care - Elderly - North,Other Small Contracts,Everycare (Bristol) Ltd,860.00, 02-Sep-2015
767,Revenue,CCHD,Home Care - Elderly - South,Other Small Contracts,Everycare (Bristol) Ltd,4301.19, 14-Sep-2015
768,Revenue,CCHD,Home Care - Elderly - North,Day Care / Social Activities,Everycare (Bristol) Ltd,90.30, 14-Sep-2015
769,Revenue,CCHD,Home Care - Elderly - North,Other Small Contracts,Everycare (Bristol) Ltd,881.50, 14-Sep-2015
770,Revenue,CCHD,Home Care - Elderly - South,Other Small Contracts,Everycare (Bristol) Ltd,4360.20, 22-Sep-2015
771,Revenue,CCHD,Home Care - Elderly - North,Day Care / Social Activities,Everycare (Bristol) Ltd,111.80, 22-Sep-2015
772,Revenue,CCHD,Home Care - Elderly - North,Other Small Contracts,Everycare (Bristol) Ltd,1126.60, 22-Sep-2015
773,Revenue,CCHD,Home Care - Elderly - South,Other Small Contracts,Everycare (Bristol) Ltd,4450.50, 22-Sep-2015
774,Revenue,CCHD,Home Care - Elderly - North,Day Care / Social Activities,Everycare (Bristol) Ltd,107.50, 22-Sep-2015
775,Revenue,CCHD,Home Care - Elderly - North,Other Small Contracts,Everycare (Bristol) Ltd,1221.20, 22-Sep-2015
776,Revenue,CCHD,South Glos Users in South Glos Homes,Permanent Nursing,Fairview Court,2946.51, 01-Sep-2015
777,Revenue,CCHD,Bed Purchasing - Southmead Hospital,Permanent Nursing,Fairview Court,1896.04, 01-Sep-2015
778,Revenue,CCHD,Bed Purchasing - Southmead Hospital,Permanent Nursing,Fairview Court,1896.04, 29-Sep-2015
779,Revenue,CCHD,Bed purchasing - Elderly S117 - South,Permanent Nursing,Fairview Court,2012.00, 01-Sep-2015
780,Revenue,CCHD,Bed purchasing - Elderly S117 - South,Permanent Nursing,Fairview Court,2012.00, 29-Sep-2015
781,Revenue,CCHD,Bed Purchasing - South,Permanent Nursing,Fairview Court,1655.12, 01-Sep-2015
782,Revenue,CCHD,Bed Purchasing - South,Permanent Nursing,Fairview Court,1655.12, 29-Sep-2015
783,Revenue,CCHD,Bed Purchasing - South,Permanent Nursing,Fairview Court,1786.36, 01-Sep-2015
784,Revenue,CCHD,Bed Purchasing - South,Permanent Nursing,Fairview Court,1786.36, 29-Sep-2015
785,Revenue,CCHD,Bed Purchasing - South,Permanent Nursing,Fairview Court,2019.04, 01-Sep-2015
786,Revenue,CCHD,Bed Purchasing - South,Permanent Nursing,Fairview Court,2019.04, 29-Sep-2015
787,Revenue,CCHD,Bed Purchasing - North,Permanent Nursing,Fairview Court,2347.96, 01-Sep-2015
788,Revenue,CCHD,Bed Purchasing - North,Permanent Nursing,Fairview Court,2347.96, 29-Sep-2015
789,Revenue,CCHD,South Glos Users in South Glos Homes,Permanent Nursing,Fairview Court,992.00, 29-Sep-2015
790,Revenue,CCHD,Bed Purchasing - South,Permanent Nursing,Fairview Court Care Home,1164.23, 10-Sep-2015
791,Revenue,CCHD,Bed Purchasing - South,Permanent Nursing,Fairview Court Care Home,1017.69, 10-Sep-2015
792,Revenue,CCHD,Bed Purchasing - South,Permanent Nursing,Fairview Court Care Home,2081.47, 10-Sep-2015
793,Revenue,CCHD,Bed Purchasing - South,Permanent Nursing,Fairview Court Care Home,2081.47, 10-Sep-2015
794,Revenue,CCHD,Bed Purchasing - Southmead Hospital,Permanent Nursing,Fairview Court Care Home,1340.70, 10-Sep-2015
795,Revenue,CCHD,Bed purchasing - Elderly S117 - South,Permanent Nursing,Fairview Court Care Home,2640.80, 10-Sep-2015
796,Revenue,CCHD,Bed Purchasing - South,Permanent Nursing,Fairview Court Care Home,1164.23, 10-Sep-2015
797,Revenue,CCHD,Bed Purchasing - South,Permanent Nursing,Fairview Court Care Home,1017.69, 10-Sep-2015
798,Revenue,CCHD,Bed Purchasing - South,Permanent Nursing,Fairview Court Care Home,2081.47, 10-Sep-2015
799,Revenue,CCHD,Bed Purchasing - South,Permanent Nursing,Fairview Court Care Home,2081.47, 10-Sep-2015
800,Revenue,CCHD,Bed Purchasing - Southmead Hospital,Permanent Nursing,Fairview Court Care Home,1011.87, 10-Sep-2015
801,Revenue,CCHD,Bed Purchasing - North,Permanent Nursing,Fairview Court Care Home,1410.03, 10-Sep-2015
802,Revenue,CCHD,Bed purchasing - Elderly S117 - South,Permanent Nursing,Fairview Court Care Home,2640.80, 10-Sep-2015
803,Revenue,CCHD,S75 CCG Interim Beds,Permanent Nursing,Fairview Court Care Home,10200.00, 07-Sep-2015
804,Revenue,CCHD,Bed purchasing - Elderly S117 - South,Permanent Residential,Fairview House,1937.56, 01-Sep-2015
805,Revenue,CCHD,Bed purchasing - Elderly S117 - South,Permanent Residential,Fairview House,1937.56, 29-Sep-2015
806,Revenue,CCHD,Bed Purchasing - Southmead Hospital,Permanent Residential,Fairview House,1043.16, 01-Sep-2015
807,Revenue,CCHD,Bed Purchasing - Southmead Hospital,Permanent Residential,Fairview House,1043.16, 29-Sep-2015
808,Revenue,CCHD,Bed Purchasing - South,Permanent Residential,Fairview House,868.80, 01-Sep-2015
809,Revenue,CCHD,Bed Purchasing - South,Permanent Residential,Fairview House,868.80, 29-Sep-2015
810,Revenue,CCHD,Bed Purchasing - South,Permanent Residential,Fairview House,1270.80, 01-Sep-2015
811,Revenue,CCHD,Bed Purchasing - South,Permanent Residential,Fairview House,6498.51, 29-Sep-2015
812,Revenue,CCHD,Bed Purchasing - South,Permanent Residential,Fairview House,669.04, 29-Sep-2015
813,Revenue,CCHD,Bed Purchasing - South,Permanent Residential,Fairview House,1270.80, 01-Sep-2015
814,Revenue,CCHD,Bed Purchasing - South,Permanent Residential,Fairview House,1270.80, 29-Sep-2015
815,Revenue,CCHD,Bed Purchasing - South,Permanent Residential,Fairview House,1210.28, 01-Sep-2015
816,Revenue,CCHD,Bed Purchasing - South,Permanent Residential,Fairview House,1222.60, 29-Sep-2015
817,Revenue,CCHD,Bed Purchasing - South,Permanent Residential,Fairview House,1134.96, 01-Sep-2015
818,Revenue,CCHD,Bed Purchasing - South,Permanent Residential,Fairview House,1134.96, 29-Sep-2015
819,Revenue,CCHD,Bed Purchasing - Southmead Hospital,Permanent Residential,Fairview House,1270.80, 01-Sep-2015
820,Revenue,CCHD,Bed Purchasing - Southmead Hospital,Permanent Residential,Fairview House,1270.80, 29-Sep-2015
821,Revenue,CCHD,Bed Purchasing - Southmead Hospital,Permanent Residential,Fairview House,1084.40, 01-Sep-2015
822,Revenue,CCHD,Bed Purchasing - Southmead Hospital,Permanent Residential,Fairview House,1084.40, 29-Sep-2015
823,Revenue,CCHD,Bed Purchasing - South,Permanent Residential,Fairview House,1044.00, 01-Sep-2015
824,Revenue,CCHD,Bed Purchasing - South,Permanent Residential,Fairview House,1044.00, 29-Sep-2015
825,Revenue,CCHD,Bed Purchasing - South,Permanent Residential,Fairview House,1455.56, 01-Sep-2015
826,Revenue,CCHD,Bed Purchasing - South,Permanent Residential,Fairview House,1455.56, 29-Sep-2015
827,Revenue,CCHD,Bed Purchasing - Southmead Hospital,Permanent Residential,Fairview House,1407.12, 01-Sep-2015
828,Revenue,CCHD,Bed Purchasing - Southmead Hospital,Permanent Residential,Fairview House,1407.12, 29-Sep-2015
829,Revenue,CCHD,Swift Dump Code,Permanent Residential,Faith House,1728.11, 29-Sep-2015
830,Revenue,CCHD,Bed Purchasing - Southmead Hospital,Permanent Residential,Faith House,1252.12, 01-Sep-2015
831,Revenue,CCHD,Bed Purchasing - Southmead Hospital,Permanent Residential,Faith House,1252.12, 29-Sep-2015
832,Revenue,CCHD,Bed Purchasing - North,Permanent Residential,Fernbank,7790.28, 01-Sep-2015
833,Revenue,CCHD,Bed Purchasing - North,Permanent Residential,Fernbank,7790.28, 29-Sep-2015
834,Revenue,CCHD,South Glos Users in South Glos Homes,Permanent Nursing,Field House Care Home,2208.00, 01-Sep-2015
835,Revenue,CCHD,Bed Purchasing - North,Permanent Nursing,Field House Care Home,681.95, 29-Sep-2015
836,Revenue,CCHD,South Glos Users in South Glos Homes,Permanent Nursing,Field House Care Home,992.00, 29-Sep-2015
837,Revenue,CCHD,Home Care - Elderly - South,Other Small Contracts,Firstpoint Homecare Ltd,2003.35, 09-Sep-2015
838,Revenue,CCHD,Home Care - Elderly - North,Day Care / Social Activities,Firstpoint Homecare Ltd,42.79, 09-Sep-2015
839,Revenue,CCHD,Home Care - Elderly - North,Other Small Contracts,Firstpoint Homecare Ltd,1170.91, 09-Sep-2015
840,Revenue,CCHD,Home Care - Elderly - South,Other Small Contracts,Firstpoint Homecare Ltd,2046.14, 09-Sep-2015
841,Revenue,CCHD,Home Care - Elderly - North,Day Care / Social Activities,Firstpoint Homecare Ltd,46.68, 09-Sep-2015
842,Revenue,CCHD,Home Care - Elderly - North,Other Small Contracts,Firstpoint Homecare Ltd,1112.54, 09-Sep-2015
843,Revenue,CCHD,Home Care - Elderly - South,Other Small Contracts,Firstpoint Homecare Ltd,2263.98, 09-Sep-2015
844,Revenue,CCHD,Home Care - Elderly - North,Day Care / Social Activities,Firstpoint Homecare Ltd,46.68, 09-Sep-2015
845,Revenue,CCHD,Home Care - Elderly - North,Other Small Contracts,Firstpoint Homecare Ltd,1131.99, 09-Sep-2015
846,Revenue,CCHD,Home Care - Elderly - South,Other Small Contracts,Firstpoint Homecare Ltd,2193.96, 14-Sep-2015
847,Revenue,CCHD,Home Care - Elderly - North,Day Care / Social Activities,Firstpoint Homecare Ltd,46.68, 14-Sep-2015
848,Revenue,CCHD,Home Care - Elderly - North,Other Small Contracts,Firstpoint Homecare Ltd,1131.99, 14-Sep-2015
849,Revenue,CCHD,SW HAWB Support,Consultants Fees,Five Square Solutions Limited,1375.00, 03-Sep-2015
850,Revenue,CCHD,SW HAWB Support,Consultants Fees,Five Square Solutions Limited,2750.00, 03-Sep-2015
851,Revenue,CCHD,Supporting People Programme,Grants to Voluntary Bodies,Freeways Trust Limited,8053.04, 01-Sep-2015
852,Revenue,CCHD,Supported Living - South,Private & Voluntary Home Care,Freeways Trust Limited,1443.96, 14-Sep-2015
853,Revenue,CCHD,Purchase of Non-Res Care - North,Day Care / Social Activities,Freeways Trust Limited,1108.88, 24-Sep-2015
854,Revenue,CCHD,Bed Purchasing - North,Permanent Residential,Freeways Trust Ltd,2891.96, 01-Sep-2015
855,Revenue,CCHD,Bed Purchasing - North,Permanent Residential,Freeways Trust Ltd,2891.96, 29-Sep-2015
856,Revenue,CCHD,Bed purchasing - S28A Under 65 - South,Permanent Residential,Freeways Trust Ltd,2959.48, 01-Sep-2015
857,Revenue,CCHD,Bed purchasing - S28A Under 65 - South,Permanent Residential,Freeways Trust Ltd,2959.48, 29-Sep-2015
858,Revenue,CCHD,Bed Purchasing - North,Permanent Residential,Freeways Trust Ltd,3164.68, 01-Sep-2015
859,Revenue,CCHD,Bed Purchasing - North,Permanent Residential,Freeways Trust Ltd,3164.68, 29-Sep-2015
860,Revenue,CCHD,Bed Purchasing - North,Permanent Residential,Freeways Trust Ltd,2312.72, 01-Sep-2015
861,Revenue,CCHD,Bed Purchasing - North,Permanent Residential,Freeways Trust Ltd,2312.72, 29-Sep-2015
862,Revenue,CCHD,Bed Purchasing - North,Permanent Residential,Freeways Trust Ltd,2761.92, 01-Sep-2015
863,Revenue,CCHD,Bed Purchasing - North,Permanent Residential,Freeways Trust Ltd,2761.92, 29-Sep-2015
864,Revenue,CCHD,Bed Purchasing - South,Permanent Residential,Freeways Trust Ltd,3375.88, 01-Sep-2015
865,Revenue,CCHD,Bed Purchasing - South,Permanent Residential,Freeways Trust Ltd,3375.88, 29-Sep-2015
866,Revenue,CCHD,Bed Purchasing - North,Permanent Residential,Freeways Trust Ltd,2286.84, 01-Sep-2015
867,Revenue,CCHD,Bed Purchasing - North,Permanent Residential,Freeways Trust Ltd,2286.84, 29-Sep-2015
868,Revenue,CCHD,Bed Purchasing - South,Permanent Residential,Freeways Trust Ltd,2426.72, 01-Sep-2015
869,Revenue,CCHD,Bed Purchasing - South,Permanent Residential,Freeways Trust Ltd,2426.72, 29-Sep-2015
870,Revenue,CCHD,Bed Purchasing - North,Permanent Residential,Freeways Trust Ltd,2761.92, 01-Sep-2015
871,Revenue,CCHD,Bed Purchasing - North,Permanent Residential,Freeways Trust Ltd,2761.92, 29-Sep-2015
872,Revenue,CCHD,Bed Purchasing - North,Permanent Residential,Freeways Trust Ltd,3185.76, 01-Sep-2015
873,Revenue,CCHD,Bed Purchasing - North,Permanent Residential,Freeways Trust Ltd,3185.76, 29-Sep-2015
874,Revenue,CCHD,18-25 Year Olds,Permanent Residential,Freeways Trust Ltd,3409.64, 01-Sep-2015
875,Revenue,CCHD,18-25 Year Olds,Permanent Residential,Freeways Trust Ltd,3409.64, 29-Sep-2015
876,Revenue,CCHD,Bed Purchasing - North,Permanent Residential,Freeways Trust Ltd,3866.08, 01-Sep-2015
877,Revenue,CCHD,Bed Purchasing - North,Permanent Residential,Freeways Trust Ltd,3866.08, 29-Sep-2015
878,Revenue,CCHD,Home Care - Elderly - North,Day Care / Social Activities,Frenchay Hospital,1464.32, 29-Sep-2015
879,Revenue,CCHD,Bed Purchasing - Southmead Hospital,Permanent Nursing,Frenchay Park Nursing Home,2200.00, 01-Sep-2015
880,Revenue,CCHD,Bed Purchasing - Southmead Hospital,Permanent Nursing,Frenchay Park Nursing Home,2200.00, 29-Sep-2015
881,Revenue,CCHD,Bed Purchasing - South,Permanent Nursing,Fshc  1St Floor,900.32, 01-Sep-2015
882,Revenue,CCHD,Bed Purchasing - South,Permanent Nursing,Fshc  1St Floor,900.32, 29-Sep-2015
883,Revenue,CCHD,Bed Purchasing - Southmead Hospital,Respite Planned - Nursing,Fshc  1St Floor,1904.00, 01-Sep-2015
884,Revenue,CCHD,Bed Purchasing - South,Permanent Nursing,Fshc  1St Floor,1398.80, 01-Sep-2015
885,Revenue,CCHD,Bed Purchasing - Southmead Hospital,Respite Planned - Nursing,Fshc  1St Floor,942.00, 01-Sep-2015
886,Revenue,CCHD,Bed Purchasing - South,Permanent Nursing,Fshc  1St Floor,1398.80, 29-Sep-2015
887,Revenue,CCHD,Bed Purchasing - South,Permanent Residential,Fshc  1St Floor,659.04, 01-Sep-2015
888,Revenue,CCHD,Bed Purchasing - South,Respite Planned - Residential,Fshc  1St Floor,951.43, 29-Sep-2015
889,Revenue,CCHD,Bed Purchasing - Southmead Hospital,Permanent Residential,Fshc  1St Floor,896.92, 01-Sep-2015
890,Revenue,CCHD,Bed Purchasing - Southmead Hospital,Permanent Residential,Fshc  1St Floor,896.92, 29-Sep-2015
891,Revenue,CCHD,Bed Purchasing - South,Permanent Nursing,Fshc  1St Floor,1013.96, 01-Sep-2015
892,Revenue,CCHD,Bed Purchasing - South,Permanent Nursing,Fshc  1St Floor,1013.96, 29-Sep-2015
893,Revenue,CCHD,Bed Purchasing - Southmead Hospital,Permanent Nursing,Fshc  1St Floor,1308.48, 01-Sep-2015
894,Revenue,CCHD,Bed Purchasing - Southmead Hospital,Permanent Nursing,Fshc  1St Floor,1308.48, 29-Sep-2015
895,Revenue,CCHD,Bed Purchasing - South,Permanent Nursing,Fshc  1St Floor,1398.80, 01-Sep-2015
896,Revenue,CCHD,Bed Purchasing - South,Permanent Nursing,Fshc  1St Floor,1100.62, 01-Sep-2015
897,Revenue,CCHD,Bed Purchasing - South,Permanent Nursing,Fshc  1St Floor,1398.80, 29-Sep-2015
898,Revenue,CCHD,Bed Purchasing - South,Permanent Nursing,Fshc  1St Floor,1898.37, 01-Sep-2015
899,Revenue,CCHD,Bed Purchasing - South,Permanent Nursing,Fshc  1St Floor,1398.80, 01-Sep-2015
900,Revenue,CCHD,Bed Purchasing - South,Permanent Nursing,Fshc  1St Floor,1398.80, 29-Sep-2015
901,Revenue,CCHD,Bed Purchasing - Southmead Hospital,Permanent Nursing,Fshc  1St Floor,1362.80, 01-Sep-2015
902,Revenue,CCHD,Bed Purchasing - Southmead Hospital,Permanent Nursing,Fshc  1St Floor,1362.80, 29-Sep-2015
903,Revenue,CCHD,Bed Purchasing - Southmead Hospital,Permanent Nursing,Fshc  1St Floor,1398.80, 01-Sep-2015
904,Revenue,CCHD,Bed Purchasing - Southmead Hospital,Permanent Nursing,Fshc  1St Floor,1398.80, 29-Sep-2015
905,Revenue,CCHD,Bed Purchasing - Southmead Hospital,Permanent Nursing,Fshc  1St Floor,1398.80, 01-Sep-2015
906,Revenue,CCHD,Bed Purchasing - Southmead Hospital,Permanent Nursing,Fshc  1St Floor,1398.80, 29-Sep-2015
907,Revenue,CCHD,Bed Purchasing - Southmead Hospital,Permanent Nursing,Fshc  1St Floor,1064.28, 01-Sep-2015
908,Revenue,CCHD,Bed Purchasing - Southmead Hospital,Permanent Nursing,Fshc  1St Floor,1064.28, 29-Sep-2015
909,Revenue,CCHD,Bed Purchasing - South,Permanent Residential,Fshc  1St Floor,1233.08, 01-Sep-2015
910,Revenue,CCHD,Bed Purchasing - South,Permanent Nursing,Fshc  1St Floor,1149.01, 01-Sep-2015
911,Revenue,CCHD,Bed Purchasing - South,Permanent Nursing,Fshc  1St Floor,1261.32, 29-Sep-2015
912,Revenue,CCHD,Bed Purchasing - South,Permanent Nursing,Fshc  1St Floor,1036.08, 29-Sep-2015
913,Revenue,CCHD,Bed Purchasing - Southmead Hospital,Permanent Nursing,Fshc  1St Floor,1210.12, 01-Sep-2015
914,Revenue,CCHD,Bed Purchasing - Southmead Hospital,Permanent Nursing,Fshc  1St Floor,1210.12, 29-Sep-2015
915,Revenue,CCHD,Bed Purchasing - Southmead Hospital,Permanent Residential,Fshc  1St Floor,2322.64, 29-Sep-2015
916,Revenue,CCHD,Bed Purchasing - South,Respite Emergency - Residential,Fshc  1St Floor,5916.00, 01-Sep-2015
917,Revenue,CCHD,Bed Purchasing - South,Respite Emergency - Nursing,Fshc  1St Floor,1904.00, 01-Sep-2015
918,Revenue,CCHD,Bed Purchasing - South,Respite Emergency - Nursing,Fshc  1St Floor,5916.00, 01-Sep-2015
919,Revenue,CCHD,Bed Purchasing - South,Respite Emergency - Nursing,Fshc  1St Floor,1904.00, 29-Sep-2015
920,Revenue,CCHD,South Glos Users in South Glos Homes,Permanent Nursing,Fshc  1St Floor,768.00, 01-Sep-2015
921,Revenue,CCHD,Bed Purchasing - South,Respite Planned - Nursing,Fshc  1St Floor,1292.00, 01-Sep-2015
922,Revenue,CCHD,Bed Purchasing - Southmead Hospital,Permanent Nursing,Fshc  1St Floor,1398.80, 01-Sep-2015
923,Revenue,CCHD,Bed Purchasing - Southmead Hospital,Permanent Nursing,Fshc  1St Floor,1398.80, 29-Sep-2015
924,Revenue,CCHD,Bed Purchasing - South,Permanent Nursing,Fshc  1St Floor,1142.76, 01-Sep-2015
925,Revenue,CCHD,Bed Purchasing - South,Permanent Nursing,Fshc  1St Floor,1142.76, 29-Sep-2015
926,Revenue,CCHD,Bed Purchasing - Southmead Hospital,Permanent Nursing,Fshc  1St Floor,1382.44, 01-Sep-2015
927,Revenue,CCHD,Bed Purchasing - Southmead Hospital,Permanent Nursing,Fshc  1St Floor,1382.44, 29-Sep-2015
928,Revenue,CCHD,Bed Purchasing - Southmead Hospital,Permanent Nursing,Fshc  1St Floor,1398.80, 01-Sep-2015
929,Revenue,CCHD,Bed Purchasing - Southmead Hospital,Permanent Nursing,Fshc  1St Floor,1398.80, 29-Sep-2015
930,Revenue,CCHD,Bed Purchasing - Southmead Hospital,Permanent Residential,Fshc  1St Floor,546.36, 01-Sep-2015
931,Revenue,CCHD,Bed Purchasing - Southmead Hospital,Permanent Residential,Fshc  1St Floor,546.36, 29-Sep-2015
932,Revenue,CCHD,Bed Purchasing - Southmead Hospital,Permanent Residential,Fshc  1St Floor,1238.52, 01-Sep-2015
933,Revenue,CCHD,Bed Purchasing - Southmead Hospital,Permanent Residential,Fshc  1St Floor,796.19, 01-Sep-2015
934,Revenue,CCHD,Bed Purchasing - Southmead Hospital,Permanent Residential,Fshc  1St Floor,1238.52, 29-Sep-2015
935,Revenue,CCHD,Bed Purchasing - North,Permanent Nursing,Fshc  1St Floor,1904.00, 01-Sep-2015
936,Revenue,CCHD,Bed Purchasing - North,Permanent Nursing,Fshc  1St Floor,1904.00, 29-Sep-2015
937,Revenue,CCHD,Bed Purchasing - Southmead Hospital,Permanent Nursing,Fshc  1St Floor,1548.67, 29-Sep-2015
938,Revenue,CCHD,Bed Purchasing - Southmead Hospital,Permanent Nursing,Fshc  1St Floor,1398.80, 29-Sep-2015
939,Revenue,CCHD,Bed Purchasing - Southmead Hospital,Permanent Nursing,Fshc  1St Floor,1207.68, 01-Sep-2015
940,Revenue,CCHD,Bed Purchasing - Southmead Hospital,Permanent Nursing,Fshc  1St Floor,1207.68, 29-Sep-2015
941,Revenue,CCHD,Bed Purchasing - South,Permanent Nursing,Fshc  1St Floor,1398.80, 01-Sep-2015
942,Revenue,CCHD,Bed Purchasing - South,Permanent Nursing,Fshc  1St Floor,1398.80, 29-Sep-2015
943,Revenue,CCHD,Bed Purchasing - South,Permanent Nursing,Fshc  1St Floor,1354.20, 01-Sep-2015
944,Revenue,CCHD,Bed Purchasing - South,Permanent Nursing,Fshc  1St Floor,1354.20, 29-Sep-2015
945,Revenue,CCHD,Bed Purchasing - Southmead Hospital,Permanent Nursing,Fshc  1St Floor,1398.80, 01-Sep-2015
946,Revenue,CCHD,Bed Purchasing - Southmead Hospital,Permanent Nursing,Fshc  1St Floor,1398.80, 29-Sep-2015
947,Revenue,CCHD,Bed Purchasing - South,Permanent Nursing,Fshc  1St Floor,1233.64, 01-Sep-2015
948,Revenue,CCHD,Bed Purchasing - South,Permanent Nursing,Fshc  1St Floor,1233.64, 29-Sep-2015
949,Revenue,CCHD,Bed Purchasing - North,Permanent Nursing,Fshc  1St Floor,1294.60, 01-Sep-2015
950,Revenue,CCHD,Bed Purchasing - North,Permanent Nursing,Fshc  1St Floor,1097.68, 29-Sep-2015
951,Revenue,CCHD,Bed Purchasing - North,Permanent Residential,Fshc  1St Floor,1270.80, 01-Sep-2015
952,Revenue,CCHD,Bed Purchasing - North,Permanent Residential,Fshc  1St Floor,1270.80, 29-Sep-2015
953,Revenue,CCHD,Bed Purchasing - Southmead Hospital,Permanent Nursing,Fshc  1St Floor,902.64, 01-Sep-2015
954,Revenue,CCHD,Bed Purchasing - Southmead Hospital,Permanent Nursing,Fshc  1St Floor,949.60, 01-Sep-2015
955,Revenue,CCHD,Bed Purchasing - Southmead Hospital,Permanent Nursing,Fshc  1St Floor,949.60, 29-Sep-2015
956,Revenue,CCHD,Bed Purchasing - Southmead Hospital,Permanent Nursing,Fshc  1St Floor,1622.04, 01-Sep-2015
957,Revenue,CCHD,Bed Purchasing - Southmead Hospital,Permanent Nursing,Fshc  1St Floor,1622.04, 29-Sep-2015
958,Revenue,CCHD,Bed Purchasing - Southmead Hospital,Permanent Nursing,Fshc  1St Floor,1237.56, 01-Sep-2015
959,Revenue,CCHD,Bed Purchasing - Southmead Hospital,Permanent Nursing,Fshc  1St Floor,1237.56, 29-Sep-2015
960,Revenue,CCHD,Bed Purchasing - Southmead Hospital,Permanent Nursing,Fshc  1St Floor,1398.80, 01-Sep-2015
961,Revenue,CCHD,Bed Purchasing - Southmead Hospital,Permanent Nursing,Fshc  1St Floor,1398.80, 29-Sep-2015
962,Revenue,CCHD,Bed Purchasing - Southmead Hospital,Permanent Residential,Fshc  1St Floor,1158.00, 01-Sep-2015
963,Revenue,CCHD,Bed Purchasing - Southmead Hospital,Permanent Residential,Fshc  1St Floor,1158.00, 29-Sep-2015
964,Revenue,CCHD,Bed Purchasing - North,Permanent Nursing,Fshc  1St Floor,1026.60, 01-Sep-2015
965,Revenue,CCHD,Bed Purchasing - North,Permanent Nursing,Fshc  1St Floor,1026.60, 29-Sep-2015
966,Revenue,CCHD,Bed Purchasing - Southmead Hospital,Permanent Nursing,Fshc  1St Floor,1112.44, 01-Sep-2015
967,Revenue,CCHD,Bed Purchasing - Southmead Hospital,Permanent Nursing,Fshc  1St Floor,1112.44, 29-Sep-2015
968,Revenue,CCHD,Bed Purchasing - Southmead Hospital,Permanent Nursing,Fshc  1St Floor,1132.12, 01-Sep-2015
969,Revenue,CCHD,Bed Purchasing - Southmead Hospital,Permanent Nursing,Fshc  1St Floor,1132.12, 29-Sep-2015
970,Revenue,CCHD,Bed Purchasing - Southmead Hospital,Permanent Nursing,Fshc  1St Floor,1304.24, 01-Sep-2015
971,Revenue,CCHD,Bed Purchasing - Southmead Hospital,Permanent Nursing,Fshc  1St Floor,1304.24, 29-Sep-2015
972,Revenue,CCHD,Bed Purchasing - Southmead Hospital,Permanent Nursing,Fshc  1St Floor,1398.80, 01-Sep-2015
973,Revenue,CCHD,Bed Purchasing - Southmead Hospital,Permanent Nursing,Fshc  1St Floor,1398.80, 29-Sep-2015
974,Revenue,CCHD,Bed Purchasing - North,Respite Planned - Nursing,Fshc  1St Floor,1904.00, 01-Sep-2015
975,Revenue,CCHD,Bed Purchasing - North,Respite Planned - Nursing,Fshc  1St Floor,1904.00, 29-Sep-2015
976,Revenue,CCHD,Bed Purchasing - Southmead Hospital,Permanent Nursing,Fshc  1St Floor,1130.76, 01-Sep-2015
977,Revenue,CCHD,Bed Purchasing - Southmead Hospital,Permanent Nursing,Fshc  1St Floor,1130.76, 29-Sep-2015
978,Revenue,CCHD,Bed Purchasing - Southmead Hospital,Permanent Nursing,Fshc  1St Floor,1221.08, 01-Sep-2015
979,Revenue,CCHD,Bed Purchasing - Southmead Hospital,Permanent Nursing,Fshc  1St Floor,1221.08, 29-Sep-2015
980,Revenue,CCHD,Bed Purchasing - North,Permanent Residential,Fshc  1St Floor,1248.40, 01-Sep-2015
981,Revenue,CCHD,Bed Purchasing - North,Permanent Residential,Fshc  1St Floor,1248.40, 29-Sep-2015
982,Revenue,CCHD,Bed Purchasing - South,Respite Emergency - Residential,Fshc  1St Floor,1649.14, 01-Sep-2015
983,Revenue,CCHD,Bed Purchasing - South,Respite Emergency - Residential,Fshc  1St Floor,1458.86, 01-Sep-2015
984,Revenue,CCHD,South Glos Users in South Glos Homes,Permanent Nursing,Fshc  1St Floor,3401.51, 01-Sep-2015
985,Revenue,CCHD,Bed Purchasing - South,Permanent Residential,Fshc  1St Floor,1148.76, 01-Sep-2015
986,Revenue,CCHD,Bed Purchasing - South,Permanent Residential,Fshc  1St Floor,1148.76, 29-Sep-2015
987,Revenue,CCHD,Bed Purchasing - Southmead Hospital,Permanent Nursing,Fshc  1St Floor,2080.00, 01-Sep-2015
988,Revenue,CCHD,Bed Purchasing - Southmead Hospital,Permanent Nursing,Fshc  1St Floor,2080.00, 29-Sep-2015
989,Revenue,CCHD,Bed Purchasing - Southmead Hospital,Permanent Nursing,Fshc  1St Floor,1393.24, 01-Sep-2015
990,Revenue,CCHD,Bed Purchasing - Southmead Hospital,Permanent Nursing,Fshc  1St Floor,1393.24, 29-Sep-2015
991,Revenue,CCHD,Bed Purchasing - Southmead Hospital,Permanent Nursing,Fshc  1St Floor,1398.80, 01-Sep-2015
992,Revenue,CCHD,Bed Purchasing - Southmead Hospital,Permanent Nursing,Fshc  1St Floor,1398.80, 29-Sep-2015
993,Revenue,CCHD,Bed Purchasing - North,Permanent Nursing,Fshc  1St Floor,545.84, 01-Sep-2015
994,Revenue,CCHD,Bed Purchasing - North,Permanent Nursing,Fshc  1St Floor,545.84, 29-Sep-2015
995,Revenue,CCHD,Bed Purchasing - North,Permanent Nursing,Fshc  1St Floor,1501.92, 01-Sep-2015
996,Revenue,CCHD,Bed Purchasing - North,Permanent Nursing,Fshc  1St Floor,1501.92, 29-Sep-2015
997,Revenue,CCHD,Bed Purchasing - Southmead Hospital,Permanent Residential,Fshc  1St Floor,619.48, 01-Sep-2015
998,Revenue,CCHD,Bed Purchasing - Southmead Hospital,Permanent Residential,Fshc  1St Floor,619.48, 29-Sep-2015
999,Revenue,CCHD,South Glos Users in South Glos Homes,Permanent Nursing,Fshc  1St Floor,1392.00, 01-Sep-2015
1000,Revenue,CCHD,Bed Purchasing - Southmead Hospital,Permanent Nursing,Fshc  1St Floor,1385.72, 01-Sep-2015
1001,Revenue,CCHD,Bed Purchasing - Southmead Hospital,Permanent Nursing,Fshc  1St Floor,1385.72, 29-Sep-2015
1002,Revenue,CCHD,Swift Dump Code,Permanent Residential,Fshc  1St Floor,2251.68, 01-Sep-2015
1003,Revenue,CCHD,Bed Purchasing - North,Permanent Nursing,Fshc  1St Floor,1270.20, 01-Sep-2015
1004,Revenue,CCHD,Bed Purchasing - North,Permanent Nursing,Fshc  1St Floor,1270.20, 29-Sep-2015
1005,Revenue,CCHD,Bed Purchasing - North,Permanent Nursing,Fshc  1St Floor,908.28, 01-Sep-2015
1006,Revenue,CCHD,Bed Purchasing - North,Permanent Nursing,Fshc  1St Floor,908.28, 29-Sep-2015
1007,Revenue,CCHD,Bed Purchasing - North,Permanent Nursing,Fshc  1St Floor,1848.41, 29-Sep-2015
1008,Revenue,CCHD,Bed Purchasing - North,Permanent Nursing,Fshc  1St Floor,1398.80, 29-Sep-2015
1009,Revenue,CCHD,Bed Purchasing - North,Permanent Nursing,Fshc  1St Floor,1489.00, 01-Sep-2015
1010,Revenue,CCHD,Bed Purchasing - North,Permanent Nursing,Fshc  1St Floor,1489.00, 29-Sep-2015
1011,Revenue,CCHD,Bed Purchasing - North,Permanent Residential,Fshc  1St Floor,1421.84, 01-Sep-2015
1012,Revenue,CCHD,Bed Purchasing - North,Permanent Residential,Fshc  1St Floor,1421.84, 29-Sep-2015
1013,Revenue,CCHD,Bed Purchasing - North,Permanent Nursing,Fshc  1St Floor,1007.00, 01-Sep-2015
1014,Revenue,CCHD,Bed Purchasing - North,Permanent Nursing,Fshc  1St Floor,1007.00, 29-Sep-2015
1015,Revenue,CCHD,Bed purchasing - Elderly S117 - South,Permanent Nursing,Fshc  1St Floor,1904.00, 01-Sep-2015
1016,Revenue,CCHD,Bed purchasing - Elderly S117 - South,Permanent Nursing,Fshc  1St Floor,1904.00, 29-Sep-2015
1017,Revenue,CCHD,Bed Purchasing - North,Permanent Residential,Fshc  1St Floor,1268.08, 01-Sep-2015
1018,Revenue,CCHD,Bed Purchasing - North,Permanent Residential,Fshc  1St Floor,1268.08, 29-Sep-2015
1019,Revenue,CCHD,Bed Purchasing - North,Permanent Residential,Fshc  1St Floor,731.16, 01-Sep-2015
1020,Revenue,CCHD,Bed Purchasing - North,Permanent Residential,Fshc  1St Floor,1932.35, 29-Sep-2015
1021,Revenue,CCHD,Bed Purchasing - North,Permanent Residential,Fshc  1St Floor,731.16, 29-Sep-2015
1022,Revenue,CCHD,Bed Purchasing - North,Permanent Residential,Fshc  1St Floor,1421.60, 01-Sep-2015
1023,Revenue,CCHD,Bed Purchasing - North,Permanent Residential,Fshc  1St Floor,1421.60, 29-Sep-2015
1024,Revenue,CCHD,Bed Purchasing - North,Permanent Nursing,Fshc  1St Floor,1602.80, 01-Sep-2015
1025,Revenue,CCHD,Bed Purchasing - North,Permanent Nursing,Fshc  1St Floor,1602.80, 29-Sep-2015
1026,Revenue,CCHD,Bed Purchasing - Southmead Hospital,Permanent Nursing,Fshc  1St Floor,2797.60, 01-Sep-2015
1027,Revenue,CCHD,South Glos Users in South Glos Homes,Permanent Nursing,Fshc  1St Floor,896.00, 01-Sep-2015
1028,Revenue,CCHD,Bed Purchasing - North,Permanent Nursing,Fshc  1St Floor,2747.64, 01-Sep-2015
1029,Revenue,CCHD,Bed Purchasing - North,Permanent Nursing,Fshc  1St Floor,1398.80, 01-Sep-2015
1030,Revenue,CCHD,Bed Purchasing - North,Permanent Nursing,Fshc  1St Floor,1398.80, 29-Sep-2015
1031,Revenue,CCHD,South Glos Users in South Glos Homes,Permanent Nursing,Fshc  1St Floor,592.00, 01-Sep-2015
1032,Revenue,CCHD,South Glos Users in South Glos Homes,Permanent Nursing,Fshc  1St Floor,832.00, 01-Sep-2015
1033,Revenue,CCHD,Bed Purchasing - Southmead Hospital,Permanent Nursing,Fshc  1St Floor,1197.88, 01-Sep-2015
1034,Revenue,CCHD,Bed Purchasing - Southmead Hospital,Permanent Nursing,Fshc  1St Floor,1197.88, 29-Sep-2015
1035,Revenue,CCHD,Bed Purchasing - Southmead Hospital,Respite Planned - Nursing,Fshc  1St Floor,2856.00, 01-Sep-2015
1036,Revenue,CCHD,Bed Purchasing - Southmead Hospital,Respite Planned - Nursing,Fshc  1St Floor,884.00, 01-Sep-2015
1037,Revenue,CCHD,Bed Purchasing - Frenchay Hospital,Permanent Residential,Fshc  1St Floor,16937.57, 01-Sep-2015
1038,Revenue,CCHD,Bed Purchasing - North,Permanent Nursing,Fshc  1St Floor,1398.80, 01-Sep-2015
1039,Revenue,CCHD,Bed Purchasing - Southmead Hospital,Permanent Residential,Fshc  1St Floor,973.72, 01-Sep-2015
1040,Revenue,CCHD,Bed Purchasing - North,Permanent Nursing,Fshc  1St Floor,1398.80, 29-Sep-2015
1041,Revenue,CCHD,Bed Purchasing - Southmead Hospital,Permanent Nursing,Fshc  1St Floor,1428.61, 01-Sep-2015
1042,Revenue,CCHD,Bed Purchasing - Southmead Hospital,Permanent Nursing,Fshc  1St Floor,845.57, 01-Sep-2015
1043,Revenue,CCHD,Bed Purchasing - Southmead Hospital,Respite Planned - Nursing,Fshc  1St Floor,1904.00, 01-Sep-2015
1044,Revenue,CCHD,Bed Purchasing - Southmead Hospital,Respite Planned - Nursing,Fshc  1St Floor,1904.00, 29-Sep-2015
1045,Revenue,CCHD,Bed Purchasing - Southmead Hospital,Permanent Residential,Fshc  1St Floor,5563.20, 01-Sep-2015
1046,Revenue,CCHD,Bed Purchasing - Southmead Hospital,Permanent Residential,Fshc  1St Floor,1171.20, 01-Sep-2015
1047,Revenue,CCHD,Bed Purchasing - Southmead Hospital,Permanent Residential,Fshc  1St Floor,1055.06, 01-Sep-2015
1048,Revenue,CCHD,Bed Purchasing - Southmead Hospital,Permanent Residential,Fshc  1St Floor,1171.20, 29-Sep-2015
1049,Revenue,CCHD,Bed Purchasing - North,Permanent Nursing,Fshc  1St Floor,1398.80, 01-Sep-2015
1050,Revenue,CCHD,Bed Purchasing - North,Permanent Nursing,Fshc  1St Floor,1348.84, 01-Sep-2015
1051,Revenue,CCHD,Bed Purchasing - North,Permanent Nursing,Fshc  1St Floor,5495.28, 29-Sep-2015
1052,Revenue,CCHD,Bed Purchasing - North,Permanent Nursing,Fshc  1St Floor,1478.44, 29-Sep-2015
1053,Revenue,CCHD,Bed Purchasing - Southmead Hospital,Permanent Nursing,Fshc  1St Floor,1344.04, 01-Sep-2015
1054,Revenue,CCHD,Bed Purchasing - Southmead Hospital,Permanent Nursing,Fshc  1St Floor,1344.04, 29-Sep-2015
1055,Revenue,CCHD,Bed Purchasing - North,Permanent Nursing,Fshc  1St Floor,1019.44, 01-Sep-2015
1056,Revenue,CCHD,Bed Purchasing - North,Permanent Nursing,Fshc  1St Floor,1019.44, 29-Sep-2015
1057,Revenue,CCHD,Bed Purchasing - North,Permanent Nursing,Fshc  1St Floor,1433.84, 01-Sep-2015
1058,Revenue,CCHD,Bed Purchasing - North,Permanent Nursing,Fshc  1St Floor,1433.84, 29-Sep-2015
1059,Revenue,CCHD,Bed Purchasing - Southmead Hospital,Permanent Nursing,Fshc  1St Floor,1398.80, 01-Sep-2015
1060,Revenue,CCHD,Bed Purchasing - Southmead Hospital,Permanent Nursing,Fshc  1St Floor,1398.80, 29-Sep-2015
1061,Revenue,CCHD,Bed Purchasing - Southmead Hospital,Permanent Nursing,Fshc  1St Floor,582.08, 01-Sep-2015
1062,Revenue,CCHD,Bed Purchasing - Southmead Hospital,Permanent Nursing,Fshc  1St Floor,582.08, 29-Sep-2015
1063,Revenue,CCHD,Bed Purchasing - Southmead Hospital,Permanent Nursing,Fshc  1St Floor,1398.80, 01-Sep-2015
1064,Revenue,CCHD,Bed Purchasing - Southmead Hospital,Permanent Nursing,Fshc  1St Floor,1398.80, 29-Sep-2015
1065,Revenue,CCHD,Bed Purchasing - Southmead Hospital,Permanent Nursing,Fshc  1St Floor,1548.67, 29-Sep-2015
1066,Revenue,CCHD,Bed Purchasing - Southmead Hospital,Permanent Nursing,Fshc  1St Floor,1398.80, 29-Sep-2015
1067,Revenue,CCHD,Bed Purchasing - Southmead Hospital,Permanent Nursing,Fshc  1St Floor,874.00, 01-Sep-2015
1068,Revenue,CCHD,Bed Purchasing - Southmead Hospital,Permanent Nursing,Fshc  1St Floor,874.00, 29-Sep-2015
1069,Revenue,CCHD,South Glos Users in South Glos Homes,Permanent Nursing,Fshc  1St Floor,2208.00, 01-Sep-2015
1070,Revenue,CCHD,Bed Purchasing - Southmead Hospital,Permanent Nursing,Fshc  1St Floor,8043.10, 29-Sep-2015
1071,Revenue,CCHD,Bed Purchasing - Southmead Hospital,Permanent Nursing,Fshc  1St Floor,1398.80, 29-Sep-2015
1072,Revenue,CCHD,Bed Purchasing - Southmead Hospital,Permanent Nursing,Fshc  1St Floor,650.77, 29-Sep-2015
1073,Revenue,CCHD,Bed Purchasing - Southmead Hospital,Respite Planned - Nursing,Fshc  1St Floor,1904.00, 01-Sep-2015
1074,Revenue,CCHD,Bed Purchasing - Southmead Hospital,Respite Planned - Nursing,Fshc  1St Floor,1156.00, 01-Sep-2015
1075,Revenue,CCHD,Bed Purchasing - Southmead Hospital,Respite Planned - Nursing,Fshc  1St Floor,748.00, 29-Sep-2015
1076,Revenue,CCHD,Bed Purchasing - Southmead Hospital,Permanent Nursing,Fshc  1St Floor,1329.40, 01-Sep-2015
1077,Revenue,CCHD,Bed Purchasing - Southmead Hospital,Permanent Nursing,Fshc  1St Floor,1329.40, 29-Sep-2015
1078,Revenue,CCHD,South Glos Users in South Glos Homes,Permanent Nursing,Fshc  1St Floor,5724.76, 01-Sep-2015
1079,Revenue,CCHD,South Glos Users in South Glos Homes,Permanent Nursing,Fshc  1St Floor,5069.26, 01-Sep-2015
1080,Revenue,CCHD,South Glos Users in South Glos Homes,Permanent Nursing,Fshc  1St Floor,2034.24, 01-Sep-2015
1081,Revenue,CCHD,Bed Purchasing - North,Permanent Nursing,Fshc  1St Floor,1287.04, 01-Sep-2015
1082,Revenue,CCHD,Bed Purchasing - North,Permanent Nursing,Fshc  1St Floor,1287.04, 29-Sep-2015
1083,Revenue,CCHD,Bed Purchasing - Southmead Hospital,Permanent Nursing,Fshc  1St Floor,1271.84, 01-Sep-2015
1084,Revenue,CCHD,Bed Purchasing - Southmead Hospital,Permanent Nursing,Fshc  1St Floor,1271.84, 29-Sep-2015
1085,Revenue,CCHD,Swift Dump Code,Permanent Residential,Fshc  1St Floor,2828.18, 01-Sep-2015
1086,Revenue,CCHD,Bed Purchasing - North,Permanent Nursing,Fshc  1St Floor,1023.84, 01-Sep-2015
1087,Revenue,CCHD,Swift Dump Code,Permanent Residential,Fshc  1St Floor,1011.11, 01-Sep-2015
1088,Revenue,CCHD,Bed Purchasing - North,Permanent Nursing,Fshc  1St Floor,1023.84, 29-Sep-2015
1089,Revenue,CCHD,Bed Purchasing - Southmead Hospital,Permanent Nursing,Fshc  1St Floor,2947.47, 01-Sep-2015
1090,Revenue,CCHD,Bed Purchasing - Southmead Hospital,Permanent Nursing,Fshc  1St Floor,1398.80, 01-Sep-2015
1091,Revenue,CCHD,Bed Purchasing - Southmead Hospital,Permanent Nursing,Fshc  1St Floor,3441.60, 29-Sep-2015
1092,Revenue,CCHD,Bed Purchasing - Southmead Hospital,Permanent Nursing,Fshc  1St Floor,1107.64, 29-Sep-2015
1093,Revenue,CCHD,Bed Purchasing - Southmead Hospital,Permanent Nursing,Fshc  1St Floor,1848.92, 01-Sep-2015
1094,Revenue,CCHD,Bed Purchasing - Southmead Hospital,Permanent Nursing,Fshc  1St Floor,1848.92, 29-Sep-2015
1095,Revenue,CCHD,Bed Purchasing - North,Permanent Residential,Fshc  1St Floor,3034.68, 01-Sep-2015
1096,Revenue,CCHD,Bed Purchasing - North,Permanent Residential,Fshc  1St Floor,3034.68, 29-Sep-2015
1097,Revenue,CCHD,Bed Purchasing - North,Permanent Nursing,Fshc  1St Floor,1405.04, 01-Sep-2015
1098,Revenue,CCHD,Bed Purchasing - North,Permanent Nursing,Fshc  1St Floor,1405.04, 29-Sep-2015
1099,Revenue,CCHD,Bed Purchasing - Southmead Hospital,Permanent Residential,Fshc  1St Floor,1266.76, 01-Sep-2015
1100,Revenue,CCHD,Bed Purchasing - Southmead Hospital,Permanent Residential,Fshc  1St Floor,1266.76, 29-Sep-2015
1101,Revenue,CCHD,Bed Purchasing - Southmead Hospital,Permanent Nursing,Fshc  1St Floor,1335.04, 01-Sep-2015
1102,Revenue,CCHD,Bed Purchasing - Southmead Hospital,Permanent Nursing,Fshc  1St Floor,1335.04, 29-Sep-2015
1103,Revenue,CCHD,Bed Purchasing - South,Permanent Residential,Fshc  1St Floor,1972.00, 01-Sep-2015
1104,Revenue,CCHD,Bed Purchasing - South,Permanent Residential,Fshc  1St Floor,1972.00, 29-Sep-2015
1105,Revenue,CCHD,Bed Purchasing - Southmead Hospital,Permanent Nursing,Fshc  1St Floor,1398.60, 01-Sep-2015
1106,Revenue,CCHD,Bed Purchasing - South,Permanent Nursing,Fshc  1St Floor,1398.80, 01-Sep-2015
1107,Revenue,CCHD,Bed Purchasing - South,Permanent Nursing,Fshc  1St Floor,1398.80, 29-Sep-2015
1108,Revenue,CCHD,Bed Purchasing - Southmead Hospital,Permanent Residential,Fshc  1St Floor,1494.80, 01-Sep-2015
1109,Revenue,CCHD,Bed Purchasing - Southmead Hospital,Permanent Residential,Fshc  1St Floor,1494.80, 29-Sep-2015
1110,Revenue,CCHD,Bed Purchasing - North,Permanent Residential,Fshc  1St Floor,968.32, 01-Sep-2015
1111,Revenue,CCHD,Bed Purchasing - North,Permanent Residential,Fshc  1St Floor,968.32, 29-Sep-2015
1112,Revenue,CCHD,Bed Purchasing - North,Permanent Residential,Fshc  1St Floor,1179.64, 01-Sep-2015
1113,Revenue,CCHD,Bed Purchasing - North,Permanent Residential,Fshc  1St Floor,1179.64, 29-Sep-2015
1114,Revenue,CCHD,Bed Purchasing - North,Permanent Nursing,Fshc  1St Floor,1144.52, 01-Sep-2015
1115,Revenue,CCHD,Bed Purchasing - North,Permanent Nursing,Fshc  1St Floor,1144.52, 29-Sep-2015
1116,Revenue,CCHD,Bed Purchasing - South,Permanent Residential,Fshc  1St Floor,650.25, 01-Sep-2015
1117,Revenue,CCHD,Bed Purchasing - South,Permanent Nursing,Fshc  1St Floor,1374.80, 01-Sep-2015
1118,Revenue,CCHD,Bed Purchasing - South,Permanent Nursing,Fshc  1St Floor,1374.80, 29-Sep-2015
1119,Revenue,CCHD,Bed Purchasing - Southmead Hospital,Permanent Nursing,Fshc  1St Floor,1398.80, 01-Sep-2015
1120,Revenue,CCHD,Bed Purchasing - Southmead Hospital,Permanent Nursing,Fshc  1St Floor,1398.80, 29-Sep-2015
1121,Revenue,CCHD,Bed Purchasing - North,Permanent Residential,Fshc  1St Floor,5500.50, 01-Sep-2015
1122,Revenue,CCHD,Bed Purchasing - North,Permanent Residential,Fshc  1St Floor,1466.80, 01-Sep-2015
1123,Revenue,CCHD,Bed Purchasing - North,Permanent Residential,Fshc  1St Floor,1446.24, 29-Sep-2015
1124,Revenue,CCHD,Bed Purchasing - Southmead Hospital,Respite Planned - Nursing,Fshc  1St Floor,1428.00, 29-Sep-2015
1125,Revenue,CCHD,Bed Purchasing - Southmead Hospital,Permanent Nursing,Fshc  1St Floor,1252.64, 01-Sep-2015
1126,Revenue,CCHD,Bed Purchasing - Southmead Hospital,Permanent Nursing,Fshc  1St Floor,1252.64, 29-Sep-2015
1127,Revenue,CCHD,Bed Purchasing - South,Permanent Nursing,Fshc  1St Floor,1240.84, 01-Sep-2015
1128,Revenue,CCHD,Bed Purchasing - South,Permanent Nursing,Fshc  1St Floor,1240.84, 29-Sep-2015
1129,Revenue,CCHD,Bed Purchasing - Southmead Hospital,Permanent Nursing,Fshc  1St Floor,1304.40, 01-Sep-2015
1130,Revenue,CCHD,Bed Purchasing - Southmead Hospital,Permanent Nursing,Fshc  1St Floor,1304.40, 29-Sep-2015
1131,Revenue,CCHD,Bed Purchasing - Southmead Hospital,Permanent Residential,Fshc  1St Floor,1466.80, 01-Sep-2015
1132,Revenue,CCHD,Bed Purchasing - Southmead Hospital,Permanent Residential,Fshc  1St Floor,1466.80, 29-Sep-2015
1133,Revenue,CCHD,Bed Purchasing - South,Respite Emergency - Residential,Fshc  1St Floor,888.00, 01-Sep-2015
1134,Revenue,CCHD,Bed Purchasing - South,Permanent Residential,Fshc  1St Floor,1270.80, 01-Sep-2015
1135,Revenue,CCHD,Bed Purchasing - South,Permanent Residential,Fshc  1St Floor,1270.80, 29-Sep-2015
1136,Revenue,CCHD,Bed Purchasing - Southmead Hospital,Permanent Nursing,Fshc  1St Floor,1398.80, 01-Sep-2015
1137,Revenue,CCHD,Bed Purchasing - Southmead Hospital,Permanent Nursing,Fshc  1St Floor,1398.80, 29-Sep-2015
1138,Revenue,CCHD,South Glos Users in South Glos Homes,Permanent Nursing,Fshc  1St Floor,1408.00, 01-Sep-2015
1139,Revenue,CCHD,Bed Purchasing - Southmead Hospital,Permanent Nursing,Fshc  1St Floor,1398.80, 01-Sep-2015
1140,Revenue,CCHD,Bed Purchasing - Southmead Hospital,Permanent Nursing,Fshc  1St Floor,1398.80, 29-Sep-2015
1141,Revenue,CCHD,Bed Purchasing - Southmead Hospital,Permanent Nursing,Fshc  1St Floor,1324.72, 01-Sep-2015
1142,Revenue,CCHD,Bed Purchasing - Southmead Hospital,Permanent Nursing,Fshc  1St Floor,1324.72, 29-Sep-2015
1143,Revenue,CCHD,Bed Purchasing - South,Permanent Nursing,Fshc  1St Floor,1240.16, 01-Sep-2015
1144,Revenue,CCHD,Bed Purchasing - South,Permanent Nursing,Fshc  1St Floor,1240.16, 29-Sep-2015
1145,Revenue,CCHD,Bed Purchasing - Southmead Hospital,Permanent Residential,Fshc  1St Floor,1484.16, 01-Sep-2015
1146,Revenue,CCHD,Bed Purchasing - Southmead Hospital,Permanent Residential,Fshc  1St Floor,1484.16, 29-Sep-2015
1147,Revenue,CCHD,Bed Purchasing - Southmead Hospital,Respite Planned - Residential,Fshc  1St Floor,1776.00, 01-Sep-2015
1148,Revenue,CCHD,Bed Purchasing - Southmead Hospital,Permanent Nursing,Fshc  1St Floor,1398.80, 01-Sep-2015
1149,Revenue,CCHD,Bed Purchasing - Southmead Hospital,Permanent Nursing,Fshc  1St Floor,1398.80, 29-Sep-2015
1150,Revenue,CCHD,Bed purchasing - Elderly S117 - South,Permanent Nursing,Fshc  1St Floor,1904.00, 01-Sep-2015
1151,Revenue,CCHD,Bed purchasing - Elderly S117 - South,Permanent Nursing,Fshc  1St Floor,1904.00, 29-Sep-2015
1152,Revenue,CCHD,Bed Purchasing - Southmead Hospital,Permanent Residential,Fshc  1St Floor,1131.52, 01-Sep-2015
1153,Revenue,CCHD,Bed Purchasing - Southmead Hospital,Permanent Residential,Fshc  1St Floor,1131.52, 29-Sep-2015
1154,Revenue,CCHD,Bed Purchasing - South,Permanent Nursing,Fshc  1St Floor,1402.52, 01-Sep-2015
1155,Revenue,CCHD,Bed Purchasing - South,Permanent Nursing,Fshc  1St Floor,1402.52, 29-Sep-2015
1156,Revenue,CCHD,Bed Purchasing - Southmead Hospital,Permanent Nursing,Fshc  1St Floor,867.31, 29-Sep-2015
1157,Revenue,CCHD,Bed Purchasing - South,Permanent Residential,Fshc  1St Floor,1386.96, 01-Sep-2015
1158,Revenue,CCHD,Bed Purchasing - South,Permanent Residential,Fshc  1St Floor,1386.96, 29-Sep-2015
1159,Revenue,CCHD,Bed Purchasing - Southmead Hospital,Permanent Nursing,Fshc  1St Floor,813.60, 01-Sep-2015
1160,Revenue,CCHD,Bed Purchasing - Southmead Hospital,Permanent Nursing,Fshc  1St Floor,813.60, 29-Sep-2015
1161,Revenue,CCHD,Bed Purchasing - North,Permanent Residential,Fshc  1St Floor,1233.32, 01-Sep-2015
1162,Revenue,CCHD,Bed Purchasing - North,Permanent Residential,Fshc  1St Floor,1233.32, 29-Sep-2015
1163,Revenue,CCHD,Bed Purchasing - South,Permanent Nursing,Fshc  1St Floor,1267.20, 01-Sep-2015
1164,Revenue,CCHD,Bed Purchasing - South,Permanent Nursing,Fshc  1St Floor,1267.20, 29-Sep-2015
1165,Revenue,CCHD,Bed Purchasing - South,Permanent Nursing,Fshc  1St Floor,1352.12, 01-Sep-2015
1166,Revenue,CCHD,Bed Purchasing - South,Permanent Nursing,Fshc  1St Floor,1352.12, 29-Sep-2015
1167,Revenue,CCHD,Bed Purchasing - South,Permanent Nursing,Fshc  1St Floor,1681.08, 01-Sep-2015
1168,Revenue,CCHD,Bed Purchasing - South,Permanent Nursing,Fshc  1St Floor,1681.08, 29-Sep-2015
1169,Revenue,CCHD,Bed Purchasing - South,Permanent Nursing,Fshc  1St Floor,1132.64, 01-Sep-2015
1170,Revenue,CCHD,Bed Purchasing - South,Permanent Nursing,Fshc  1St Floor,1132.64, 29-Sep-2015
1171,Revenue,CCHD,Bed Purchasing - Southmead Hospital,Permanent Nursing,Fshc  1St Floor,1240.64, 01-Sep-2015
1172,Revenue,CCHD,Bed Purchasing - Southmead Hospital,Permanent Nursing,Fshc  1St Floor,1240.64, 29-Sep-2015
1173,Revenue,CCHD,Bed Purchasing - Southmead Hospital,Permanent Nursing,Fshc  1St Floor,956.72, 01-Sep-2015
1174,Revenue,CCHD,Bed Purchasing - Southmead Hospital,Permanent Nursing,Fshc  1St Floor,956.72, 29-Sep-2015
1175,Revenue,CCHD,Bed Purchasing - Southmead Hospital,Permanent Nursing,Fshc  1St Floor,1566.40, 01-Sep-2015
1176,Revenue,CCHD,Bed Purchasing - Southmead Hospital,Permanent Nursing,Fshc  1St Floor,1566.40, 29-Sep-2015
1177,Revenue,CCHD,Bed Purchasing - Southmead Hospital,Permanent Nursing,Fshc  1St Floor,1382.48, 01-Sep-2015
1178,Revenue,CCHD,Bed Purchasing - Southmead Hospital,Permanent Nursing,Fshc  1St Floor,1398.80, 01-Sep-2015
1179,Revenue,CCHD,Bed Purchasing - Southmead Hospital,Permanent Nursing,Fshc  1St Floor,1398.80, 29-Sep-2015
1180,Revenue,CCHD,Bed Purchasing - Southmead Hospital,Permanent Nursing,Fshc  1St Floor,894.72, 01-Sep-2015
1181,Revenue,CCHD,Bed Purchasing - Southmead Hospital,Permanent Nursing,Fshc  1St Floor,894.72, 29-Sep-2015
1182,Revenue,CCHD,Bed Purchasing - South,Permanent Nursing,Fshc  1St Floor,1255.12, 01-Sep-2015
1183,Revenue,CCHD,Bed Purchasing - South,Permanent Nursing,Fshc  1St Floor,1255.12, 29-Sep-2015
1184,Revenue,CCHD,Bed Purchasing - South,Respite Planned - Residential,Fshc  1St Floor,642.86, 29-Sep-2015
1185,Revenue,CCHD,Bed Purchasing - South,Permanent Residential,Fshc  1St Floor,2729.36, 01-Sep-2015
1186,Revenue,CCHD,Bed Purchasing - South,Permanent Residential,Fshc  1St Floor,2729.36, 29-Sep-2015
1187,Revenue,CCHD,Bed Purchasing - North,Permanent Nursing,Fshc  1St Floor,1352.04, 01-Sep-2015
1188,Revenue,CCHD,Bed Purchasing - Southmead Hospital,Respite Planned - Nursing,Fshc  1St Floor,952.00, 01-Sep-2015
1189,Revenue,CCHD,Bed Purchasing - Southmead Hospital,Respite Planned - Nursing,Fshc  1St Floor,748.00, 01-Sep-2015
1190,Revenue,CCHD,Bed Purchasing - Southmead Hospital,Permanent Nursing,Fshc  1St Floor,936.48, 01-Sep-2015
1191,Revenue,CCHD,Bed Purchasing - Southmead Hospital,Permanent Nursing,Fshc  1St Floor,936.48, 29-Sep-2015
1192,Revenue,CCHD,Bed Purchasing - North,Respite Planned - Nursing,Fshc  1St Floor,967.60, 29-Sep-2015
1193,Revenue,CCHD,Bed Purchasing - North,Respite Emergency - Residential,Fshc  1St Floor,1918.72, 01-Sep-2015
1194,Revenue,CCHD,Bed Purchasing - North,Respite Emergency - Residential,Fshc  1St Floor,1918.72, 29-Sep-2015
1195,Revenue,CCHD,Bed Purchasing - North,Permanent Nursing,Fshc  1St Floor,1364.16, 01-Sep-2015
1196,Revenue,CCHD,Bed Purchasing - North,Permanent Nursing,Fshc  1St Floor,1364.16, 29-Sep-2015
1197,Revenue,CCHD,Bed Purchasing - South,Permanent Nursing,Fshc  1St Floor,1137.72, 01-Sep-2015
1198,Revenue,CCHD,Bed Purchasing - South,Permanent Nursing,Fshc  1St Floor,1137.72, 29-Sep-2015
1199,Revenue,CCHD,Bed Purchasing - North,Permanent Nursing,Fshc  1St Floor,845.84, 01-Sep-2015
1200,Revenue,CCHD,Bed Purchasing - North,Permanent Nursing,Fshc  1St Floor,845.84, 29-Sep-2015
1201,Revenue,CCHD,Bed Purchasing - North,Permanent Nursing,Fshc  1St Floor,1506.80, 01-Sep-2015
1202,Revenue,CCHD,Bed Purchasing - North,Permanent Nursing,Fshc  1St Floor,1506.80, 29-Sep-2015
1203,Revenue,CCHD,Bed Purchasing - North,Permanent Nursing,Fshc  1St Floor,1245.80, 01-Sep-2015
1204,Revenue,CCHD,Bed Purchasing - North,Permanent Nursing,Fshc  1St Floor,1245.80, 29-Sep-2015
1205,Revenue,CCHD,Bed purchasing - Elderly S117 - South,Permanent Nursing,Fshc  1St Floor,2080.00, 01-Sep-2015
1206,Revenue,CCHD,Bed purchasing - Elderly S117 - South,Permanent Nursing,Fshc  1St Floor,2080.00, 29-Sep-2015
1207,Revenue,CCHD,Bed Purchasing - Southmead Hospital,Permanent Nursing,Fshc  1St Floor,1355.76, 01-Sep-2015
1208,Revenue,CCHD,Bed Purchasing - Southmead Hospital,Permanent Nursing,Fshc  1St Floor,1355.76, 29-Sep-2015
1209,Revenue,CCHD,Bed Purchasing - South,Permanent Nursing,Fshc  1St Floor,904.24, 01-Sep-2015
1210,Revenue,CCHD,Bed Purchasing - South,Permanent Nursing,Fshc  1St Floor,904.24, 29-Sep-2015
1211,Revenue,CCHD,Bed Purchasing - Southmead Hospital,Permanent Nursing,Fshc  1St Floor,2536.56, 29-Sep-2015
1212,Revenue,CCHD,Bed Purchasing - Southmead Hospital,Permanent Nursing,Fshc  1St Floor,1506.80, 01-Sep-2015
1213,Revenue,CCHD,Bed Purchasing - Southmead Hospital,Permanent Nursing,Fshc  1St Floor,1506.80, 29-Sep-2015
1214,Revenue,CCHD,Bed Purchasing - North,Permanent Nursing,Fshc  1St Floor,1374.32, 01-Sep-2015
1215,Revenue,CCHD,Bed Purchasing - North,Permanent Nursing,Fshc  1St Floor,1374.32, 29-Sep-2015
1216,Revenue,CCHD,Bed Purchasing - Southmead Hospital,Permanent Nursing,Fshc  1St Floor,1574.80, 01-Sep-2015
1217,Revenue,CCHD,Bed Purchasing - Southmead Hospital,Permanent Nursing,Fshc  1St Floor,1574.80, 29-Sep-2015
1218,Revenue,CCHD,Bed Purchasing - South,Permanent Nursing,Fshc  1St Floor,1221.40, 01-Sep-2015
1219,Revenue,CCHD,Bed Purchasing - South,Permanent Nursing,Fshc  1St Floor,1221.40, 29-Sep-2015
1220,Revenue,CCHD,Bed Purchasing - Southmead Hospital,Permanent Residential,Fshc  1St Floor,1250.68, 01-Sep-2015
1221,Revenue,CCHD,Bed Purchasing - Southmead Hospital,Permanent Residential,Fshc  1St Floor,1250.68, 29-Sep-2015
1222,Revenue,CCHD,Bed Purchasing - Southmead Hospital,Permanent Nursing,Fshc  1St Floor,1382.80, 01-Sep-2015
1223,Revenue,CCHD,Bed Purchasing - Southmead Hospital,Permanent Nursing,Fshc  1St Floor,1382.80, 29-Sep-2015
1224,Revenue,CCHD,Bed Purchasing - Southmead Hospital,Permanent Nursing,Fshc  1St Floor,1382.28, 01-Sep-2015
1225,Revenue,CCHD,Bed Purchasing - Southmead Hospital,Permanent Nursing,Fshc  1St Floor,1382.28, 29-Sep-2015
1226,Revenue,CCHD,Bed Purchasing - Southmead Hospital,Permanent Nursing,Fshc  1St Floor,1242.28, 01-Sep-2015
1227,Revenue,CCHD,Bed Purchasing - Southmead Hospital,Permanent Nursing,Fshc  1St Floor,1242.28, 29-Sep-2015
1228,Revenue,CCHD,Bed Purchasing - Southmead Hospital,Permanent Nursing,Fshc  1St Floor,1398.80, 01-Sep-2015
1229,Revenue,CCHD,Bed Purchasing - Southmead Hospital,Permanent Nursing,Fshc  1St Floor,1398.80, 29-Sep-2015
1230,Revenue,CCHD,Bed Purchasing - North,Permanent Residential,Fshc  1St Floor,1128.92, 01-Sep-2015
1231,Revenue,CCHD,Bed Purchasing - North,Permanent Residential,Fshc  1St Floor,1128.92, 29-Sep-2015
1232,Revenue,CCHD,Bed Purchasing - Southmead Hospital,Permanent Nursing,Fshc  1St Floor,950.80, 01-Sep-2015
1233,Revenue,CCHD,Bed Purchasing - Southmead Hospital,Permanent Nursing,Fshc  1St Floor,950.80, 29-Sep-2015
1234,Revenue,CCHD,Bed Purchasing - Elderly S117- North,Permanent Nursing,Fshc  1St Floor,2012.00, 01-Sep-2015
1235,Revenue,CCHD,Bed Purchasing - Elderly S117- North,Permanent Nursing,Fshc  1St Floor,2012.00, 29-Sep-2015
1236,Revenue,CCHD,Bed Purchasing - North,Permanent Nursing,Fshc  1St Floor,5811.94, 01-Sep-2015
1237,Revenue,CCHD,Bed Purchasing - North,Permanent Nursing,Fshc  1St Floor,1506.80, 01-Sep-2015
1238,Revenue,CCHD,Bed Purchasing - North,Permanent Nursing,Fshc  1St Floor,1506.80, 29-Sep-2015
1239,Revenue,CCHD,Bed Purchasing - Southmead Hospital,Permanent Nursing,Fshc  1St Floor,1574.80, 01-Sep-2015
1240,Revenue,CCHD,Bed Purchasing - Southmead Hospital,Permanent Nursing,Fshc  1St Floor,956.13, 01-Sep-2015
1241,Revenue,CCHD,Bed Purchasing - Southmead Hospital,Permanent Nursing,Fshc  1St Floor,1574.80, 29-Sep-2015
1242,Revenue,CCHD,Bed Purchasing - Southmead Hospital,Permanent Nursing,Fshc  1St Floor,1101.28, 01-Sep-2015
1243,Revenue,CCHD,Bed Purchasing - Southmead Hospital,Permanent Nursing,Fshc  1St Floor,1101.28, 29-Sep-2015
1244,Revenue,CCHD,Bed Purchasing - North,Permanent Residential,Fshc  1St Floor,1050.88, 01-Sep-2015
1245,Revenue,CCHD,Bed Purchasing - North,Permanent Residential,Fshc  1St Floor,1050.88, 29-Sep-2015
1246,Revenue,CCHD,Bed Purchasing - South,Permanent Residential,Fshc  1St Floor,1368.08, 01-Sep-2015
1247,Revenue,CCHD,Bed Purchasing - South,Permanent Residential,Fshc  1St Floor,1368.08, 29-Sep-2015
1248,Revenue,CCHD,Bed Purchasing - Southmead Hospital,Permanent Residential,Fshc  1St Floor,808.44, 01-Sep-2015
1249,Revenue,CCHD,Bed Purchasing - Southmead Hospital,Permanent Residential,Fshc  1St Floor,808.44, 29-Sep-2015
1250,Revenue,CCHD,CAH Assistant Directors,Agency Staff (Admin/Support Staff) Pay,Gatenby Sanderson Limited,15340.00, 09-Sep-2015
1251,Revenue,CCHD,Section 117 Placements MH Younger,Permanent Residential,Gladstone House,2792.00, 01-Sep-2015
1252,Revenue,CCHD,Section 117 Placements MH Younger,Permanent Residential,Gladstone House,2792.00, 29-Sep-2015
1253,Revenue,CCHD,Bed Purchasing - South,Permanent Residential,Glasallt Fawr,4666.48, 01-Sep-2015
1254,Revenue,CCHD,Bed Purchasing - South,Permanent Residential,Glasallt Fawr,4666.48, 29-Sep-2015
1255,Revenue,CCHD,Bed Purchasing - North,Permanent Residential,Glebe House Nursing Home,2163.16, 01-Sep-2015
1256,Revenue,CCHD,Bed Purchasing - North,Permanent Residential,Glebe House Nursing Home,2163.16, 29-Sep-2015
1257,Revenue,CCHD,South Glos Users in South Glos Homes,Permanent Nursing,Glebe House Nursing Home,976.00, 01-Sep-2015
1258,Revenue,CCHD,South Glos Users in South Glos Homes,Permanent Nursing,Glebe House Nursing Home,2208.00, 01-Sep-2015
1259,Revenue,CCHD,Bed Purchasing - North,Permanent Nursing,Glebe House Nursing Home,993.89, 01-Sep-2015
1260,Revenue,CCHD,South Glos Users in South Glos Homes,Permanent Nursing,Glebe House Nursing Home,544.00, 01-Sep-2015
1261,Revenue,CCHD,Bed Purchasing - North,Permanent Nursing,Glebe House Nursing Home,2140.68, 29-Sep-2015
1262,Revenue,CCHD,Bed Purchasing - South,Permanent Residential,Glebe House Nursing Home,2073.76, 01-Sep-2015
1263,Revenue,CCHD,Bed Purchasing - South,Permanent Residential,Glebe House Nursing Home,2073.76, 29-Sep-2015
1264,Revenue,CCHD,South Glos Users in South Glos Homes,Permanent Nursing,Glebe House Nursing Home,2208.00, 01-Sep-2015
1265,Revenue,CCHD,Bed Purchasing - North,Permanent Nursing,Glebe House Nursing Home,2458.80, 01-Sep-2015
1266,Revenue,CCHD,Bed Purchasing - North,Permanent Nursing,Glebe House Nursing Home,2257.08, 29-Sep-2015
1267,Revenue,CCHD,Swift Dump Code,Permanent Residential,Glebe House Nursing Home,717.18, 29-Sep-2015
1268,Revenue,CCHD,Bed Purchasing - North,Permanent Nursing,Glebe House Nursing Home,2186.96, 01-Sep-2015
1269,Revenue,CCHD,Bed Purchasing - North,Permanent Nursing,Glebe House Nursing Home,2186.96, 29-Sep-2015
1270,Revenue,CCHD,Bed Purchasing - North,Permanent Nursing,Glebe House Nursing Home,2742.80, 01-Sep-2015
1271,Revenue,CCHD,South Glos Users in South Glos Homes,Permanent Nursing,Glebe House Nursing Home,2297.01, 01-Sep-2015
1272,Revenue,CCHD,South Glos Users in South Glos Homes,Permanent Nursing,Glebe House Nursing Home,2208.00, 01-Sep-2015
1273,Revenue,CCHD,Bed Purchasing - North,Permanent Residential,Glebe House Nursing Home,2628.08, 01-Sep-2015
1274,Revenue,CCHD,Bed Purchasing - North,Permanent Residential,Glebe House Nursing Home,2628.08, 29-Sep-2015
1275,Revenue,CCHD,South Glos Users in South Glos Homes,Permanent Nursing,Glebe House Nursing Home,1216.00, 01-Sep-2015
1276,Revenue,CCHD,South Glos Users in South Glos Homes,Permanent Nursing,Glebe House Nursing Home,1104.00, 01-Sep-2015
1277,Revenue,CCHD,Leadership and Business Support,Other Employee Expenses,Gloucestershire Hospitals NHSFT,830.60, 10-Sep-2015
1278,Revenue,CCHD,Bed Purchasing - South,Permanent Residential,Gordena Care Home,2137.52, 01-Sep-2015
1279,Revenue,CCHD,Bed Purchasing - South,Permanent Residential,Gordena Care Home,2137.52, 29-Sep-2015
1280,Revenue,CCHD,Bed Purchasing - South,Permanent Residential,Gordena Care Home,3189.84, 01-Sep-2015
1281,Revenue,CCHD,Bed Purchasing - South,Permanent Residential,Gordena Care Home,3189.84, 29-Sep-2015
1282,Revenue,CCHD,Bed Purchasing - South,Permanent Residential,Gordena Care Home,2996.16, 01-Sep-2015
1283,Revenue,CCHD,Bed Purchasing - South,Permanent Residential,Gordena Care Home,2996.16, 29-Sep-2015
1284,Revenue,CCHD,Bed Purchasing - South,Permanent Residential,Gordena Care Home,1950.08, 01-Sep-2015
1285,Revenue,CCHD,Bed Purchasing - South,Permanent Residential,Gordena Care Home,1950.08, 29-Sep-2015
1286,Revenue,CCHD,Bed Purchasing - Under 65s PWLD - South,Respite Planned - Residential,Gordena Care Home,2530.56, 29-Sep-2015
1287,Revenue,CCHD,Bed Purchasing - South,Permanent Residential,Gordena Care Limited,4264.60, 01-Sep-2015
1288,Revenue,CCHD,Bed Purchasing - South,Permanent Residential,Gordena Care Limited,4264.60, 29-Sep-2015
1289,Revenue,CCHD,Bed purchasing - S28A Under 65 - South,Permanent Residential,Gordena Care Limited,4161.28, 01-Sep-2015
1290,Revenue,CCHD,Bed purchasing - S28A Under 65 - South,Permanent Residential,Gordena Care Limited,4161.28, 29-Sep-2015
1291,Revenue,CCHD,Bed Purchasing - North,Permanent Residential,Gordena Care Limited,4260.48, 01-Sep-2015
1292,Revenue,CCHD,Bed Purchasing - North,Permanent Residential,Gordena Care Limited,4260.48, 29-Sep-2015
1293,Revenue,CCHD,Bed Purchasing - South,Permanent Nursing,Gracefields Nursing Home,1712.72, 01-Sep-2015
1294,Revenue,CCHD,Bed Purchasing - South,Permanent Nursing,Gracefields Nursing Home,1712.72, 29-Sep-2015
1295,Revenue,CCHD,Bed Purchasing - Southmead Hospital,Permanent Nursing,Gracefields Nursing Home,2246.80, 01-Sep-2015
1296,Revenue,CCHD,Bed Purchasing - Southmead Hospital,Permanent Nursing,Gracefields Nursing Home,1052.64, 29-Sep-2015
1297,Revenue,CCHD,Bed Purchasing - Southmead Hospital,Permanent Nursing,Gracefields Nursing Home,767.70, 29-Sep-2015
1298,Revenue,CCHD,Bed Purchasing - Southmead Hospital,Permanent Nursing,Gracefields Nursing Home,1655.96, 01-Sep-2015
1299,Revenue,CCHD,Bed Purchasing - Southmead Hospital,Permanent Nursing,Gracefields Nursing Home,1655.96, 29-Sep-2015
1300,Revenue,CCHD,Swift Dump Code,Permanent Residential,Gracefields Nursing Home,1800.29, 01-Sep-2015
1301,Revenue,CCHD,Bed Purchasing - Southmead Hospital,Permanent Nursing,Gracefields Nursing Home,883.28, 01-Sep-2015
1302,Revenue,CCHD,Bed Purchasing - Southmead Hospital,Permanent Nursing,Gracefields Nursing Home,883.28, 29-Sep-2015
1303,Revenue,CCHD,Bed purchasing - Elderly S117 - South,Permanent Nursing,Gracefields Nursing Home,2381.88, 01-Sep-2015
1304,Revenue,CCHD,Bed purchasing - Elderly S117 - South,Permanent Nursing,Gracefields Nursing Home,2381.88, 29-Sep-2015
1305,Revenue,CCHD,Bed Purchasing - South,Permanent Nursing,Gracefields Nursing Home,2269.68, 01-Sep-2015
1306,Revenue,CCHD,Bed Purchasing - Southmead Hospital,Permanent Nursing,Gracefields Nursing Home,1586.56, 01-Sep-2015
1307,Revenue,CCHD,Bed Purchasing - Southmead Hospital,Permanent Nursing,Gracefields Nursing Home,1586.56, 29-Sep-2015
1308,Revenue,CCHD,Bed Purchasing - South,Permanent Nursing,Gracefields Nursing Home,2658.88, 01-Sep-2015
1309,Revenue,CCHD,Bed Purchasing - South,Permanent Nursing,Gracefields Nursing Home,2658.88, 29-Sep-2015
1310,Revenue,CCHD,Bed Purchasing - Southmead Hospital,Permanent Nursing,Gracefields Nursing Home,3352.53, 01-Sep-2015
1311,Revenue,CCHD,South Glos Users in South Glos Homes,Permanent Nursing,Gracefields Nursing Home,1296.00, 01-Sep-2015
1312,Revenue,CCHD,South Glos Users in South Glos Homes,Permanent Nursing,Gracefields Nursing Home,512.00, 29-Sep-2015
1313,Revenue,CCHD,Bed Purchasing - South,Permanent Nursing,Gracefields Nursing Home,1601.96, 01-Sep-2015
1314,Revenue,CCHD,Bed Purchasing - South,Permanent Nursing,Gracefields Nursing Home,1601.96, 29-Sep-2015
1315,Revenue,CCHD,South Glos Users in South Glos Homes,Permanent Nursing,Gracefields Nursing Home,864.00, 01-Sep-2015
1316,Revenue,CCHD,Bed Purchasing - Southmead Hospital,Permanent Nursing,Gracefields Nursing Home,1539.00, 01-Sep-2015
1317,Revenue,CCHD,Bed Purchasing - Southmead Hospital,Permanent Nursing,Gracefields Nursing Home,1539.00, 29-Sep-2015
1318,Revenue,CCHD,Bed Purchasing - Southmead Hospital,Permanent Residential,Granada House Residential Home,2360.06, 25-Sep-2015
1319,Revenue,CCHD,Bed Purchasing - North,Permanent Residential,Greensleeves,1344.52, 01-Sep-2015
1320,Revenue,CCHD,Bed Purchasing - North,Permanent Residential,Greensleeves,1344.52, 29-Sep-2015
1321,Revenue,CCHD,Bed Purchasing - South,Permanent Residential,Grove Care,1883.40, 01-Sep-2015
1322,Revenue,CCHD,Bed Purchasing - South,Permanent Residential,Grove Care,1883.40, 29-Sep-2015
1323,Revenue,CCHD,Bed Purchasing - South,Permanent Residential,Gwendoline House,10886.20, 29-Sep-2015
1324,Revenue,CCHD,Bed Purchasing - Southmead Hospital,Permanent Residential,Gwendoline House,1670.80, 29-Sep-2015
1325,Revenue,CCHD,Bed Purchasing - Southmead Hospital,Permanent Residential,Gwendoline House,1243.43, 29-Sep-2015
1326,Revenue,CCHD,Bed Purchasing - Southmead Hospital,Permanent Residential,Gwendoline House,954.74, 29-Sep-2015
1327,Revenue,CCHD,Bed Purchasing - South,Permanent Residential,Gwendoline House,955.96, 01-Sep-2015
1328,Revenue,CCHD,Bed Purchasing - South,Permanent Residential,Gwendoline House,955.96, 29-Sep-2015
1329,Revenue,CCHD,Bed Purchasing - South,Permanent Residential,Gwendoline House,1159.80, 01-Sep-2015
1330,Revenue,CCHD,Bed Purchasing - South,Permanent Residential,Gwendoline House,1159.80, 29-Sep-2015
1331,Revenue,CCHD,Bed Purchasing - South,Permanent Residential,Gwendoline House,1526.36, 01-Sep-2015
1332,Revenue,CCHD,Bed Purchasing - South,Permanent Residential,Gwendoline House,1526.36, 29-Sep-2015
1333,Revenue,CCHD,Bed Purchasing - Southmead Hospital,Permanent Residential,Gwendoline House,1634.04, 01-Sep-2015
1334,Revenue,CCHD,Bed Purchasing - Southmead Hospital,Permanent Residential,Gwendoline House,1634.04, 29-Sep-2015
1335,Revenue,CCHD,Supporting People Programme,Grants to Voluntary Bodies,Habinteg Housing Association,1373.26, 01-Sep-2015
1336,Revenue,CCHD,Bed Purchasing - North,Permanent Nursing,Hambledon House,2988.36, 01-Sep-2015
1337,Revenue,CCHD,Social Lettings Agency,Fees - General,Individual,16.46, 25-Sep-2015
1338,Revenue,CCHD,Social Lettings Agency,Other Supplies & Services,Individual,559.60, 25-Sep-2015
1339,Revenue,CCHD,Supporting People Programme,Grants to Voluntary Bodies,Hanover Housing Association,982.83, 01-Sep-2015
1340,Revenue,CCHD,Home Care - Elderly - North,Other Supplies & Services,Hanover Housing Association,820.30, 07-Sep-2015
1341,Revenue,CCHD,Home Care - Elderly - North,Other Supplies & Services,Hanover Housing Association,1122.54, 04-Sep-2015
1342,Revenue,CCHD,Bed Purchasing - South,Permanent Residential,Harefield Hall,1219.24, 01-Sep-2015
1343,Revenue,CCHD,Bed Purchasing - South,Permanent Residential,Harefield Hall,1219.24, 29-Sep-2015
1344,Revenue,CCHD,Bed Purchasing - South,Permanent Residential,Harefield Hall,1150.52, 01-Sep-2015
1345,Revenue,CCHD,Bed Purchasing - South,Permanent Residential,Harefield Hall,1150.52, 29-Sep-2015
1346,Revenue,CCHD,Bed Purchasing - South,Permanent Residential,Harefield Hall,1039.04, 01-Sep-2015
1347,Revenue,CCHD,Bed Purchasing - South,Permanent Residential,Harefield Hall,1039.04, 29-Sep-2015
1348,Revenue,CCHD,Bed Purchasing - South,Permanent Residential,Harefield Hall,1313.12, 01-Sep-2015
1349,Revenue,CCHD,Bed Purchasing - South,Permanent Residential,Harefield Hall,1313.12, 29-Sep-2015
1350,Revenue,CCHD,Bed Purchasing - South,Permanent Residential,Harefield Hall,1532.96, 01-Sep-2015
1351,Revenue,CCHD,Bed Purchasing - South,Permanent Residential,Harefield Hall,1532.96, 29-Sep-2015
1352,Revenue,CCHD,Bed Purchasing - South,Permanent Residential,Harefield Hall,1254.36, 01-Sep-2015
1353,Revenue,CCHD,Bed Purchasing - South,Permanent Residential,Harefield Hall,1254.36, 29-Sep-2015
1354,Revenue,CCHD,Swift Dump Code,Permanent Residential,Harefield Hall,2413.71, 29-Sep-2015
1355,Revenue,CCHD,Bed Purchasing - South,Permanent Residential,Harefield Hall,1578.61, 29-Sep-2015
1356,Revenue,CCHD,Bed Purchasing - South,Permanent Residential,Harefield Hall,1264.64, 29-Sep-2015
1357,Revenue,CCHD,Alexandra Way,Equipment Maintenance,Harvey Servicing & Engineering Limited,922.50, 02-Sep-2015
1358,Revenue,CCHD,Bed Purchasing - South,Permanent Nursing,HC One Limited,6068.19, 29-Sep-2015
1359,Revenue,CCHD,Bed Purchasing - Southmead Hospital,Permanent Nursing,Hc-One Ltd,1648.40, 01-Sep-2015
1360,Revenue,CCHD,Bed Purchasing - Southmead Hospital,Permanent Nursing,Hc-One Ltd,1648.40, 29-Sep-2015
1361,Revenue,CCHD,Bed Purchasing - North,Permanent Nursing,Hc-One Ltd,1511.16, 01-Sep-2015
1362,Revenue,CCHD,Bed Purchasing - North,Permanent Nursing,Hc-One Ltd,1511.16, 29-Sep-2015
1363,Revenue,CCHD,Bed Purchasing - North,Permanent Residential,Hc-One Ltd,1112.44, 01-Sep-2015
1364,Revenue,CCHD,Bed Purchasing - North,Permanent Residential,Hc-One Ltd,1112.44, 29-Sep-2015
1365,Revenue,CCHD,Bed Purchasing - North,Permanent Nursing,Hc-One Ltd,1204.40, 01-Sep-2015
1366,Revenue,CCHD,Bed Purchasing - North,Permanent Nursing,Hc-One Ltd,952.36, 29-Sep-2015
1367,Revenue,CCHD,Bed Purchasing - North,Permanent Nursing,Hc-One Ltd,822.84, 01-Sep-2015
1368,Revenue,CCHD,Bed Purchasing - North,Permanent Nursing,Hc-One Ltd,822.84, 29-Sep-2015
1369,Revenue,CCHD,Bed Purchasing - North,Permanent Nursing,Hc-One Ltd,1508.32, 01-Sep-2015
1370,Revenue,CCHD,Bed Purchasing - North,Permanent Nursing,Hc-One Ltd,1508.32, 29-Sep-2015
1371,Revenue,CCHD,Bed Purchasing - Southmead Hospital,Permanent Nursing,Hc-One Ltd,1540.80, 29-Sep-2015
1372,Revenue,CCHD,Bed Purchasing - Southmead Hospital,Permanent Nursing,Hc-One Ltd,1485.77, 29-Sep-2015
1373,Revenue,CCHD,Home Care - Elderly - South,Day Care / Social Activities,Headway Bristol,504.96, 07-Sep-2015
1374,Revenue,CCHD,Home Care - Elderly - North,Day Care / Social Activities,Headway Bristol,420.80, 07-Sep-2015
1375,Revenue,CCHD,Home Care - Elderly - North,Other Small Contracts,Headway Bristol,168.32, 07-Sep-2015
1376,Revenue,CCHD,Home Care - Elderly - South,Day Care / Social Activities,Headway Bristol,483.92, 16-Sep-2015
1377,Revenue,CCHD,Home Care - Elderly - North,Day Care / Social Activities,Headway Bristol,420.80, 16-Sep-2015
1378,Revenue,CCHD,Home Care - Elderly - North,Other Small Contracts,Headway Bristol,168.32, 16-Sep-2015
1379,Revenue,CCHD,Home Care - Elderly - South,Day Care / Social Activities,Headway Bristol,294.56, 21-Sep-2015
1380,Revenue,CCHD,Home Care - Elderly - North,Day Care / Social Activities,Headway Bristol,252.48, 21-Sep-2015
1381,Revenue,CCHD,Home Care - Elderly - North,Other Small Contracts,Headway Bristol,168.32, 21-Sep-2015
1382,Revenue,CCHD,Home Care - Elderly - South,Day Care / Social Activities,Headway Bristol,273.52, 30-Sep-2015
1383,Revenue,CCHD,Home Care - Elderly - North,Day Care / Social Activities,Headway Bristol,420.80, 30-Sep-2015
1384,Revenue,CCHD,Home Care - Elderly - North,Other Small Contracts,Headway Bristol,173.58, 30-Sep-2015
1385,Revenue,CCHD,Day Care - South,Day Care / Social Activities,Headway Bristol,671.25, 07-Sep-2015
1386,Revenue,CCHD,Home Care - Elderly - North,Day Care / Social Activities,Headway Bristol,1140.72, 14-Sep-2015
1387,Revenue,CCHD,Day Care - South,Day Care / Social Activities,Headway Bristol,787.85, 01-Sep-2015
1388,Revenue,CCHD,Home Care - Elderly - South,Day Care / Social Activities,Helping Hands Homecare,158.40, 09-Sep-2015
1389,Revenue,CCHD,Home Care - Elderly - South,Other Small Contracts,Helping Hands Homecare,1500.84, 09-Sep-2015
1390,Revenue,CCHD,Home Care - Elderly - North,Day Care / Social Activities,Helping Hands Homecare,253.44, 09-Sep-2015
1391,Revenue,CCHD,Home Care - Elderly - North,Other Small Contracts,Helping Hands Homecare,1879.65, 09-Sep-2015
1392,Revenue,CCHD,Day Care - North,Day Care / Social Activities,Helping Hands Homecare,31.68, 09-Sep-2015
1393,Revenue,CCHD,Under 65s -MH  Home Care Purch,Other Small Contracts,Helping Hands Homecare,35.64, 09-Sep-2015
1394,Revenue,CCHD,Home care - Elderly MH - North,Other Small Contracts,Helping Hands Homecare,67.32, 09-Sep-2015
1395,Revenue,CCHD,Home Care - Elderly - South,Day Care / Social Activities,Helping Hands Homecare,154.44, 09-Sep-2015
1396,Revenue,CCHD,Home Care - Elderly - South,Other Small Contracts,Helping Hands Homecare,1528.56, 09-Sep-2015
1397,Revenue,CCHD,Home Care - Elderly - North,Day Care / Social Activities,Helping Hands Homecare,265.32, 09-Sep-2015
1398,Revenue,CCHD,Home Care - Elderly - North,Other Small Contracts,Helping Hands Homecare,1697.74, 09-Sep-2015
1399,Revenue,CCHD,Under 65s -MH  Home Care Purch,Other Small Contracts,Helping Hands Homecare,31.68, 09-Sep-2015
1400,Revenue,CCHD,Home care - Elderly MH - North,Other Small Contracts,Helping Hands Homecare,67.32, 09-Sep-2015
1401,Revenue,CCHD,Home Care - Elderly - South,Day Care / Social Activities,Helping Hands Homecare,158.40, 09-Sep-2015
1402,Revenue,CCHD,Home Care - Elderly - South,Other Small Contracts,Helping Hands Homecare,1516.68, 09-Sep-2015
1403,Revenue,CCHD,Home Care - Elderly - North,Day Care / Social Activities,Helping Hands Homecare,79.20, 09-Sep-2015
1404,Revenue,CCHD,Home Care - Elderly - North,Other Small Contracts,Helping Hands Homecare,1572.12, 09-Sep-2015
1405,Revenue,CCHD,Under 65s -MH  Home Care Purch,Other Small Contracts,Helping Hands Homecare,31.68, 09-Sep-2015
1406,Revenue,CCHD,Home care - Elderly MH - North,Other Small Contracts,Helping Hands Homecare,67.32, 09-Sep-2015
1407,Revenue,CCHD,Home Care - Elderly - South,Day Care / Social Activities,Helping Hands Homecare,190.08, 09-Sep-2015
1408,Revenue,CCHD,Home Care - Elderly - South,Other Small Contracts,Helping Hands Homecare,1631.52, 09-Sep-2015
1409,Revenue,CCHD,Home Care - Elderly - North,Day Care / Social Activities,Helping Hands Homecare,55.44, 09-Sep-2015
1410,Revenue,CCHD,Home Care - Elderly - North,Other Small Contracts,Helping Hands Homecare,2027.52, 09-Sep-2015
1411,Revenue,CCHD,Day Care - North,Day Care / Social Activities,Helping Hands Homecare,63.36, 09-Sep-2015
1412,Revenue,CCHD,Under 65s -MH  Home Care Purch,Other Small Contracts,Helping Hands Homecare,31.68, 09-Sep-2015
1413,Revenue,CCHD,Home care - Elderly MH - North,Other Small Contracts,Helping Hands Homecare,63.36, 09-Sep-2015
1414,Revenue,CCHD,Home Care - Elderly - South,Day Care / Social Activities,Helping Hands Homecare,194.04, 09-Sep-2015
1415,Revenue,CCHD,Home Care - Elderly - South,Other Small Contracts,Helping Hands Homecare,1496.88, 09-Sep-2015
1416,Revenue,CCHD,Home Care - Elderly - North,Day Care / Social Activities,Helping Hands Homecare,55.44, 09-Sep-2015
1417,Revenue,CCHD,Home Care - Elderly - North,Other Small Contracts,Helping Hands Homecare,1877.04, 09-Sep-2015
1418,Revenue,CCHD,Day Care - North,Day Care / Social Activities,Helping Hands Homecare,95.04, 09-Sep-2015
1419,Revenue,CCHD,Under 65s -MH  Home Care Purch,Other Small Contracts,Helping Hands Homecare,31.68, 09-Sep-2015
1420,Revenue,CCHD,Home care - Elderly MH - North,Other Small Contracts,Helping Hands Homecare,35.64, 09-Sep-2015
1421,Revenue,CCHD,Home Care - Elderly - South,Day Care / Social Activities,Helping Hands Homecare,162.36, 09-Sep-2015
1422,Revenue,CCHD,Home Care - Elderly - South,Other Small Contracts,Helping Hands Homecare,1548.36, 09-Sep-2015
1423,Revenue,CCHD,Home Care - Elderly - North,Day Care / Social Activities,Helping Hands Homecare,265.32, 09-Sep-2015
1424,Revenue,CCHD,Home Care - Elderly - North,Other Small Contracts,Helping Hands Homecare,1124.64, 09-Sep-2015
1425,Revenue,CCHD,Day Care - North,Day Care / Social Activities,Helping Hands Homecare,63.36, 09-Sep-2015
1426,Revenue,CCHD,Under 65s -MH  Home Care Purch,Other Small Contracts,Helping Hands Homecare,31.68, 09-Sep-2015
1427,Revenue,CCHD,Home care - Elderly MH - North,Other Small Contracts,Helping Hands Homecare,67.32, 09-Sep-2015
1428,Revenue,CCHD,Home Care - Elderly - South,Day Care / Social Activities,Helping Hands Homecare,190.08, 09-Sep-2015
1429,Revenue,CCHD,Home Care - Elderly - South,Other Small Contracts,Helping Hands Homecare,1413.72, 09-Sep-2015
1430,Revenue,CCHD,Home Care - Elderly - North,Day Care / Social Activities,Helping Hands Homecare,198.00, 09-Sep-2015
1431,Revenue,CCHD,Home Care - Elderly - North,Other Small Contracts,Helping Hands Homecare,1999.80, 09-Sep-2015
1432,Revenue,CCHD,Day Care - North,Day Care / Social Activities,Helping Hands Homecare,95.04, 09-Sep-2015
1433,Revenue,CCHD,Under 65s -MH  Home Care Purch,Other Small Contracts,Helping Hands Homecare,31.68, 09-Sep-2015
1434,Revenue,CCHD,Home care - Elderly MH - North,Other Small Contracts,Helping Hands Homecare,63.36, 09-Sep-2015
1435,Revenue,CCHD,Home Care - Elderly - South,Day Care / Social Activities,Helping Hands Homecare,158.40, 09-Sep-2015
1436,Revenue,CCHD,Home Care - Elderly - South,Other Small Contracts,Helping Hands Homecare,1496.88, 09-Sep-2015
1437,Revenue,CCHD,Home Care - Elderly - North,Day Care / Social Activities,Helping Hands Homecare,201.96, 09-Sep-2015
1438,Revenue,CCHD,Home Care - Elderly - North,Other Small Contracts,Helping Hands Homecare,1833.48, 09-Sep-2015
1439,Revenue,CCHD,Day Care - North,Day Care / Social Activities,Helping Hands Homecare,95.04, 09-Sep-2015
1440,Revenue,CCHD,Under 65s -MH  Home Care Purch,Other Small Contracts,Helping Hands Homecare,31.68, 09-Sep-2015
1441,Revenue,CCHD,Home care - Elderly MH - North,Other Small Contracts,Helping Hands Homecare,63.36, 09-Sep-2015
1442,Revenue,CCHD,Home Care - Elderly - South,Day Care / Social Activities,Helping Hands Homecare,158.40, 09-Sep-2015
1443,Revenue,CCHD,Home Care - Elderly - South,Other Small Contracts,Helping Hands Homecare,1774.08, 09-Sep-2015
1444,Revenue,CCHD,Home Care - Elderly - North,Day Care / Social Activities,Helping Hands Homecare,194.04, 09-Sep-2015
1445,Revenue,CCHD,Home Care - Elderly - North,Other Small Contracts,Helping Hands Homecare,1635.48, 09-Sep-2015
1446,Revenue,CCHD,Day Care - North,Day Care / Social Activities,Helping Hands Homecare,95.04, 09-Sep-2015
1447,Revenue,CCHD,Under 65s -MH  Home Care Purch,Other Small Contracts,Helping Hands Homecare,31.68, 09-Sep-2015
1448,Revenue,CCHD,Home care - Elderly MH - North,Other Small Contracts,Helping Hands Homecare,63.36, 09-Sep-2015
1449,Revenue,CCHD,Home Care - Elderly - South,Day Care / Social Activities,Helping Hands Homecare,190.08, 09-Sep-2015
1450,Revenue,CCHD,Home Care - Elderly - South,Other Small Contracts,Helping Hands Homecare,1750.32, 09-Sep-2015
1451,Revenue,CCHD,Home Care - Elderly - North,Day Care / Social Activities,Helping Hands Homecare,201.96, 09-Sep-2015
1452,Revenue,CCHD,Home Care - Elderly - North,Other Small Contracts,Helping Hands Homecare,2166.12, 09-Sep-2015
1453,Revenue,CCHD,Day Care - North,Day Care / Social Activities,Helping Hands Homecare,67.32, 09-Sep-2015
1454,Revenue,CCHD,Under 65s -MH  Home Care Purch,Other Small Contracts,Helping Hands Homecare,31.68, 09-Sep-2015
1455,Revenue,CCHD,Home care - Elderly MH - North,Other Small Contracts,Helping Hands Homecare,63.36, 09-Sep-2015
1456,Revenue,CCHD,Home Care - Elderly - South,Day Care / Social Activities,Helping Hands Homecare,186.12, 09-Sep-2015
1457,Revenue,CCHD,Home Care - Elderly - South,Other Small Contracts,Helping Hands Homecare,1845.36, 09-Sep-2015
1458,Revenue,CCHD,Home Care - Elderly - North,Day Care / Social Activities,Helping Hands Homecare,205.92, 09-Sep-2015
1459,Revenue,CCHD,Home Care - Elderly - North,Other Small Contracts,Helping Hands Homecare,1837.44, 09-Sep-2015
1460,Revenue,CCHD,Day Care - North,Day Care / Social Activities,Helping Hands Homecare,31.68, 09-Sep-2015
1461,Revenue,CCHD,Under 65s -MH  Home Care Purch,Other Small Contracts,Helping Hands Homecare,31.68, 09-Sep-2015
1462,Revenue,CCHD,Home care - Elderly MH - North,Other Small Contracts,Helping Hands Homecare,63.36, 09-Sep-2015
1463,Revenue,CCHD,S117 Placements PCT,Permanent Residential,Hesley Hall,18406.20, 01-Sep-2015
1464,Revenue,CCHD,S117 Placements PCT,Permanent Residential,Hesley Hall,18406.20, 29-Sep-2015
1465,Revenue,CCHD,Bed Purchasing - Southmead Hospital,Permanent Residential,High Border Lodge,1442.40, 01-Sep-2015
1466,Revenue,CCHD,Bed Purchasing - Southmead Hospital,Permanent Residential,High Border Lodge,1442.40, 29-Sep-2015
1467,Revenue,CCHD,Bed Purchasing - Southmead Hospital,Permanent Residential,Highfield House,2092.56, 01-Sep-2015
1468,Revenue,CCHD,Bed Purchasing - Southmead Hospital,Permanent Residential,Highfield House,2092.56, 29-Sep-2015
1469,Revenue,CCHD,Bed Purchasing - Southmead Hospital,Permanent Residential,Highgate Studios,1179.08, 01-Sep-2015
1470,Revenue,CCHD,Bed Purchasing - Southmead Hospital,Permanent Residential,Highgate Studios,1179.08, 29-Sep-2015
1471,Revenue,CCHD,Bed Purchasing - North,Permanent Residential,Holmleigh Care Homes Ltd,4115.32, 01-Sep-2015
1472,Revenue,CCHD,Bed Purchasing - North,Permanent Residential,Holmleigh Care Homes Ltd,4115.32, 29-Sep-2015
1473,Revenue,CCHD,Bed Purchasing - South,Permanent Residential,Holmleigh Care Homes Ltd,5079.96, 01-Sep-2015
1474,Revenue,CCHD,Bed Purchasing - South,Permanent Residential,Holmleigh Care Homes Ltd,5079.96, 29-Sep-2015
1475,Revenue,CCHD,Bed Purchasing - North,Permanent Residential,Home Farm Trust Ltd  5-6 Brook Office Pa,2700.52, 01-Sep-2015
1476,Revenue,CCHD,Bed Purchasing - North,Permanent Residential,Home Farm Trust Ltd  5-6 Brook Office Pa,2700.52, 29-Sep-2015
1477,Revenue,CCHD,Bed Purchasing - South,Permanent Residential,Home Farm Trust Ltd  5-6 Brook Office Pa,5174.76, 01-Sep-2015
1478,Revenue,CCHD,Bed Purchasing - South,Permanent Residential,Home Farm Trust Ltd  5-6 Brook Office Pa,5174.76, 29-Sep-2015
1479,Revenue,CCHD,Bed Purchasing - North,Permanent Residential,Home Farm Trust Ltd  5-6 Brook Office Pa,3480.32, 01-Sep-2015
1480,Revenue,CCHD,Bed Purchasing - North,Permanent Residential,Home Farm Trust Ltd  5-6 Brook Office Pa,3480.32, 29-Sep-2015
1481,Revenue,CCHD,Bed Purchasing - South,Permanent Residential,Home Farm Trust Ltd  5-6 Brook Office Pa,5611.24, 01-Sep-2015
1482,Revenue,CCHD,Bed Purchasing - South,Permanent Residential,Home Farm Trust Ltd  5-6 Brook Office Pa,5611.24, 29-Sep-2015
1483,Revenue,CCHD,18-25 Year Olds,Permanent Residential,Home From Home Care Ltd,9086.16, 01-Sep-2015
1484,Revenue,CCHD,18-25 Year Olds,Permanent Residential,Home From Home Care Ltd,9086.16, 29-Sep-2015
1485,Revenue,CCHD,Home Care - Elderly - South,Other Small Contracts,Homecare 4U,986.46, 01-Sep-2015
1486,Revenue,CCHD,Home Care - Elderly - North,Other Small Contracts,Homecare 4U,685.71, 01-Sep-2015
1487,Revenue,CCHD,Home Care - Elderly - South,Other Small Contracts,Homecare 4U,529.32, 09-Sep-2015
1488,Revenue,CCHD,Home Care - Elderly - North,Other Small Contracts,Homecare 4U,681.70, 09-Sep-2015
1489,Revenue,CCHD,Home Care - Elderly - South,Other Small Contracts,Homecare 4U,497.24, 04-Sep-2015
1490,Revenue,CCHD,Home Care - Elderly - North,Other Small Contracts,Homecare 4U,541.35, 04-Sep-2015
1491,Revenue,CCHD,Home Care - Elderly - South,Other Small Contracts,Homecare 4U,818.04, 09-Sep-2015
1492,Revenue,CCHD,Home Care - Elderly - North,Other Small Contracts,Homecare 4U,561.40, 09-Sep-2015
1493,Revenue,CCHD,Home Care - Elderly - South,Other Small Contracts,Homecare 4U,846.11, 16-Sep-2015
1494,Revenue,CCHD,Home Care - Elderly - North,Other Small Contracts,Homecare 4U,717.79, 16-Sep-2015
1495,Revenue,CCHD,Bed Purchasing - North,Permanent Residential,Homes Caring For Autism Ltd  Churchill H,10015.24, 01-Sep-2015
1496,Revenue,CCHD,Bed Purchasing - North,Permanent Residential,Homes Caring For Autism Ltd  Churchill H,10015.24, 29-Sep-2015
1497,Revenue,CCHD,18-25 Year Olds,Permanent Residential,Homes Caring For Autism Ltd  Churchill H,13043.96, 01-Sep-2015
1498,Revenue,CCHD,18-25 Year Olds,Permanent Residential,Homes Caring For Autism Ltd  Churchill H,13043.96, 29-Sep-2015
1499,Revenue,CCHD,Home Care - Elderly - North,Private & Voluntary Home Care,Housing & Care 21,1325.31, 11-Sep-2015
1500,Revenue,CCHD,Supporting People Programme,Grants to Voluntary Bodies,Housing 21,623.07, 01-Sep-2015
1501,Revenue,CCHD,Supporting People Programme,Grants to Voluntary Bodies,Housing 21,945.10, 01-Sep-2015
1502,Revenue,CCHD,Home Care - Elderly - North,Private & Voluntary Home Care,Housing 21,38183.98, 10-Sep-2015
1503,Revenue,CCHD,Home Care - Elderly - South,Private & Voluntary Home Care,Housing 21,24541.48, 01-Sep-2015
1504,Revenue,CCHD,Bed Purchasing - North,Respite Planned - Residential,Ilsom House Residential & Nursing Home,1760.00, 22-Sep-2015
1505,Revenue,CCHD,Bed Purchasing - North,Respite Emergency - Residential,Ilsom House Residential & Nursing Home,2144.00, 22-Sep-2015
1506,Revenue,CCHD,Bed Purchasing - North,Respite Emergency - Nursing,Ilsom House Residential & Nursing Home,2144.00, 22-Sep-2015
1507,Revenue,CCHD,Breakthrough and Inclusion Work,Other Supplies & Services,Impact Mentoring,2331.00, 18-Sep-2015
1508,Revenue,CCHD,Breakthrough and Inclusion Work,Other Supplies & Services,Impact Mentoring,1932.00, 18-Sep-2015
1509,Revenue,CCHD,Social Lettings Agency,Fees - General,Individual,12.22, 11-Sep-2015
1510,Revenue,CCHD,Social Lettings Agency,Other Supplies & Services,Individual,690.32, 11-Sep-2015
1511,Revenue,CCHD,Social Lettings Agency,Fees - General,Individual,10.53, 01-Sep-2015
1512,Revenue,CCHD,Social Lettings Agency,Other Supplies & Services,Individual,595.11, 01-Sep-2015
1513,Revenue,CCHD,Training - Adult Services,Training Expenses,Jo Williams,646.00, 01-Sep-2015
1514,Revenue,CCHD,NHS Enabling Integration Fund,Consultants Fees,JRFB Limited,5250.00, 11-Sep-2015
1515,Revenue,CCHD,Home Care - Elderly - South,Supported Living,Julia Simone- Supp. Ind.,1178.36, 01-Sep-2015
1516,Revenue,CCHD,Home Care - Elderly - South,Supported Living,Julia Simone- Supp. Ind.,1178.36, 29-Sep-2015
1517,Revenue,CCHD,Younger MH non-res purchasing,Supported Living,Julia Simone- Supp. Ind.,1178.36, 01-Sep-2015
1518,Revenue,CCHD,Younger MH non-res purchasing,Supported Living,Julia Simone- Supp. Ind.,1178.36, 29-Sep-2015
1519,Revenue,CCHD,Home Care - Elderly - North,Supported Living,Julia Simone- Supp. Ind.,1212.32, 01-Sep-2015
1520,Revenue,CCHD,Home Care - Elderly - North,Supported Living,Julia Simone- Supp. Ind.,1212.32, 29-Sep-2015
1521,Revenue,CCHD,Younger MH non-res purchasing,Supported Living,Julia Simone- Supp. Ind.,1178.20, 01-Sep-2015
1522,Revenue,CCHD,Younger MH non-res purchasing,Supported Living,Julia Simone- Supp. Ind.,1178.20, 29-Sep-2015
1523,Revenue,CCHD,Bed Purchasing - South,Permanent Residential,Julia Simone- Supp. Ind.,4004.36, 01-Sep-2015
1524,Revenue,CCHD,Bed Purchasing - South,Permanent Residential,Julia Simone- Supp. Ind.,4004.36, 29-Sep-2015
1525,Revenue,CCHD,Bed purchasing -S28A  Under 65 - North,Permanent Residential,Julia Simone- Supp. Ind.,3533.32, 01-Sep-2015
1526,Revenue,CCHD,Bed purchasing -S28A  Under 65 - North,Permanent Residential,Julia Simone- Supp. Ind.,3533.32, 29-Sep-2015
1527,Revenue,CCHD,Home Care - Elderly - South,Other Small Contracts,Kensington Community Care,996.96, 09-Sep-2015
1528,Revenue,CCHD,Home Care - Elderly - North,Other Small Contracts,Kensington Community Care,3802.92, 09-Sep-2015
1529,Revenue,CCHD,Home Care - Elderly - South,Other Small Contracts,Kensington Community Care,908.52, 03-Sep-2015
1530,Revenue,CCHD,Home Care - Elderly - North,Other Small Contracts,Kensington Community Care,3782.82, 03-Sep-2015
1531,Revenue,CCHD,Home Care - Elderly - South,Other Small Contracts,Kensington Community Care,916.56, 09-Sep-2015
1532,Revenue,CCHD,Home Care - Elderly - North,Other Small Contracts,Kensington Community Care,3654.18, 09-Sep-2015
1533,Revenue,CCHD,Home Care - Elderly - South,Other Small Contracts,Kensington Community Care,908.52, 15-Sep-2015
1534,Revenue,CCHD,Home Care - Elderly - North,Other Small Contracts,Kensington Community Care,3545.64, 15-Sep-2015
1535,Revenue,CCHD,Home Care - Elderly - South,Other Small Contracts,Kensington Community Care,900.48, 15-Sep-2015
1536,Revenue,CCHD,Home Care - Elderly - North,Other Small Contracts,Kensington Community Care,3368.76, 15-Sep-2015
1537,Revenue,CCHD,Day Care - South,Day Care / Social Activities,Kenver House,585.00, 17-Sep-2015
1538,Revenue,CCHD,Day Care - South,Day Care / Social Activities,Kenver House,902.00, 18-Sep-2015
1539,Revenue,CCHD,Bed Purchasing - Southmead Hospital,Permanent Residential,Kenver House Residential Home,1664.04, 01-Sep-2015
1540,Revenue,CCHD,Bed Purchasing - Southmead Hospital,Permanent Residential,Kenver House Residential Home,1664.04, 29-Sep-2015
1541,Revenue,CCHD,Bed Purchasing - Southmead Hospital,Permanent Residential,Kenver House Residential Home,1685.08, 01-Sep-2015
1542,Revenue,CCHD,Bed Purchasing - Southmead Hospital,Permanent Residential,Kenver House Residential Home,1685.08, 29-Sep-2015
1543,Revenue,CCHD,Bed Purchasing - South,Permanent Residential,Kenver House Residential Home,1539.20, 01-Sep-2015
1544,Revenue,CCHD,Bed Purchasing - South,Permanent Residential,Kenver House Residential Home,1539.20, 29-Sep-2015
1545,Revenue,CCHD,Bed Purchasing - South,Permanent Residential,Kenver House Residential Home,1153.00, 01-Sep-2015
1546,Revenue,CCHD,Bed Purchasing - South,Permanent Residential,Kenver House Residential Home,1153.00, 29-Sep-2015
1547,Revenue,CCHD,Bed Purchasing - South,Permanent Residential,Kenver House Residential Home,1388.84, 01-Sep-2015
1548,Revenue,CCHD,Bed Purchasing - South,Permanent Residential,Kenver House Residential Home,1388.84, 29-Sep-2015
1549,Revenue,CCHD,Bed Purchasing - South,Permanent Residential,Kenver House Residential Home,1712.56, 01-Sep-2015
1550,Revenue,CCHD,Bed Purchasing - South,Permanent Residential,Kenver House Residential Home,1685.08, 01-Sep-2015
1551,Revenue,CCHD,Bed Purchasing - South,Permanent Residential,Kenver House Residential Home,1083.27, 01-Sep-2015
1552,Revenue,CCHD,Bed Purchasing - South,Permanent Residential,Kenver House Residential Home,1685.08, 29-Sep-2015
1553,Revenue,CCHD,Bed Purchasing - Southmead Hospital,Respite Planned - Residential,Kenver House Residential Home,2190.28, 01-Sep-2015
1554,Revenue,CCHD,Bed Purchasing - Southmead Hospital,Respite Planned - Residential,Kenver House Residential Home,2190.28, 29-Sep-2015
1555,Revenue,CCHD,Bed Purchasing - South,Permanent Residential,Kenver House Residential Home,1101.68, 01-Sep-2015
1556,Revenue,CCHD,Bed Purchasing - South,Permanent Residential,Kenver House Residential Home,1000.56, 29-Sep-2015
1557,Revenue,CCHD,Bed Purchasing - South,Permanent Residential,Kenver House Residential Home,1294.36, 01-Sep-2015
1558,Revenue,CCHD,Bed Purchasing - South,Permanent Residential,Kenver House Residential Home,1294.36, 29-Sep-2015
1559,Revenue,CCHD,Bed Purchasing - South,Permanent Residential,Kenver House Residential Home,2190.28, 01-Sep-2015
1560,Revenue,CCHD,Bed Purchasing - South,Permanent Residential,Kenver House Residential Home,1277.20, 01-Sep-2015
1561,Revenue,CCHD,Bed Purchasing - South,Permanent Residential,Kenver House Residential Home,1277.20, 29-Sep-2015
1562,Revenue,CCHD,Bed Purchasing - South,Permanent Residential,Kenver House Residential Home,6981.05, 29-Sep-2015
1563,Revenue,CCHD,Bed Purchasing - South,Permanent Residential,Kenver House Residential Home,1685.08, 29-Sep-2015
1564,Revenue,CCHD,Bed Purchasing - South,Permanent Residential,Kenver House Residential Home,541.63, 29-Sep-2015
1565,Revenue,CCHD,Bed Purchasing - Southmead Hospital,Permanent Residential,Kenver House Residential Home,1685.00, 01-Sep-2015
1566,Revenue,CCHD,Bed Purchasing - Southmead Hospital,Permanent Residential,Kenver House Residential Home,1685.00, 29-Sep-2015
1567,Revenue,CCHD,Bed Purchasing - South,Permanent Residential,Kenver House Residential Home,3671.07, 01-Sep-2015
1568,Revenue,CCHD,Bed Purchasing - South,Permanent Residential,Kenver House Residential Home,1685.08, 01-Sep-2015
1569,Revenue,CCHD,Bed Purchasing - South,Permanent Residential,Kenver House Residential Home,1685.08, 29-Sep-2015
1570,Revenue,CCHD,Supporting People Programme,Grants to Voluntary Bodies,Keyring Living Support Networks,2948.50, 01-Sep-2015
1571,Revenue,CCHD,Bed Purchasing - North,Permanent Nursing,Kingfisher Lodge Care Centre,2531.88, 01-Sep-2015
1572,Revenue,CCHD,Bed Purchasing - North,Permanent Nursing,Kingfisher Lodge Care Centre,2531.88, 29-Sep-2015
1573,Revenue,CCHD,Supporting People Programme,Grants to Voluntary Bodies,Kingswood Young Homeless Project,17126.66, 01-Sep-2015
1574,Revenue,CCHD,Bed Purchasing - North,Permanent Residential,Kisimul Group,11512.80, 01-Sep-2015
1575,Revenue,CCHD,Bed Purchasing - North,Permanent Residential,Kisimul Group,11512.80, 29-Sep-2015
1576,Revenue,CCHD,Supporting People Programme,Grants to Voluntary Bodies,Knightstone Housing Association Limited,13659.70, 01-Sep-2015
1577,Revenue,CCHD,Supporting People Programme,Grants to Voluntary Bodies,Knightstone Housing Association Limited,7684.61, 01-Sep-2015
1578,Revenue,CCHD,Supporting People Programme,Grants to Voluntary Bodies,Knightstone Housing Association Limited,1809.08, 01-Sep-2015
1579,Revenue,CCHD,Supporting People Programme,Grants to Voluntary Bodies,Knightstone Housing Association Limited,2509.56, 01-Sep-2015
1580,Revenue,CCHD,Supporting People Programme,Grants to Voluntary Bodies,Knightstone Housing Association Limited,2510.15, 01-Sep-2015
1581,Revenue,CCHD,Supporting People Programme,Grants to Voluntary Bodies,Knightstone Housing Association Limited,853.70, 01-Sep-2015
1582,Revenue,CCHD,Supporting People Programme,Grants to Voluntary Bodies,Knightstone Housing Association Limited,8630.13, 01-Sep-2015
1583,Revenue,CCHD,Home Care - Elderly - South,Other Small Contracts,Kumari Care Limited,2549.32, 01-Sep-2015
1584,Revenue,CCHD,Home Care - Elderly - North,Other Small Contracts,Kumari Care Limited,833.86, 01-Sep-2015
1585,Revenue,CCHD,Home Care - Elderly - South,Other Small Contracts,Kumari Care Limited,2541.50, 01-Sep-2015
1586,Revenue,CCHD,Home Care - Elderly - North,Other Small Contracts,Kumari Care Limited,833.90, 01-Sep-2015
1587,Revenue,CCHD,Home Care - Elderly - South,Other Small Contracts,Kumari Care Limited,2478.94, 02-Sep-2015
1588,Revenue,CCHD,Home Care - Elderly - North,Other Small Contracts,Kumari Care Limited,833.86, 02-Sep-2015
1589,Revenue,CCHD,Home Care - Elderly - South,Other Small Contracts,Kumari Care Limited,2607.97, 14-Sep-2015
1590,Revenue,CCHD,Home Care - Elderly - North,Other Small Contracts,Kumari Care Limited,834.33, 14-Sep-2015
1591,Revenue,CCHD,Home Care - Elderly - South,Other Small Contracts,Kumari Care Limited,2521.95, 14-Sep-2015
1592,Revenue,CCHD,Home Care - Elderly - North,Other Small Contracts,Kumari Care Limited,833.86, 14-Sep-2015
1593,Revenue,CCHD,Home Care - Elderly - South,Other Small Contracts,Kumari Care Limited,2564.96, 28-Sep-2015
1594,Revenue,CCHD,Home Care - Elderly - North,Other Small Contracts,Kumari Care Limited,833.86, 28-Sep-2015
1595,Revenue,CCHD,Home Care - Elderly - South,Other Small Contracts,Kumari Care Limited,2459.39, 28-Sep-2015
1596,Revenue,CCHD,Home Care - Elderly - North,Other Small Contracts,Kumari Care Limited,833.91, 28-Sep-2015
1597,Revenue,CCHD,Community Support - North,Preventative Assistance,Larchfield Care Home,2759.62, 22-Sep-2015
1598,Revenue,CCHD,Bed Purchasing - North,Permanent Nursing,Leonard Cheshire  National Account Centr,5090.88, 01-Sep-2015
1599,Revenue,CCHD,Bed Purchasing - North,Permanent Nursing,Leonard Cheshire  National Account Centr,5090.88, 29-Sep-2015
1600,Revenue,CCHD,Bed Purchasing - North,Permanent Residential,Leonard Cheshire  National Account Centr,2948.64, 01-Sep-2015
1601,Revenue,CCHD,Bed Purchasing - North,Permanent Residential,Leonard Cheshire  National Account Centr,2948.64, 29-Sep-2015
1602,Revenue,CCHD,Bed Purchasing - South,Permanent Residential,Leonard Cheshire  National Account Centr,3376.16, 01-Sep-2015
1603,Revenue,CCHD,Bed Purchasing - South,Permanent Residential,Leonard Cheshire  National Account Centr,3376.16, 29-Sep-2015
1604,Revenue,CCHD,Bed Purchasing - North,Permanent Nursing,Leonard Cheshire  National Account Centr,3559.68, 01-Sep-2015
1605,Revenue,CCHD,Bed Purchasing - North,Permanent Nursing,Leonard Cheshire  National Account Centr,3559.68, 29-Sep-2015
1606,Revenue,CCHD,Bed Purchasing - North,Permanent Nursing,Leonard Cheshire  National Account Centr,2858.32, 01-Sep-2015
1607,Revenue,CCHD,Bed Purchasing - North,Permanent Nursing,Leonard Cheshire  National Account Centr,2858.32, 29-Sep-2015
1608,Revenue,CCHD,18-25 Year Olds,Permanent Residential,Leonard Cheshire  National Account Centr,3231.92, 01-Sep-2015
1609,Revenue,CCHD,18-25 Year Olds,Permanent Residential,Leonard Cheshire  National Account Centr,3231.92, 29-Sep-2015
1610,Revenue,CCHD,Bed Purchasing - North,Permanent Residential,Leonard Cheshire  National Account Centr,6024.88, 01-Sep-2015
1611,Revenue,CCHD,Bed Purchasing - North,Permanent Residential,Leonard Cheshire  National Account Centr,6024.88, 29-Sep-2015
1612,Revenue,CCHD,Bed Purchasing - North,Permanent Residential,Leonard Cheshire  National Account Centr,6023.32, 01-Sep-2015
1613,Revenue,CCHD,Bed Purchasing - North,Permanent Residential,Leonard Cheshire  National Account Centr,6023.32, 29-Sep-2015
1614,Revenue,CCHD,Bed Purchasing - South,Permanent Residential,Leonard Cheshire  National Account Centr,4544.12, 01-Sep-2015
1615,Revenue,CCHD,Bed Purchasing - South,Permanent Residential,Leonard Cheshire  National Account Centr,4544.12, 29-Sep-2015
1616,Revenue,CCHD,Bed Purchasing - North,Permanent Nursing,Leonard Cheshire  National Account Centr,2913.28, 01-Sep-2015
1617,Revenue,CCHD,Bed Purchasing - North,Permanent Nursing,Leonard Cheshire  National Account Centr,2913.28, 29-Sep-2015
1618,Revenue,CCHD,Bed Purchasing - North,Permanent Nursing,Leonard Cheshire  National Account Centr,3912.16, 01-Sep-2015
1619,Revenue,CCHD,Bed Purchasing - North,Permanent Nursing,Leonard Cheshire  National Account Centr,3912.16, 29-Sep-2015
1620,Revenue,CCHD,Bed Purchasing - North,Permanent Residential,Leonard Cheshire  National Account Centr,2965.36, 01-Sep-2015
1621,Revenue,CCHD,Bed Purchasing - North,Permanent Residential,Leonard Cheshire  National Account Centr,2965.36, 29-Sep-2015
1622,Revenue,CCHD,Bed Purchasing - North,Permanent Nursing,Leonard Cheshire  National Account Centr,3306.84, 01-Sep-2015
1623,Revenue,CCHD,Bed Purchasing - North,Permanent Nursing,Leonard Cheshire  National Account Centr,3306.84, 29-Sep-2015
1624,Revenue,CCHD,Bed Purchasing - North,Permanent Nursing,Leonard Cheshire  National Account Centr,5663.60, 01-Sep-2015
1625,Revenue,CCHD,Bed Purchasing - North,Permanent Nursing,Leonard Cheshire  National Account Centr,5663.60, 29-Sep-2015
1626,Revenue,CCHD,Bed Purchasing - South,Permanent Nursing,Leonard Cheshire  National Account Centr,2940.92, 01-Sep-2015
1627,Revenue,CCHD,Bed Purchasing - South,Permanent Nursing,Leonard Cheshire  National Account Centr,2940.92, 29-Sep-2015
1628,Revenue,CCHD,Bed Purchasing - Southmead Hospital,Permanent Nursing,Leonard Cheshire  National Account Centr,3075.12, 01-Sep-2015
1629,Revenue,CCHD,South Glos Users in all other LA Homes,Permanent Nursing,Leonard Cheshire  National Account Centr,616.56, 01-Sep-2015
1630,Revenue,CCHD,Bed Purchasing - Southmead Hospital,Permanent Nursing,Leonard Cheshire  National Account Centr,3075.12, 29-Sep-2015
1631,Revenue,CCHD,South Glos Users in all other LA Homes,Permanent Nursing,Leonard Cheshire  National Account Centr,616.56, 29-Sep-2015
1632,Revenue,CCHD,Bed Purchasing - North,Permanent Nursing,Leonard Cheshire  National Account Centr,3363.96, 01-Sep-2015
1633,Revenue,CCHD,Bed Purchasing - North,Permanent Nursing,Leonard Cheshire  National Account Centr,3363.96, 29-Sep-2015
1634,Revenue,CCHD,Bed Purchasing - North,Permanent Nursing,Leonard Cheshire  National Account Centr,4167.96, 01-Sep-2015
1635,Revenue,CCHD,Bed Purchasing - North,Permanent Nursing,Leonard Cheshire  National Account Centr,4167.96, 29-Sep-2015
1636,Revenue,CCHD,Supported Living - North,Private & Voluntary Home Care,Lifeways Community Care (Gloucester) Ltd,3063.75, 09-Sep-2015
1637,Revenue,CCHD,Supported Living - North,Private & Voluntary Home Care,Lifeways Community Care (Gloucester) Ltd,11758.56, 14-Sep-2015
1638,Revenue,CCHD,Supported Living - North,Private & Voluntary Home Care,Lifeways Community Care (Gloucester) Ltd,2762.76, 14-Sep-2015
1639,Revenue,CCHD,Bed Purchasing - Southmead Hospital,Permanent Residential,Little Croft,1085.24, 01-Sep-2015
1640,Revenue,CCHD,Bed Purchasing - Southmead Hospital,Permanent Residential,Little Croft,1085.24, 29-Sep-2015
1641,Revenue,CCHD,Bed Purchasing - Southmead Hospital,Permanent Residential,Little Croft,1269.32, 01-Sep-2015
1642,Revenue,CCHD,Bed Purchasing - Southmead Hospital,Permanent Residential,Little Croft,1269.32, 29-Sep-2015
1643,Revenue,CCHD,Bed Purchasing - North,Permanent Residential,Little Croft,1230.92, 01-Sep-2015
1644,Revenue,CCHD,Bed Purchasing - North,Permanent Residential,Little Croft,1230.92, 29-Sep-2015
1645,Revenue,CCHD,Bed Purchasing - Southmead Hospital,Permanent Residential,Little Croft,1278.80, 01-Sep-2015
1646,Revenue,CCHD,Bed Purchasing - Southmead Hospital,Permanent Residential,Little Croft,1278.80, 29-Sep-2015
1647,Revenue,CCHD,Bed Purchasing - North,Respite Planned - Residential,Little Croft,2981.14, 01-Sep-2015
1648,Revenue,CCHD,Bed Purchasing - North,Permanent Residential,Little Croft,2360.06, 01-Sep-2015
1649,Revenue,CCHD,Bed Purchasing - North,Permanent Residential,Little Croft,1270.80, 01-Sep-2015
1650,Revenue,CCHD,Bed Purchasing - North,Permanent Residential,Little Croft,3610.38, 29-Sep-2015
1651,Revenue,CCHD,Bed Purchasing - North,Permanent Residential,Little Croft,1217.96, 29-Sep-2015
1652,Revenue,CCHD,Bed Purchasing - Southmead Hospital,Permanent Residential,Little Croft,7021.32, 29-Sep-2015
1653,Revenue,CCHD,Bed Purchasing - Southmead Hospital,Permanent Residential,Little Croft,1694.80, 29-Sep-2015
1654,Revenue,CCHD,Bed Purchasing - Southmead Hospital,Respite Planned - Residential,Little Croft,4714.29, 01-Sep-2015
1655,Revenue,CCHD,Bed Purchasing - Southmead Hospital,Respite Planned - Residential,Little Croft,2200.00, 01-Sep-2015
1656,Revenue,CCHD,Bed Purchasing - Southmead Hospital,Respite Planned - Residential,Little Croft,2200.00, 29-Sep-2015
1657,Revenue,CCHD,Bed Purchasing - South,Permanent Residential,Little Croft,1587.68, 01-Sep-2015
1658,Revenue,CCHD,Bed Purchasing - South,Permanent Residential,Little Croft,1587.68, 29-Sep-2015
1659,Revenue,CCHD,Bed Purchasing - South,Respite Planned - Residential,Little Croft,550.00, 01-Sep-2015
1660,Revenue,CCHD,Bed Purchasing - South,Respite Emergency - Residential,Little Croft,2000.00, 01-Sep-2015
1661,Revenue,CCHD,Bed Purchasing - South,Respite Emergency - Residential,Little Croft,1285.71, 01-Sep-2015
1662,Revenue,CCHD,Bed Purchasing - South,Permanent Residential,Little Croft,908.60, 01-Sep-2015
1663,Revenue,CCHD,Bed Purchasing - South,Permanent Residential,Little Croft,908.60, 29-Sep-2015
1664,Revenue,CCHD,Bed Purchasing - South,Respite Emergency - Residential,Little Croft,1178.57, 29-Sep-2015
1665,Revenue,CCHD,Bed Purchasing - South,Respite Emergency - Residential,Little Croft,1021.43, 29-Sep-2015
1666,Revenue,CCHD,Bed Purchasing - Southmead Hospital,Permanent Residential,Little Croft,1763.48, 01-Sep-2015
1667,Revenue,CCHD,Bed Purchasing - Southmead Hospital,Permanent Residential,Little Croft,1763.48, 29-Sep-2015
1668,Revenue,CCHD,Bed Purchasing - Southmead Hospital,Respite Planned - Residential,Little Croft,1776.00, 01-Sep-2015
1669,Revenue,CCHD,Bed Purchasing - Southmead Hospital,Permanent Residential,Little Croft,1442.80, 01-Sep-2015
1670,Revenue,CCHD,Bed Purchasing - Southmead Hospital,Permanent Residential,Little Croft,1478.80, 29-Sep-2015
1671,Revenue,CCHD,Bed Purchasing - Southmead Hospital,Permanent Residential,Little Croft,1442.80, 01-Sep-2015
1672,Revenue,CCHD,Bed Purchasing - Southmead Hospital,Permanent Residential,Little Croft,1442.80, 29-Sep-2015
1673,Revenue,CCHD,Bed Purchasing - Southmead Hospital,Permanent Residential,Little Croft,1233.68, 01-Sep-2015
1674,Revenue,CCHD,Bed Purchasing - Southmead Hospital,Permanent Residential,Little Croft,1233.68, 29-Sep-2015
1675,Revenue,CCHD,Bed Purchasing - North,Permanent Residential,Little Croft,1075.60, 01-Sep-2015
1676,Revenue,CCHD,Bed Purchasing - North,Permanent Residential,Little Croft,768.28, 01-Sep-2015
1677,Revenue,CCHD,Bed Purchasing - North,Permanent Residential,Little Croft,1075.60, 29-Sep-2015
1678,Revenue,CCHD,Bed Purchasing - South,Permanent Residential,Little Croft,1241.84, 01-Sep-2015
1679,Revenue,CCHD,Bed Purchasing - South,Permanent Residential,Little Croft,1241.84, 29-Sep-2015
1680,Revenue,CCHD,Bed Purchasing - Southmead Hospital,Respite Emergency - Residential,Little Croft,1270.72, 29-Sep-2015
1681,Revenue,CCHD,Bed Purchasing - South,Permanent Residential,Little Croft,1422.92, 01-Sep-2015
1682,Revenue,CCHD,Bed Purchasing - South,Permanent Residential,Little Croft,1422.92, 29-Sep-2015
1683,Revenue,CCHD,Bed Purchasing - Southmead Hospital,Permanent Residential,Little Croft,1270.80, 01-Sep-2015
1684,Revenue,CCHD,Bed Purchasing - Southmead Hospital,Permanent Residential,Little Croft,1270.80, 29-Sep-2015
1685,Revenue,CCHD,Bed Purchasing - North,Permanent Residential,Little Croft,1408.44, 01-Sep-2015
1686,Revenue,CCHD,Bed Purchasing - North,Permanent Residential,Little Croft,1408.44, 29-Sep-2015
1687,Revenue,CCHD,Bed Purchasing - Southmead Hospital,Permanent Residential,Little Croft,1270.80, 01-Sep-2015
1688,Revenue,CCHD,Bed Purchasing - Southmead Hospital,Permanent Residential,Little Croft,1270.80, 29-Sep-2015
1689,Revenue,CCHD,Bed Purchasing - Southmead Hospital,Permanent Residential,Little Croft,3256.53, 29-Sep-2015
1690,Revenue,CCHD,Bed Purchasing - North,Permanent Residential,Littlecroft Residential Homes  Longcroft,6478.92, 01-Sep-2015
1691,Revenue,CCHD,Bed Purchasing - North,Permanent Residential,Littlecroft Residential Homes  Longcroft,6478.92, 29-Sep-2015
1692,Revenue,CCHD,Supported Living - South,Private & Voluntary Home Care,Lloyds TSB Commercial Finance Limited,1215.20, 03-Sep-2015
1693,Revenue,CCHD,Supported Living - South,Private & Voluntary Home Care,Lloyds TSB Commercial Finance Limited,1350.87, 03-Sep-2015
1694,Revenue,CCHD,Supported Living - South,Private & Voluntary Home Care,Lloyds TSB Commercial Finance Limited,1204.16, 03-Sep-2015
1695,Revenue,CCHD,Supported Living - South,Private & Voluntary Home Care,Lloyds TSB Commercial Finance Limited,1312.88, 03-Sep-2015
1696,Revenue,CCHD,Supported Living - North,Private & Voluntary Home Care,Lloyds TSB Commercial Finance Limited,1204.16, 14-Sep-2015
1697,Revenue,CCHD,Supported Living - South,Private & Voluntary Home Care,Loga Care Ltd (T/A Logacare),3795.33, 03-Sep-2015
1698,Revenue,CCHD,Social Lettings Agency,Fees - General,Individual,10.00, 01-Sep-2015
1699,Revenue,CCHD,Social Lettings Agency,Other Supplies & Services,Individual,565.00, 01-Sep-2015
1700,Revenue,CCHD,Home Care - Elderly - North,Day Care / Social Activities,Lower Kilcott,1481.84, 01-Sep-2015
1701,Revenue,CCHD,Home Care - Elderly - North,Day Care / Social Activities,Lower Kilcott,1481.84, 29-Sep-2015
1702,Revenue,CCHD,Home Care - Elderly - North,Day Care / Social Activities,Lower Kilcott,710.16, 01-Sep-2015
1703,Revenue,CCHD,Home Care - Elderly - North,Day Care / Social Activities,Lower Kilcott,710.16, 29-Sep-2015
1704,Revenue,CCHD,Home Care - Elderly - North,Day Care / Social Activities,Lower Kilcott,566.68, 01-Sep-2015
1705,Revenue,CCHD,Home Care - Elderly - North,Day Care / Social Activities,Lower Kilcott,566.68, 29-Sep-2015
1706,Revenue,CCHD,TSG Practice Placements,Training Expenses,M Harris,590.00, 30-Sep-2015
1707,Revenue,CCHD,Bed Purchasing - Southmead Hospital,Permanent Nursing,Majestic 3 Limited,1004.20, 01-Sep-2015
1708,Revenue,CCHD,Bed Purchasing - Southmead Hospital,Permanent Nursing,Majestic 3 Limited,1004.20, 29-Sep-2015
1709,Revenue,CCHD,Purchase of Non-Res Care - North,Day Care / Social Activities,Make it Mentoring CIC Ltd,2394.00, 14-Sep-2015
1710,Revenue,CCHD,18-25 Year Olds,Day Care / Social Activities,Make it Mentoring CIC Ltd,896.00, 30-Sep-2015
1711,Revenue,CCHD,Bed Purchasing - South,Permanent Residential,Manor Cottage,1865.68, 01-Sep-2015
1712,Revenue,CCHD,Bed Purchasing - South,Permanent Residential,Manor Cottage,1865.68, 29-Sep-2015
1713,Revenue,CCHD,Bed Purchasing - Southmead Hospital,Permanent Residential,Manor Cottage,1270.80, 01-Sep-2015
1714,Revenue,CCHD,Bed Purchasing - Southmead Hospital,Permanent Residential,Manor Cottage,1270.80, 29-Sep-2015
1715,Revenue,CCHD,Bed Purchasing - Southmead Hospital,Permanent Residential,Manor Cottage,1041.92, 01-Sep-2015
1716,Revenue,CCHD,Bed Purchasing - Southmead Hospital,Permanent Residential,Manor Cottage,1041.92, 29-Sep-2015
1717,Revenue,CCHD,Bed Purchasing - South,Permanent Residential,Manor Cottage,1464.20, 01-Sep-2015
1718,Revenue,CCHD,Bed Purchasing - South,Permanent Residential,Manor Cottage,1464.20, 29-Sep-2015
1719,Revenue,CCHD,Bed Purchasing - South,Permanent Residential,Manor Cottage,1516.40, 01-Sep-2015
1720,Revenue,CCHD,Bed Purchasing - South,Permanent Residential,Manor Cottage,1516.40, 29-Sep-2015
1721,Revenue,CCHD,Bed Purchasing - North,Permanent Residential,Manton Hall Residential Home,1542.80, 01-Sep-2015
1722,Revenue,CCHD,Bed Purchasing - North,Permanent Residential,Manton Hall Residential Home,1542.80, 29-Sep-2015
1723,Revenue,CCHD,Home Care - Elderly - South,Supported Living,Maples Community Care Limited,1282.50, 23-Sep-2015
1724,Revenue,CCHD,Home Care - Elderly - South,Supported Living,Maples Community Care Limited,4249.30, 23-Sep-2015
1725,Revenue,CCHD,Home Care - Elderly - South,Supported Living,Maples Community Care Limited,5840.40, 23-Sep-2015
1726,Revenue,CCHD,Home Care - Elderly - South,Supported Living,Maples Community Care Limited,5275.14, 23-Sep-2015
1727,Revenue,CCHD,Home Care - Elderly - South,Supported Living,Maples Community Care Limited,7784.40, 25-Sep-2015
1728,Revenue,CCHD,Home Care - Elderly - South,Supported Living,Maples Community Care Limited,17162.71, 23-Sep-2015
1729,Revenue,CCHD,Home Care - Elderly - South,Supported Living,Maples Community Care Limited,34236.34, 23-Sep-2015
1730,Revenue,CCHD,Home Care - Elderly - South,Supported Living,Maples Community Care Limited,23007.31, 23-Sep-2015
1731,Revenue,CCHD,Home Care - Elderly - South,Supported Living,Maples Community Care Limited,14117.44, 23-Sep-2015
1732,Revenue,CCHD,Home Care - Elderly - South,Supported Living,Maples Community Care Limited,5871.04, 23-Sep-2015
1733,Revenue,CCHD,Home Care - Elderly - South,Supported Living,Maples Community Care Limited,6752.72, 23-Sep-2015
1734,Revenue,CCHD,Home Care - Elderly - South,Supported Living,Maples Community Care Limited,5195.20, 23-Sep-2015
1735,Revenue,CCHD,Home Care - Elderly - South,Supported Living,Maples Community Care Limited,1400.00, 01-Sep-2015
1736,Revenue,CCHD,Home Care - Elderly - South,Supported Living,Maples Community Care Limited,1400.00, 29-Sep-2015
1737,Revenue,CCHD,Home Care - Elderly - South,Supported Living,Maples Community Care Limited,1400.00, 01-Sep-2015
1738,Revenue,CCHD,Home Care - Elderly - South,Supported Living,Maples Community Care Limited,1400.00, 29-Sep-2015
1739,Revenue,CCHD,Younger MH non-res purchasing,Supported Living,Maples Community Care Limited,1400.00, 01-Sep-2015
1740,Revenue,CCHD,Younger MH non-res purchasing,Supported Living,Maples Community Care Limited,1400.00, 29-Sep-2015
1741,Revenue,CCHD,Younger MH non-res purchasing,Supported Living,Maples Community Care Limited,1400.00, 01-Sep-2015
1742,Revenue,CCHD,Younger MH non-res purchasing,Supported Living,Maples Community Care Limited,1400.00, 29-Sep-2015
1743,Revenue,CCHD,Younger MH non-res purchasing,Supported Living,Maples Community Care Limited,1400.00, 01-Sep-2015
1744,Revenue,CCHD,Younger MH non-res purchasing,Supported Living,Maples Community Care Limited,1400.00, 29-Sep-2015
1745,Revenue,CCHD,Social Lettings Agency,Fees - General,Individual,12.22, 18-Sep-2015
1746,Revenue,CCHD,Social Lettings Agency,Other Supplies & Services,Individual,690.32, 18-Sep-2015
1747,Revenue,CCHD,Bed Purchasing - South,Permanent Residential,Marsden Healthcare Ltd,1276.04, 01-Sep-2015
1748,Revenue,CCHD,Bed Purchasing - South,Permanent Residential,Marsden Healthcare Ltd,1276.04, 29-Sep-2015
1749,Revenue,CCHD,Bed Purchasing - South,Permanent Residential,Marsden Healthcare Ltd,3278.84, 01-Sep-2015
1750,Revenue,CCHD,Bed Purchasing - South,Permanent Residential,Marsden Healthcare Ltd,3278.84, 29-Sep-2015
1751,Revenue,CCHD,Bed Purchasing - South,Permanent Residential,Marsden Healthcare Ltd,1538.08, 01-Sep-2015
1752,Revenue,CCHD,Bed Purchasing - South,Permanent Residential,Marsden Healthcare Ltd,1538.08, 29-Sep-2015
1753,Revenue,CCHD,Bed Purchasing - South,Permanent Nursing,Meadow Care Home,1552.32, 01-Sep-2015
1754,Revenue,CCHD,Bed Purchasing - South,Permanent Nursing,Meadow Care Home,1552.32, 29-Sep-2015
1755,Revenue,CCHD,Bed Purchasing - Elderly S117- North,Permanent Nursing,Meadow Care Home,3800.00, 01-Sep-2015
1756,Revenue,CCHD,Bed Purchasing - Elderly S117- North,Permanent Nursing,Meadow Care Home,3800.00, 29-Sep-2015
1757,Revenue,CCHD,Bed purchasing - Elderly S117 - South,Permanent Nursing,Meadow Care Home,2420.00, 01-Sep-2015
1758,Revenue,CCHD,Bed purchasing - Elderly S117 - South,Permanent Nursing,Meadow Care Home,2420.00, 29-Sep-2015
1759,Revenue,CCHD,Bed Purchasing - Southmead Hospital,Permanent Nursing,Meadow Care Home,11099.62, 29-Sep-2015
1760,Revenue,CCHD,Bed Purchasing - Southmead Hospital,Permanent Nursing,Meadow Care Home,1794.98, 29-Sep-2015
1761,Revenue,CCHD,Home Care - Elderly - South,Day Care / Social Activities,Mears Care,93.60, 10-Sep-2015
1762,Revenue,CCHD,Home Care - Elderly - South,Other Small Contracts,Mears Care,811.20, 10-Sep-2015
1763,Revenue,CCHD,Home Care - Elderly - North,Other Small Contracts,Mears Care,3104.40, 10-Sep-2015
1764,Revenue,CCHD,Under 65s -MH  Home Care Purch,Other Small Contracts,Mears Care,109.20, 10-Sep-2015
1765,Revenue,CCHD,Home Care - Elderly - South,Day Care / Social Activities,Mears Care,89.70, 10-Sep-2015
1766,Revenue,CCHD,Home Care - Elderly - South,Other Small Contracts,Mears Care,920.40, 10-Sep-2015
1767,Revenue,CCHD,Home Care - Elderly - North,Other Small Contracts,Mears Care,3003.00, 10-Sep-2015
1768,Revenue,CCHD,Under 65s -MH  Home Care Purch,Other Small Contracts,Mears Care,101.40, 10-Sep-2015
1769,Revenue,CCHD,Home Care - Elderly - South,Day Care / Social Activities,Mears Care,93.60, 10-Sep-2015
1770,Revenue,CCHD,Home Care - Elderly - South,Other Small Contracts,Mears Care,780.00, 10-Sep-2015
1771,Revenue,CCHD,Home Care - Elderly - North,Other Small Contracts,Mears Care,3217.50, 10-Sep-2015
1772,Revenue,CCHD,Under 65s -MH  Home Care Purch,Other Small Contracts,Mears Care,117.00, 10-Sep-2015
1773,Revenue,CCHD,Home Care - Elderly - South,Day Care / Social Activities,Mears Care,97.50, 10-Sep-2015
1774,Revenue,CCHD,Home Care - Elderly - South,Other Small Contracts,Mears Care,1033.50, 10-Sep-2015
1775,Revenue,CCHD,Home Care - Elderly - North,Other Small Contracts,Mears Care,3108.30, 10-Sep-2015
1776,Revenue,CCHD,Under 65s -MH  Home Care Purch,Other Small Contracts,Mears Care,117.00, 10-Sep-2015
1777,Revenue,CCHD,Home Care - Elderly - South,Private & Voluntary Home Care,Mears Care,49219.00, 28-Sep-2015
1778,Revenue,CCHD,Home Care - Elderly - South,Other Small Contracts,Medacs Home Care,354.00, 15-Sep-2015
1779,Revenue,CCHD,Home Care - Elderly - North,Other Small Contracts,Medacs Home Care,407.10, 15-Sep-2015
1780,Revenue,CCHD,ICES / NRS Contract,Daily Living Equipment,Medequip Assistive Technology Ltd,4802.86, 14-Sep-2015
1781,Revenue,CCHD,ICES / NRS Contract,Daily Living Equipment,Medequip Assistive Technology Ltd,60620.72, 14-Sep-2015
1782,Revenue,CCHD,Bed Purchasing - South,Permanent Residential,Mencap,2277.84, 01-Sep-2015
1783,Revenue,CCHD,Bed Purchasing - South,Permanent Residential,Mencap,2277.84, 29-Sep-2015
1784,Revenue,CCHD,Supported Living (S28a) South,Private & Voluntary Home Care,Mencap - PS Central & Cymru,3841.88, 01-Sep-2015
1785,Revenue,CCHD,Supported Living (S28a) South,Private & Voluntary Home Care,Mencap - PS Central & Cymru,3841.88, 03-Sep-2015
1786,Revenue,CCHD,Supported Living (S28a) South,Private & Voluntary Home Care,Mencap - PS Central & Cymru,3841.88, 25-Sep-2015
1787,Revenue,CCHD,Supporting People Programme,Grants to Voluntary Bodies,Merlin Housing Society,14786.49, 01-Sep-2015
1788,Revenue,CCHD,Supporting People Programme,Grants to Voluntary Bodies,Merlin Housing Society,2485.47, 01-Sep-2015
1789,Revenue,CCHD,Supporting People Programme,Grants to Voluntary Bodies,Merlin Housing Society,47076.50, 01-Sep-2015
1790,Revenue,CCHD,Supporting People Programme,Grants to Voluntary Bodies,Merlin Housing Society,1053.09, 01-Sep-2015
1791,Revenue,CCHD,Intermediate Care Accommodation,Other Supplies & Services,Merlin Housing Society,491.13, 21-Sep-2015
1792,Revenue,CCHD,Home Care - Elderly - South,Supported Living,Mike Durrant - Cherry Orchards,1394.88, 01-Sep-2015
1793,Revenue,CCHD,Home Care - Elderly - South,Supported Living,Mike Durrant - Cherry Orchards,1394.88, 29-Sep-2015
1794,Revenue,CCHD,Home Care - Elderly - South,Supported Living,Milestones - Unit 10,3631.76, 01-Sep-2015
1795,Revenue,CCHD,Home Care - Elderly - South,Supported Living,Milestones - Unit 10,3631.76, 29-Sep-2015
1796,Revenue,CCHD,Home Care - Elderly - North,Supported Living,Milestones - Unit 10,4340.08, 01-Sep-2015
1797,Revenue,CCHD,Home Care - Elderly - North,Supported Living,Milestones - Unit 10,4340.08, 29-Sep-2015
1798,Revenue,CCHD,Home Care - Elderly - South,Supported Living,Milestones - Unit 10,3631.76, 01-Sep-2015
1799,Revenue,CCHD,Home Care - Elderly - South,Supported Living,Milestones - Unit 10,3631.76, 29-Sep-2015
1800,Revenue,CCHD,Supported Living (S28a) North,Private & Voluntary Home Care,Milestones - Unit 10,4076.32, 01-Sep-2015
1801,Revenue,CCHD,Supported Living (S28a) North,Private & Voluntary Home Care,Milestones - Unit 10,4076.32, 29-Sep-2015
1802,Revenue,CCHD,Home Care - Elderly - South,Supported Living,Milestones - Unit 10,3643.60, 01-Sep-2015
1803,Revenue,CCHD,Home Care - Elderly - South,Supported Living,Milestones - Unit 10,3643.60, 29-Sep-2015
1804,Revenue,CCHD,Home Care - Elderly - South,Supported Living,Milestones - Unit 10,2317.68, 01-Sep-2015
1805,Revenue,CCHD,Home Care - Elderly - South,Supported Living,Milestones - Unit 10,2317.68, 29-Sep-2015
1806,Revenue,CCHD,Supported Living (S28a) North,Private & Voluntary Home Care,Milestones - Unit 10,4045.64, 01-Sep-2015
1807,Revenue,CCHD,Supported Living (S28a) North,Private & Voluntary Home Care,Milestones - Unit 10,4045.64, 29-Sep-2015
1808,Revenue,CCHD,Supported Living (S28a) North,Private & Voluntary Home Care,Milestones - Unit 10,4045.64, 01-Sep-2015
1809,Revenue,CCHD,Supported Living (S28a) North,Private & Voluntary Home Care,Milestones - Unit 10,4045.64, 29-Sep-2015
1810,Revenue,CCHD,Supported Living (S28a) North,Private & Voluntary Home Care,Milestones - Unit 10,4076.32, 01-Sep-2015
1811,Revenue,CCHD,Supported Living (S28a) North,Private & Voluntary Home Care,Milestones - Unit 10,4076.32, 29-Sep-2015
1812,Revenue,CCHD,Supported Living (S28a) South,Supported Living,Milestones - Unit 10,3881.32, 01-Sep-2015
1813,Revenue,CCHD,Supported Living (S28a) South,Supported Living,Milestones - Unit 10,3881.32, 29-Sep-2015
1814,Revenue,CCHD,Supported Living (S28a) North,Private & Voluntary Home Care,Milestones - Unit 10,3603.08, 01-Sep-2015
1815,Revenue,CCHD,Supported Living (S28a) North,Private & Voluntary Home Care,Milestones - Unit 10,3603.08, 29-Sep-2015
1816,Revenue,CCHD,Supported Living (S28a) North,Private & Voluntary Home Care,Milestones - Unit 10,3603.08, 01-Sep-2015
1817,Revenue,CCHD,Supported Living (S28a) North,Private & Voluntary Home Care,Milestones - Unit 10,3603.08, 29-Sep-2015
1818,Revenue,CCHD,Home Care - Elderly - South,Supported Living,Milestones - Unit 10,2546.76, 01-Sep-2015
1819,Revenue,CCHD,Home Care - Elderly - South,Supported Living,Milestones - Unit 10,1251.04, 01-Sep-2015
1820,Revenue,CCHD,Home Care - Elderly - South,Supported Living,Milestones - Unit 10,893.60, 01-Sep-2015
1821,Revenue,CCHD,Home Care - Elderly - South,Supported Living,Milestones - Unit 10,1251.04, 29-Sep-2015
1822,Revenue,CCHD,Supported Living (S28a) South,Supported Living,Milestones - Unit 10,5505.80, 01-Sep-2015
1823,Revenue,CCHD,Supported Living (S28a) South,Supported Living,Milestones - Unit 10,5505.80, 29-Sep-2015
1824,Revenue,CCHD,Home Care - Elderly - South,Supported Living,Milestones - Unit 10,2232.52, 01-Sep-2015
1825,Revenue,CCHD,Home Care - Elderly - South,Supported Living,Milestones - Unit 10,2232.52, 29-Sep-2015
1826,Revenue,CCHD,Supported Living (S28a) South,Supported Living,Milestones - Unit 10,2232.52, 01-Sep-2015
1827,Revenue,CCHD,Supported Living (S28a) South,Supported Living,Milestones - Unit 10,2232.52, 29-Sep-2015
1828,Revenue,CCHD,Supported Living (S28a) North,Private & Voluntary Home Care,Milestones - Unit 10,4350.20, 01-Sep-2015
1829,Revenue,CCHD,Supported Living (S28a) North,Private & Voluntary Home Care,Milestones - Unit 10,4350.20, 29-Sep-2015
1830,Revenue,CCHD,Supported Living (S28a) North,Private & Voluntary Home Care,Milestones - Unit 10,3615.20, 01-Sep-2015
1831,Revenue,CCHD,Supported Living (S28a) North,Private & Voluntary Home Care,Milestones - Unit 10,3615.20, 29-Sep-2015
1832,Revenue,CCHD,Supported Living (S28a) South,Supported Living,Milestones - Unit 10,2232.52, 01-Sep-2015
1833,Revenue,CCHD,Supported Living (S28a) South,Supported Living,Milestones - Unit 10,2232.52, 29-Sep-2015
1834,Revenue,CCHD,Supported Living (S28a) South,Supported Living,Milestones - Unit 10,2232.52, 01-Sep-2015
1835,Revenue,CCHD,Supported Living (S28a) South,Supported Living,Milestones - Unit 10,2232.52, 29-Sep-2015
1836,Revenue,CCHD,Home Care - Elderly - South,Supported Living,Milestones - Unit 10,1251.04, 01-Sep-2015
1837,Revenue,CCHD,Home Care - Elderly - South,Supported Living,Milestones - Unit 10,1251.04, 29-Sep-2015
1838,Revenue,CCHD,Bed Purchasing - North,Permanent Residential,Milestones - Unit 10,2677.84, 01-Sep-2015
1839,Revenue,CCHD,Bed Purchasing - North,Permanent Residential,Milestones - Unit 10,2677.84, 29-Sep-2015
1840,Revenue,CCHD,Bed Purchasing - North,Permanent Residential,Milestones - Unit 10,3496.32, 01-Sep-2015
1841,Revenue,CCHD,Bed Purchasing - North,Permanent Residential,Milestones - Unit 10,3496.32, 29-Sep-2015
1842,Revenue,CCHD,Bed Purchasing - South,Permanent Residential,Milestones - Unit 10,4921.56, 01-Sep-2015
